Workbook

Sheet Tables 1(a) 1(b) 1(c)
A1: Table 1(a): Pharmaceutical Benefits Expenditure on accrual accounting basis, year ending: Jun 2014
A2: (these figures represent the total spent on the PBS in the 2013/14 financial year)
B4: Year ending | C4: Jun 2013 | D4: Year ending | E4: Jun 2014 | F4: Change
A6: Category | B6: $ | C6: % | D6: $ | E6: % | F6: $ | G6: %
A7: Concessional | B7: 5707882037 | C7: 63.4462017 | D7: 5598989906 | E7: 61.3283182 | F7: -97243760.77 | G7: -1.703675026
A8: General | B8: 1475926466 | C8: 16.40572241 | D8: 1515681550 | E8: 16.60195892 | F8: 42908370.89 | G8: 2.907216036
A9: Highly Specialised Drugs | B9: 1013334675 | C9: 11.26376399 | D9: 1099529036 | E9: 12.01864445 | F9: 86194361.38 | G9: 8.506011243
A10: Drs Bag | B10: 15332696.19 | C10: 0.1704312263 | D10: 19123954.99 | E10: 0.2090386047 | F10: 3791258.8 | G10: 24.72662833
A11: Section 100 | B11: 774355410.7 | C11: 8.607379979 | D11: 905215571.7 | E11: 9.894658306 | F11: 130860161.1 | G11: 16.89923764
A12: Safety Net Cards | B12: 9581241.98 | C12: 0.1065006963 | D12: 9987840.58 | E12: 0.1091742927 | F12: 406598.6 | G12: 4.243694094
A13: Total | B13: 8996412527 | C13: 100 | D13: 9148527860 | E13: 100 | F13: 152115332.6 | G13: 1.690844347
A14: Total including revenue | B14: 8645529123 | D14: 8807157229 | F14: 161628105.3 | G14: 1.869499287
A18: Table 1(b): PBS Section 85 (incl. Dr's Bag and under co-payment scripts) Prescription Volume and Government Cost (on cash accounting basis), year ending: Jun 2014
B21: Year ending | C21: Jun 2013 | D21: Year ending | E21: Jun 2014 | F21: Change
A22: Volume
A23: Category | B23: Number | C23: % | D23: Number | E23: % | F23: Number | G23: %
A24: Concessional non Safety Net | B24: 133646630 | C24: 67.73592724 | D24: 145340393 | E24: 69.27040403 | F24: 11693763 | G24: 8.749762714
A25: Concessional Safety Net | B25: 39611994 | C25: 20.07648935 | D25: 42009011 | E25: 20.02183361 | F25: 2397017 | G25: 6.05124044
A26: Total Concessional | B26: 173258624 | C26: 87.81241659 | D26: 187349404 | E26: 89.29223764 | F26: 14090780 | G26: 8.132801516
A27: General non Safety Net | B27: 19323589 | C27: 9.793746528 | D27: 18050307 | E27: 8.602921961 | F27: -1273282 | G27: -6.589262481
A28: General Safety Net | B28: 4371046 | C28: 2.215370891 | D28: 4052529 | E28: 1.931468021 | F28: -318517 | G28: -7.286974331
A29: Total General | B29: 23694635 | C29: 12.00911742 | D29: 22102836 | E29: 10.53438998 | F29: -1591799 | G29: -6.717972233
A30: Drs Bag | B30: 352123 | C30: 0.1784659883 | D30: 363763 | E30: 0.1733723809 | F30: 11640 | G30: 3.305663078
A31: Total | B31: 197305382 | C31: 100 | D31: 209816003 | E31: 100 | F31: 12510621 | G31: 6.340739859
A32: Under Co-payment | B32: 62019475 | D32: 72322451 | F32: 10302976 | G32: 16.61248503
A34: Govt Cost
A35: Category | B35: $ | C35: % | D35: $ | E35: % | F35: $ | G35: %
A36: Concessional non Safety Net | B36: 4209086581 | C36: 59.4147433 | D36: 4319414670 | E36: 59.10075927 | F36: 110328089 | G36: 2.621188395
A37: Concessional Safety Net | B37: 1351536398 | C37: 19.07805568 | D37: 1388583542 | E37: 18.99941264 | F37: 37047144.35 | G37: 2.741113329
A38: Total Concessional | B38: 5560622979 | C38: 78.49279898 | D38: 5707998212 | E38: 78.1001719 | F38: 147375233.3 | G38: 2.650336732
A39: General non Safety Net | B39: 1339654102 | C39: 18.91032723 | D39: 1429860300 | E39: 19.56418539 | F39: 90206198.36 | G39: 6.733543997
A40: General Safety Net | B40: 169213843.6 | C40: 2.388593555 | D40: 154692449 | E40: 2.116592614 | F40: -14521394.56 | G40: -8.581682358
A41: Total General | B41: 1508867945 | C41: 21.29892078 | D41: 1584552749 | E41: 21.68077801 | F41: 75684803.8 | G41: 5.015999182
A42: Drs Bag | B42: 14755084.67 | C42: 0.2082802411 | D42: 16009407.9 | E42: 0.2190500877 | F42: 1254323.23 | G42: 8.500955827
A43: Total | B43: 7084246009 | C43: 100 | D43: 7308560369 | E43: 100 | F43: 224314360.4 | G43: 3.166382987
A46: Table 1(c): RPBS Section 85 Prescription Volume and Government Cost (on cash accounting basis), year ending: Jun 2014
B49: Year ending | C49: Jun 2013 | D49: Year ending | E49: Jun 2014 | F49: Change
A50: Volume
B51: Number | C51: % | D51: Number | E51: % | F51: Number | G51: %
A52: Repatriation non Safety Net | B52: 8845857 | C52: 72.35075664 | D52: 8904859 | E52: 72.83950689 | F52: 59002 | G52: 0.6670015127
A53: Repatriation Safety Net | B53: 3525403 | C53: 27.64924336 | D53: 3433394 | E53: 27.16049311 | F53: -92009 | G53: -2.609886019
A54: Total | B54: 12371260 | C54: 100 | D54: 12338253 | E54: 100 | F54: -33007 | G54: -0.2668038664
A56: Govt Cost
B57: $ | C57: % | D57: $ | E57: % | F57: $ | G57: %
A58: Repatriation non Safety Net | B58: 281492161.1 | C58: 71.50381955 | D58: 258113693.4 | E58: 71.2267021 | F58: -23378467.65 | G58: -8.305193139
A59: Repatriation Safety Net | B59: 112182138.9 | C59: 28.49618045 | D59: 104269634.5 | E59: 28.7732979 | F59: -7912504.43 | G59: -7.053265793
A60: Total | B60: 393674300 | C60: 100 | D60: 362383327.9 | E60: 100 | F60: -31290972.08 | G60: -7.948441663

Sheet Tables 2(a) 2(b)
A1: Table 2: PBS Prescription Volume, Government Cost and Patient Contributions, year ending:
A2: Jun 2014 - Section 85 Only
A5: Category | C5: Volume | D5: Govt Cost $ | E5: Patient Payments $ | F5: Total Cost $ | G5: Ave Price $
A6: Concessional non Safety Net | C6: 145340393 | D6: 4319414670 | E6: 864226398.5 | F6: 5183641068 | G6: 35.66552258
A7: Concessional Safety Net | C7: 42009011 | D7: 1388583542 | E7: 0 | F7: 1388583542 | G7: 33.05442116
A8: Total Concessional | C8: 187349404 | D8: 5707998212 | E8: 864226398.5 | F8: 6572224611 | G8: 35.08004013
A9: General non Safety Net | C9: 18050307 | D9: 1429860300 | E9: 656913329 | F9: 2086773629 | G9: 115.6087611
A10: General Safety Net | C10: 4052529 | D10: 154692449 | E10: 23915012.2 | F10: 178607461.2 | G10: 44.07308651
A11: Total General | C11: 22102836 | D11: 1584552749 | E11: 680828341.2 | F11: 2265381090 | G11: 102.4927792
A12: Total | C12: 209452240 | D12: 7292550961 | E12: 1545054740 | F12: 8837605701 | G12: 42.19389442
A13: Drs Bag | C13: 363763 | D13: 16009407.9 | E13: 0 | F13: 16009407.9 | G13: 44.01054505
A14: Total | C14: 209816003 | D14: 7308560369 | E14: 1545054740 | F14: 8853615109 | G14: 42.19704399
A17: Table 2(a): PBS Prescription Volume and Govt Cost by monthly summary (excl. Drs Bag), year ending:
A18: Jun 2014 - Section 85 only
B20: Month | C20: Subsidised volume | D20: Under co-payment volume | E20: Govt Cost $ | F20: Patient Payments $ | G20: Total Cost $ | H20: Ave Price $
A21: 2012 | B21: JUL | C21: 15962562 | D21: 4616287 | E21: 561716312.4 | F21: 134946145.7 | G21: 696662458.1 | H21: 43.64352402
B22: AUG | C22: 15588728 | D22: 4887347 | E22: 549934252.3 | F22: 125124302.1 | G22: 675058554.4 | H22: 43.30427437
B23: SEP | C23: 23555659 | D23: 7842914 | E23: 845118941 | F23: 176505560.6 | G23: 1021624502 | H23: 43.37066102
B24: OCT | C24: 18123904 | D24: 5678377 | E24: 663109110.5 | F24: 124196632.8 | G24: 787305743.3 | H24: 43.44018503
B25: NOV | C25: 16983228 | D25: 5006542 | E25: 631925117.7 | F25: 108489059.4 | G25: 740414177.1 | H25: 43.5967872
B26: DEC | C26: 11935737 | D26: 3300222 | E26: 440649626.7 | F26: 71256188.7 | G26: 511905815.4 | H26: 42.88849657
A27: 2013 | B27: JAN | C27: 20851142 | D27: 5504348 | E27: 765125944.1 | F27: 115699435.8 | G27: 880825379.9 | H27: 42.24350781
B28: FEB | C28: 15386475 | D28: 4916204 | E28: 554496577.5 | F28: 118098772.1 | G28: 672595349.6 | H28: 43.71341387
B29: MAR | C29: 11615188 | D29: 4022329 | E29: 414875137.6 | F29: 102568915 | G29: 517444052.6 | H29: 44.54891755
B30: APR | C30: 14171829 | D30: 4855164 | E30: 511605633.2 | F30: 127544947.1 | G30: 639150580.3 | H30: 45.10007708
B31: MAY | C31: 15867548 | D31: 5533416 | E31: 549805904 | F31: 142815983.4 | G31: 692621887.4 | H31: 43.65021536
B32: JUN | C32: 16911259 | D32: 5856325 | E32: 581128367.3 | F32: 148146153.6 | G32: 729274520.9 | H32: 43.12360901
B33: Total | C33: 196953259 | D33: 62019475 | E33: 7069490924 | F33: 1495392096 | G33: 8564883021 | H33: 43.48688143
A35: 2013 | B35: JUL | C35: 14404412 | D35: 5205777 | E35: 498566470 | F35: 121901130 | G35: 620467600 | H35: 43.07483013
B36: AUG | C36: 14773562 | D36: 5052129 | E36: 510891845.1 | F36: 116350417.1 | G36: 627242262.2 | H36: 42.45707719
B37: SEP | C37: 14814875 | D37: 5221934 | E37: 521133993.1 | F37: 111028894.9 | G37: 632162888 | H37: 42.67082159
B38: OCT | C38: 12741365 | D38: 4446703 | E38: 453312501.9 | F38: 90715360 | G38: 544027861.9 | H38: 42.69776919
B39: NOV | C39: 12715318 | D39: 4224428 | E39: 452494579.2 | F39: 84907258.2 | G39: 537401837.4 | H39: 42.26412878
B40: DEC | C40: 13407544 | D40: 4309049 | E40: 485033762.8 | F40: 83797076 | G40: 568830838.8 | H40: 42.42617729
A41: 2014 | B41: JAN | C41: 14456576 | D41: 4363295 | E41: 520716646.7 | F41: 83030417.9 | G41: 603747064.6 | H41: 41.76279809
B42: FEB | C42: 9351659 | D42: 3219357 | E42: 335620525.2 | F42: 65254998.5 | G42: 400875523.7 | H42: 42.86678157
B43: MAR | C43: 28874428 | D43: 9454021 | E43: 1005780988 | F43: 198418511.7 | G43: 1204199500 | H43: 41.70470494
B44: APR | C44: 33551043 | D44: 11511565 | E44: 1149236040 | F44: 251712042.2 | G44: 1400948082 | H44: 41.75572373
B45: MAY | C45: 21771887 | D45: 8316212 | E45: 736901903.7 | F45: 185353662.5 | G45: 922255566.2 | H45: 42.35992802
B46: JUN | C46: 18589571 | D46: 6997981 | E46: 622861705.2 | F46: 152584970.7 | G46: 775446675.9 | H46: 41.71407053
B47: Total | C47: 209452240 | D47: 72322451 | E47: 7292550961 | F47: 1545054740 | G47: 8837605701 | H47: 42.19389442

Sheet Table 3
A1: 3 | B1: Table 3: PBS processing by State (excl. Drs Bag), year ending: Jun 2014 - Section 85 Only
C4: NSW | D4: Vic | E4: Qld | F4: SA | G4: WA | H4: Tas | I4: NT | J4: ACT | K4: Australia
B5: Volume
B6: Concess NSN | C6: 48971139 | D6: 37286192 | E6: 28181764 | F6: 12499750 | G6: 12287870 | H6: 4178255 | I6: 510771 | J6: 1424652 | K6: 145340393
B7: Concess SN | C7: 14695438 | D7: 10627931 | E7: 8277245 | F7: 3619238 | G7: 3155732 | H7: 1219047 | I7: 66628 | J7: 347752 | K7: 42009011
B8: General NSN | C8: 5783359 | D8: 4324619 | E8: 3600065 | F8: 1311600 | G8: 2154525 | H8: 375035 | I8: 131327 | J8: 369777 | K8: 18050307
B9: General SN | C9: 1413703 | D9: 965636 | E9: 781725 | F9: 294654 | G9: 414722 | H9: 76421 | I9: 13633 | J9: 92035 | K9: 4052529
B10: Total | C10: 70863639 | D10: 53204378 | E10: 40840799 | F10: 17725242 | G10: 18012849 | H10: 5848758 | I10: 722359 | J10: 2234216 | K10: 209452240
B12: Govt Cost $
B13: Concess NSN | C13: 1497952068 | D13: 1075047456 | E13: 826233092.2 | F13: 364482274.2 | G13: 368680532.7 | H13: 125704708.9 | I13: 15275567.55 | J13: 46038970.17 | K13: 4319414670
B14: Concess SN | C14: 489617603.6 | D14: 344637618.1 | E14: 273327458.8 | F14: 119760484 | G14: 105864396.7 | H14: 40899867 | I14: 2193562.12 | J14: 12282551.94 | K14: 1388583542
B15: General NSN | C15: 457291195.2 | D15: 355747312.9 | E15: 263219771.7 | F15: 102891078.6 | G15: 179978033.2 | H15: 30871741.41 | I15: 9544229.42 | J15: 30316937.81 | K15: 1429860300
B16: General SN | C16: 53436100.86 | D16: 36354929.63 | E16: 29435203.24 | F16: 11573761.2 | G16: 16937780.38 | H16: 2916871.16 | I16: 461010.52 | J16: 3576792.01 | K16: 154692449
B17: Total | C17: 2498296967 | D17: 1811787317 | E17: 1392215526 | F17: 598707598 | G17: 671460742.9 | H17: 200393188.5 | I17: 27474369.61 | J17: 92215251.93 | K17: 7292550961
B19: Total Cost $
B20: Concess NSN | C20: 1789116557 | D20: 1296725517 | E20: 993841103.2 | F20: 438828865.9 | G20: 441745223.9 | H20: 150565310.3 | I20: 18309629.25 | J20: 54508861.47 | K20: 5183641068
B21: Concess SN | C21: 489617603.6 | D21: 344637618.1 | E21: 273327458.8 | F21: 119760484 | G21: 105864396.7 | H21: 40899867 | I21: 2193562.12 | J21: 12282551.94 | K21: 1388583542
B22: General NSN | C22: 667734090.5 | D22: 513124683.8 | E22: 394266104.6 | F22: 150639220.9 | G22: 258387275 | H22: 44528900.61 | I22: 14319868.22 | J22: 43773485.61 | K22: 2086773629
B23: General SN | C23: 61778174.56 | D23: 42053656.53 | E23: 34048646.14 | F23: 13312650.2 | G23: 19385041.38 | H23: 3367867.56 | I23: 541463.52 | J23: 4119961.31 | K23: 178607461.2
B24: Total | C24: 3008246426 | D24: 2196541475 | E24: 1695483313 | F24: 722541221 | G24: 825381936.9 | H24: 239361945.5 | I24: 35364523.11 | J24: 114684860.3 | K24: 8837605701
B26: Ave Prices $
B27: Concess NSN | C27: 36.53410139 | D27: 34.77763342 | E27: 35.26539727 | F27: 35.10701141 | G27: 35.94969868 | H27: 36.03545268 | I27: 35.84704153 | J27: 38.26117639 | K27: 35.66552258
B28: Concess SN | C28: 33.31765978 | D28: 32.42753629 | E28: 33.0215499 | F28: 33.08997198 | G28: 33.54670063 | H28: 33.55068919 | I28: 32.92252687 | J28: 35.31985996 | K28: 33.05442116
B29: General NSN | C29: 115.4578318 | D29: 118.6519977 | E29: 109.516385 | F29: 114.8514951 | G29: 119.9277219 | H29: 118.7326532 | I29: 109.0397879 | J29: 118.3780646 | K29: 115.6087611
B30: General SN | C30: 43.69954266 | D30: 43.55021616 | E30: 43.55578514 | F30: 45.1806193 | G30: 46.74225476 | H30: 44.06992267 | I30: 39.71712169 | J30: 44.76515793 | K30: 44.07308651
B31: Total | C31: 42.45119879 | D31: 41.28497612 | E31: 41.51445012 | F31: 40.76340515 | G31: 45.82184289 | H31: 40.92526063 | I31: 48.95699107 | J31: 51.33114271 | K31: 42.19389442
B33: Population ('000)(a) | C33: 7465.5 | D33: 5791 | E33: 4690.9 | F33: 1677.3 | G33: 2550.9 | H33: 514 | I33: 242.6 | J33: 384.1 | K33: 23319.4
B34: Volume per capita | C34: 9.492149086 | D34: 9.18742497 | E34: 8.706388753 | F34: 10.56772313 | G34: 7.061370105 | H34: 11.37890661 | I34: 2.977572135 | J34: 5.816756053 | K34: 8.981888042
B35: Govt cost per capita | C35: 334.6456322 | D35: 312.8626001 | E35: 296.7907067 | F35: 356.9472355 | G35: 263.2250354 | H35: 389.8700165 | I35: 113.2496686 | J35: 240.081364 | K35: 312.7246396
B36: % Population | C36: 32.014117 | D36: 24.83340052 | E36: 20.11586919 | F36: 7.192723655 | G36: 10.93896069 | H36: 2.204173349 | I36: 1.040335515 | J36: 1.647126427 | K36: 100
B37: % Volume | C37: 33.83283893 | D37: 25.40167534 | E37: 19.49885998 | F37: 8.462665284 | G37: 8.599979165 | H37: 2.792406517 | I37: 0.3448800548 | J37: 1.066694727 | K37: 100
B38: % Govt Cost | C38: 34.25820376 | D38: 24.84435593 | E38: 19.09092625 | F38: 8.209851412 | G38: 9.207487839 | H38: 2.747916189 | I38: 0.3767456649 | J38: 1.264512959 | K38: 100
B39: % Total Cost | C39: 34.03915639 | D39: 24.85448604 | E39: 19.18487167 | F39: 8.175757614 | G39: 9.339429307 | H39: 2.708447894 | I39: 0.4001595489 | J39: 1.297691527 | K39: 100
B40: (a) Population 31 December 2013, Source: ABS Publication 3101.0
B42: SN: Safety Net
B43: NSN: Non Safety Net

Sheet Tables 4(a) 4(b)
A1: Table 4(a): PBS processing (excl. Drs Bag) years ending: Jun 2011 to end Jun 2014 - Section 85 Only
A3: Year | B3: Subsidised Prescription Volume | C3: Under co-payment Prescription Volume | D3: Government Cost $
A4: Year Ending Jun 11 | B4: 187804540 | C4: n.a. | D4: 7323148803
A5: Year Ending Jun 12 | B5: 194548705 | C5: n.a. | D5: 7528204119
A6: Year Ending Jun 13 | B6: 196953259 | C6: 62019475 | D6: 7069490924
A7: Year Ending Jun 14 | B7: 209452240 | C7: 72322451 | D7: 7292550961
A8: Change | B8: 12498981 | C8: 10302976 | D8: 223060037.1
A9: % | B9: 6.346166123 | C9: 16.61248503 | D9: 3.155248936
A17: Table 4(b): PBS processing - PBS subsidised and under co-payment prescriptions (incl. Drs Bag) year ending: Jun 2014 - Section 85 Only
B19: Year Ending Jun 13 | C19: Year Ending Jun 14 | D19: Change | E19: %
A20: Highest volume drug: Atorvastatin
A21: Subsidised Prescription Volume | B21: 9611688 | C21: 8912377 | D21: -699311 | E21: -7.275631502
A22: UCP Prescription Volume | B22: 176266 | C22: 1362258 | D22: 1185992 | E22: 672.8421817
A23: Government Cost ($) | B23: 422780054.1 | C23: 279187250 | D23: -143592804.1 | E23: -33.9639495
A24: Highest Govt cost drug: Rosuvastatin
A25: Subsidised Prescription Volume | B25: 7485726 | C25: 7806237 | D25: 320511 | E25: 4.281628796
A26: UCP Prescription Volume | B26: 225307 | C26: 550748 | D26: 325441 | E26: 144.4433595
A27: Government Cost ($) | B27: 302362304.3 | C27: 287914893.4 | D27: -14447410.85 | E27: -4.778178578
A28: Highest volume ATC Level 2: LIPID MODIFYING AGENTS
A29: Subsidised Prescription Volume | B29: 25043985 | C29: 24978107 | D29: -65878 | E29: -0.2630491913
A30: UCP Prescription Volume | B30: 1331068 | C30: 2887307 | D30: 1556239 | E30: 116.9165662
A31: Government Cost ($) | B31: 1028654443 | C31: 872648621.4 | D31: -156005821.5 | E31: -15.16600863
A32: Highest Government cost ATC Level 2: LIPID MODIFYING AGENTS
A33: Subsidised Prescription Volume | B33: 25043985 | C33: 24978107 | D33: -65878 | E33: -0.2630491913
A34: UCP Prescription Volume | B34: 1331068 | C34: 2887307 | D34: 1556239 | E34: 116.9165662
A35: Government Cost ($) | B35: 1028654443 | C35: 872648621.4 | D35: -156005821.5 | E35: -15.16600863
A36: Greatest increase in Govt. cost ATC Level 2: IMMUNOSUPPRESSANTS
A37: Subsidised Prescription Volume | B37: 708796 | C37: 820097 | D37: 111301 | E37: 15.70282564
A38: UCP Prescription Volume | B38: 7941 | C38: 9808 | D38: 1867 | E38: 23.51089283
A39: Government Cost ($) | B39: 597465700.7 | C39: 743663074.8 | D39: 146197374.1 | E39: 24.46958443

Sheet Table 5
A1: 5 | B1: Table 5: ATC main group comparison (incl Drs bag), year ending: Jun 2014 - Section 85 Only
D4: Year ending - | E4: Jun 2013 | H4: Year ending - | I4: Jun 2014
B5: ATC Group Level 1 | C5: Number | D5: Govt Cost $ | E5: Total Cost $ | F5: Ave Price $ | G5: Number | H5: Govt Cost $ | I5: Total Cost $ | J5: Ave Price $
B6: ALIMENTARY TRACT AND METABOLISM | C6: 28023363 | D6: 969285960.3 | E6: 1162673046 | F6: 41.4894189 | G6: 30578925 | H6: 1035381553 | I6: 1253349360 | J6: 40.98735844
B7: BLOOD AND BLOOD FORMING ORGANS | C7: 8341913 | D7: 243477255.9 | E7: 303913481.4 | F7: 36.43210873 | G7: 8918466 | H7: 273331521.1 | I7: 335741018 | J7: 37.64560161
B8: CARDIOVASCULAR SYSTEM | C8: 66724670 | D8: 1675047888 | E8: 2197504174 | F8: 32.93390847 | G8: 68730016 | H8: 1495363660 | I8: 1985124293 | J8: 28.88293075
B9: DERMATOLOGICALS | C9: 2923386 | D9: 69478813.4 | E9: 98219397 | F9: 33.59782013 | G9: 3059192 | H9: 67723434 | I9: 98544710.7 | J9: 32.21265965
B10: GENITO URINARY SYSTEM AND SEX HORMONES | C10: 2834386 | D10: 106224745.7 | E10: 128201484.5 | F10: 45.23077821 | G10: 3180226 | H10: 123833462.6 | I10: 149056457 | J10: 46.8697687
B11: SYSTEMIC HORMONAL PREPARATIONS, EXCL. SEX HORMONES AND INSULINS | C11: 3061210 | D11: 57281126.85 | E11: 73477903.15 | F11: 24.00289531 | G11: 3320417 | H11: 63609530.32 | I11: 81910815.22 | J11: 24.66883383
B12: ANTIINFECTIVES FOR SYSTEMIC USE | C12: 13319981 | D12: 248030673.4 | E12: 331874704.3 | F12: 24.91555388 | G12: 13773672 | H12: 248082028.1 | I12: 335843489.5 | J12: 24.38300328
B13: ANTINEOPLASTIC AND IMMUNOMODULATING AGENTS | C13: 1865152 | D13: 1114762274 | E13: 1146614003 | F13: 614.7563326 | G13: 2078723 | H13: 1320266779 | I13: 1356658120 | J13: 652.6401642
B14: MUSCULO-SKELETAL SYSTEM | C14: 8345577 | D14: 244892156.7 | E14: 294712650.4 | F14: 35.31363385 | G14: 8508749 | H14: 262800423.7 | I14: 314497301.8 | J14: 36.96163817
B15: NERVOUS SYSTEM | C15: 42072946 | D15: 1351494357 | E15: 1668001811 | F15: 39.6454722 | G15: 46890499 | H15: 1417634199 | I15: 1762435846 | J15: 37.58620367
B16: ANTIPARASITIC PRODUCTS, INSECTICIDES AND REPELLENTS | C16: 104365 | D16: 1690193.15 | E16: 2285632.95 | F16: 21.900378 | G16: 104575 | H16: 1775198.74 | I16: 2387522.34 | J16: 22.83071805
B17: RESPIRATORY SYSTEM | C17: 10885648 | D17: 447911000.5 | E17: 562487250.2 | F17: 51.67237175 | G17: 11580359 | H17: 478956058.4 | I17: 602274492.7 | J17: 52.00827476
B18: SENSORY ORGANS | C18: 8076026 | D18: 483981923.2 | E18: 532746611.2 | F18: 65.96643092 | G18: 8369076 | H18: 443774268.8 | I18: 493475531.9 | J18: 58.96415947
B19: VARIOUS | C19: 571828 | D19: 68267856.17 | E19: 73684464.87 | F19: 128.857742 | G19: 563652 | H19: 73307245.79 | I19: 78719213.09 | J19: 139.6592456
B20: Not otherwise classified | C20: 154931 | D20: 2419784.26 | E20: 3241490.16 | F20: 20.92215347 | G20: 159456 | H20: 2721006.96 | I20: 3596938.56 | J20: 22.55756171
B21: Total | C21: 197305382 | D21: 7084246009 | E21: 8579638105 | F21: 43.48405511 | G21: 209816003 | H21: 7308560369 | I21: 8853615109 | J21: 42.19704399
B23: Change, years ending: | D23: Jun 2013 to Jun 2014 | H23: Jun 2013 to Jun 2014
C24: Change | G24: Percentage Change
B25: ALIMENTARY TRACT AND METABOLISM | C25: 2555562 | D25: 66095592.6 | E25: 90676313.2 | F25: -0.5020604595 | G25: 9.119397982 | H25: 6.818998242 | I25: 7.798952034 | J25: -1.210092773
B26: BLOOD AND BLOOD FORMING ORGANS | C26: 576553 | D26: 29854265.15 | E26: 31827536.55 | F26: 1.213492877 | G26: 6.911520175 | H26: 12.2616238 | I26: 10.47256489 | J26: 3.330833486
B27: CARDIOVASCULAR SYSTEM | C27: 2005346 | D27: -179684228.6 | E27: -212379881.3 | F27: -4.050977712 | G27: 3.005404148 | H27: -10.72710994 | I27: -9.664595127 | J27: -12.3003248
B28: DERMATOLOGICALS | C28: 135806 | D28: -1755379.4 | E28: 325313.7 | F28: -1.38516048 | G28: 4.645503536 | H28: -2.52649594 | I28: 0.3312112576 | J28: -4.122768903
B29: GENITO URINARY SYSTEM AND SEX HORMONES | C29: 345840 | D29: 17608716.92 | E29: 20854972.52 | F29: 1.638990495 | G29: 12.2015844 | H29: 16.57685015 | I29: 16.2673409 | J29: 3.623617721
B30: SYSTEMIC HORMONAL PREPARATIONS, EXCL. SEX HORMONES AND INSULINS | C30: 259207 | D30: 6328403.47 | E30: 8432912.07 | F30: 0.6659385208 | G30: 8.467468746 | H30: 11.04797307 | I30: 11.47680011 | J30: 2.774409138
B31: ANTIINFECTIVES FOR SYSTEMIC USE | C31: 453691 | D31: 51354.73 | E31: 3968785.23 | F31: -0.5325506027 | G31: 3.406093447 | H31: 0.02070499156 | I31: 1.195868555 | J31: -2.137422292
B32: ANTINEOPLASTIC AND IMMUNOMODULATING AGENTS | C32: 213571 | D32: 205504504.4 | E32: 210044116.9 | F32: 37.88383166 | G32: 11.45059491 | H32: 18.43482769 | I32: 18.31864222 | J32: 6.16241422
B33: MUSCULO-SKELETAL SYSTEM | C33: 163172 | D33: 17908267.03 | E33: 19784651.33 | F33: 1.648004315 | G33: 1.955191355 | H33: 7.312715636 | I33: 6.71320057 | J33: 4.666765029
B34: NERVOUS SYSTEM | C34: 4817553 | D34: 66139842.69 | E34: 94434034.39 | F34: -2.059268535 | G34: 11.45047699 | H34: 4.893830475 | I34: 5.661506706 | J34: -5.19420862
B35: ANTIPARASITIC PRODUCTS, INSECTICIDES AND REPELLENTS | C35: 210 | D35: 85005.59 | E35: 101889.39 | F35: 0.930340049 | G35: 0.2012168831 | H35: 5.029341765 | I35: 4.457819441 | J35: 4.248054755
B36: RESPIRATORY SYSTEM | C36: 694711 | D36: 31045057.91 | E36: 39787242.51 | F36: 0.3359030113 | G36: 6.381898441 | H36: 6.931077352 | I36: 7.073447886 | J36: 0.6500630799
B37: SENSORY ORGANS | C37: 293050 | D37: -40207654.45 | E37: -39271079.35 | F37: -7.002271449 | G37: 3.628641116 | H37: -8.307676902 | I37: -7.371436724 | J37: -10.61490117
B38: VARIOUS | C38: -8176 | D38: 5039389.62 | E38: 5034748.22 | F38: 10.80150362 | G38: -1.429800569 | H38: 7.381789766 | I38: 6.832848999 | J38: 8.382502638
B39: Not otherwise classified | C39: 4525 | D39: 301222.7 | E39: 355448.4 | F39: 1.635408235 | G39: 2.920655001 | H39: 12.44832876 | I39: 10.96558627 | J39: 7.816634349
B40: Total | C40: 12510621 | D40: 224314360.4 | E40: 273977003.7 | F40: -1.287011122 | G40: 6.340739859 | H40: 3.166382987 | I40: 3.193339863 | J40: -2.959731143
B41: Total Cost includes cost to the patient and cost to the government
B42: Average Price is "Total Cost" divided by "Volume"

Sheet Table 6
B1: Table 6: PBS Prescription Volume, Government Cost and Average Government Cost/Script (excl. Drs Bag), year ending: Jun 2011 to end Jun 2014 - Section 85 Only
C4: Total Patients | D4: General Patients | G4: Concessional Patients
C5: Script Volume | D5: Total | E5: Non-Safety Net | F5: Safety Net | G5: Total | H5: Non-Safety Net | I5: Safety Net
B6: Prescriptions
B7: Year Ending Jun 11 | C7: 187804540 | D7: 25975631 | E7: 21032398 | F7: 4943233 | G7: 161828909 | H7: 125446923 | I7: 36381986
B8: Year Ending Jun 12 | C8: 194548705 | D8: 26060056 | E8: 21239413 | F8: 4820643 | G8: 168488649 | H8: 130441952 | I8: 38046697
B9: Year Ending Jun 13 | C9: 196953259 | D9: 23694635 | E9: 19323589 | F9: 4371046 | G9: 173258624 | H9: 133646630 | I9: 39611994
B10: Year Ending Jun 14 | C10: 209452240 | D10: 22102836 | E10: 18050307 | F10: 4052529 | G10: 187349404 | H10: 145340393 | I10: 42009011
B11: Change (Jun 13 - Jun 14) | C11: 12498981 | D11: -1591799 | E11: -1273282 | F11: -318517 | G11: 14090780 | H11: 11693763 | I11: 2397017
B12: % Change (Jun 13 - Jun 14) | C12: 0.06346166123 | D12: -0.06717972233 | E12: -0.06589262481 | F12: -0.07286974331 | G12: 0.08132801516 | H12: 0.08749762714 | I12: 0.0605124044
B13: Government Cost $
A14: 6 | B14: Year Ending Jun 11 | C14: 7323148803 | D14: 1624726270 | E14: 1412781352 | F14: 211944918.3 | G14: 5698422533 | H14: 4367739898 | I14: 1330682636
B15: Year Ending Jun 12 | C15: 7528204119 | D15: 1661940288 | E15: 1453773280 | F15: 208167008.5 | G15: 5866263831 | H15: 4476104435 | I15: 1390159396
B16: Year Ending Jun 13 | C16: 7069490924 | D16: 1508867945 | E16: 1339654102 | F16: 169213843.6 | G16: 5560622979 | H16: 4209086581 | I16: 1351536398
B17: Year Ending Jun 14 | C17: 7292550961 | D17: 1584552749 | E17: 1429860300 | F17: 154692449 | G17: 5707998212 | H17: 4319414670 | I17: 1388583542
B18: Change (Jun 13 - Jun 14) | C18: 223060037.1 | D18: 75684803.8 | E18: 90206198.36 | F18: -14521394.56 | G18: 147375233.3 | H18: 110328089 | I18: 37047144.35
B19: % Change (Jun 13 - Jun 14) | C19: 0.03155248936 | D19: 0.05015999182 | E19: 0.06733543997 | F19: -0.08581682358 | G19: 0.02650336732 | H19: 0.02621188395 | I19: 0.02741113329
B20: Average Govt Cost/Script $
B21: Year Ending Jun 11 | C21: 38.99345992 | D21: 62.54809633 | E21: 67.17167257 | F21: 42.87576942 | G21: 35.21263641 | H21: 34.81743349 | I21: 36.57531603
B22: Year Ending Jun 12 | C22: 38.69572979 | D22: 63.7734734 | E22: 68.4469613 | F22: 43.1824154 | G22: 34.81696759 | H22: 34.31491454 | I22: 36.53824132
B23: Year Ending Jun 13 | C23: 35.89425715 | D23: 63.67972942 | E23: 69.32739575 | F23: 38.71243715 | G23: 32.09435034 | H23: 31.49414677 | I23: 34.11937298
B24: Year Ending Jun 14 | C24: 34.8172498 | D24: 71.69001974 | E24: 79.21528981 | F24: 38.17183023 | G24: 30.46712768 | H24: 29.71929951 | I24: 33.05442116
B25: Change (Jun 13 - Jun 14) | C25: -1.077007345 | D25: 8.010290327 | E25: 9.887894066 | F25: -0.5406069188 | G25: -1.627222666 | H25: -1.774847267 | I25: -1.06495182
B26: % Change (Jun 13 - Jun 14) | C26: -0.03000500444 | D26: 0.1257902695 | E26: 0.142626071 | F26: -0.01396468315 | G26: -0.05070121839 | H26: -0.05635482935 | I26: -0.03121252611

Sheet Table 7(a)
A1: 7 | B1: Table 7(a): Significant drug groups (incl Drs bag) by highest Government cost, year end: Jun 2013 to year end: Jun 2014 - Section 85 Only
D4: Year ending Jun 2013 | H4: Year ending Jun 2014
B5: ATC Group Level 2 | C5: Volume | D5: Govt Cost $ | E5: Total Cost $ | F5: Ave Price $ | G5: Volume | H5: Govt Cost $ | I5: Total Cost $ | J5: Ave Price $
B6: LIPID MODIFYING AGENTS | C6: 25043985 | D6: 1028654443 | E6: 1329709219 | F6: 53.09495351 | G6: 24978107 | H6: 872648621.4 | I6: 1135168605 | J6: 45.44654266
B7: IMMUNOSUPPRESSANTS | C7: 708796 | D7: 597465700.7 | E7: 611494306.2 | F7: 862.7225693 | G7: 820097 | H7: 743663074.8 | I7: 760469333.7 | J7: 927.2919346
B8: DRUGS USED IN DIABETES | C8: 7851738 | D8: 460626544 | E8: 518464585 | F8: 66.03182442 | G8: 8614293 | H8: 511318110.7 | I8: 578856946.1 | J8: 67.19726692
B9: DRUGS FOR OBSTRUCTIVE AIRWAY DISEASES | C9: 10700959 | D9: 444968381.7 | E9: 558666143.3 | F9: 52.20710997 | G9: 11393573 | H9: 475770046.4 | I9: 598175243.9 | J9: 52.50111127
B10: OPHTHALMOLOGICALS | C10: 7445923 | D10: 481042182.2 | E10: 526908040.2 | F10: 70.76463726 | G10: 7760073 | H10: 440865044.4 | I10: 487710124 | J10: 62.84865155
B11: ANALGESICS | C11: 15443040 | D11: 343850505.5 | E11: 421246549.2 | F11: 27.2774369 | G11: 18666546 | H11: 433141001.7 | I11: 535893744.4 | J11: 28.70877903
B12: PSYCHOLEPTICS | C12: 7954544 | D12: 427641048.9 | E12: 478169679.1 | F12: 60.11277065 | G12: 8333070 | H12: 413359608.5 | I12: 466665659.5 | J12: 56.00164879
B13: AGENTS ACTING ON THE RENIN-ANGIOTENSIN SYSTEM | C13: 22421382 | D13: 390591562.7 | E13: 515658175.2 | F13: 22.99850095 | G13: 23528515 | H13: 366990367.2 | I13: 490629813.7 | J13: 20.85256183
B14: DRUGS FOR ACID RELATED DISORDERS | C14: 15372871 | D14: 357864092 | E14: 459139521.3 | F14: 29.8668688 | G14: 16781964 | H14: 353745219.5 | I14: 466678554.5 | J14: 27.80833963
B15: PSYCHOANALEPTICS | C15: 15065177 | D15: 356957195.1 | E15: 504547914 | F15: 33.49100472 | G15: 16007537 | H15: 325264390.8 | I15: 470299151.6 | J15: 29.37985723
B16: ANTINEOPLASTIC AGENTS | C16: 377123 | D16: 256117682.5 | E16: 261440407.7 | F16: 693.2497029 | G16: 420398 | H16: 292243145.2 | I16: 298386809.7 | J16: 709.7721913
B17: ANTITHROMBOTIC AGENTS | C17: 7467473 | D17: 231449255 | E17: 286269873.9 | F17: 38.33557535 | G17: 7966328 | H17: 259582620.6 | I17: 315746731.3 | J17: 39.63516582
B18: ENDOCRINE THERAPY | C18: 691158 | D18: 169785346.6 | E18: 180309979.4 | F18: 260.8809844 | G18: 757427 | H18: 204322425.4 | I18: 215950938.9 | J18: 285.1112238
B19: DRUGS FOR TREATMENT OF BONE DISEASES | C19: 3081903 | D19: 167015982.1 | E19: 191508655.7 | F19: 62.13974148 | G19: 3050279 | H19: 184944996.6 | I19: 210363981.4 | J19: 68.96548852
B20: ANTIVIRALS FOR SYSTEMIC USE | C20: 668722 | D20: 106535582.4 | E20: 123436848 | F20: 184.5861928 | G20: 733126 | H20: 104910116 | I20: 123632168.7 | J20: 168.6369993
B21: ANTIBACTERIALS FOR SYSTEMIC USE | C21: 12525990 | D21: 105966478.2 | E21: 171478136.1 | F21: 13.68978708 | G21: 12918676 | H21: 102838626.3 | I21: 170546180.8 | J21: 13.20152164
B22: ANTIEPILEPTICS | C22: 2115148 | D22: 100742680.8 | E22: 122705969.2 | F22: 58.01294717 | G22: 2270594 | H22: 102334175 | I22: 126073485.2 | J22: 55.52445095
B24: Change, years ending: | D24: Jun 2013 to Jun 2014 | H24: Jun 2013 to Jun 2014
D25: Change | H25: Percentage Change
B26: LIPID MODIFYING AGENTS | C26: -65878 | D26: -156005821.5 | E26: -194540614.1 | F26: -7.648410856 | G26: -0.2630491913 | H26: -15.16600863 | I26: -14.6303125 | J26: -14.40515595
B27: IMMUNOSUPPRESSANTS | C27: 111301 | D27: 146197374.1 | E27: 148975027.5 | F27: 64.56936532 | G27: 15.70282564 | H27: 24.46958443 | I27: 24.36245537 | J27: 7.484371873
B28: DRUGS USED IN DIABETES | C28: 762555 | D28: 50691566.7 | E28: 60392361.1 | F28: 1.165442507 | G28: 9.7119262 | H28: 11.00491653 | I28: 11.64830981 | J28: 1.764970933
B29: DRUGS FOR OBSTRUCTIVE AIRWAY DISEASES | C29: 692614 | D29: 30801664.79 | E29: 39509100.59 | F29: 0.2940013047 | G29: 6.472447937 | H29: 6.922214265 | I29: 7.072041338 | J29: 0.5631441865
B30: OPHTHALMOLOGICALS | C30: 314150 | D30: -40177137.76 | E30: -39197916.16 | F30: -7.915985707 | G30: 4.219087412 | H30: -8.35210284 | I30: -7.439232878 | J30: -11.18635806
B31: ANALGESICS | C31: 3223506 | D31: 89290496.17 | E31: 114647195.2 | F31: 1.431342126 | G31: 20.87351972 | H31: 25.9678246 | I31: 27.21617432 | J31: 5.247348317
B32: PSYCHOLEPTICS | C32: 378526 | D32: -14281440.4 | E32: -11504019.6 | F32: -4.111121858 | G32: 4.758613442 | H32: -3.339585954 | I32: -2.405844641 | J32: -6.83901576
B33: AGENTS ACTING ON THE RENIN-ANGIOTENSIN SYSTEM | C33: 1107133 | D33: -23601195.48 | E33: -25028361.48 | F33: -2.145939122 | G33: 4.937844599 | H33: -6.042423271 | I33: -4.853672973 | J33: -9.330778242
B34: DRUGS FOR ACID RELATED DISORDERS | C34: 1409093 | D34: -4118872.48 | E34: 7539033.22 | F34: -2.058529177 | G34: 9.166101765 | H34: -1.150959979 | I34: 1.641991785 | J34: -6.892350151
B35: PSYCHOANALEPTICS | C35: 942360 | D35: -31692804.28 | E35: -34248762.38 | F35: -4.111147492 | G35: 6.255220234 | H35: -8.878600772 | I35: -6.788009905 | J35: -12.2753782
B36: ANTINEOPLASTIC AGENTS | C36: 43275 | D36: 36125462.66 | E36: 36946401.96 | F36: 16.52248837 | G36: 11.475036 | H36: 14.10502481 | I36: 14.13186366 | J36: 2.383338687
B37: ANTITHROMBOTIC AGENTS | C37: 498855 | D37: 28133365.59 | E37: 29476857.39 | F37: 1.29959047 | G37: 6.680372329 | H37: 12.15530618 | I37: 10.29687721 | J37: 3.390037733
B38: ENDOCRINE THERAPY | C38: 66269 | D38: 34537078.81 | E38: 35640959.51 | F38: 24.23023942 | G38: 9.588111546 | H38: 20.34161339 | I38: 19.76649303 | J38: 9.287851883
B39: DRUGS FOR TREATMENT OF BONE DISEASES | C39: -31624 | D39: 17929014.47 | E39: 18855325.67 | F39: 6.82574704 | G39: -1.026119252 | H39: 10.73490947 | I39: 9.845678046 | J39: 10.98451148
B40: ANTIVIRALS FOR SYSTEMIC USE | C40: 64404 | D40: -1625466.42 | E40: 195320.68 | F40: -15.94919357 | G40: 9.630907911 | H40: -1.525749785 | I40: 0.1582353107 | J40: -8.640512772
B41: ANTIBACTERIALS FOR SYSTEMIC USE | C41: 392686 | D41: -3127851.96 | E41: -931955.36 | F41: -0.4882654454 | G41: 3.134969771 | H41: -2.951737203 | I41: -0.5434834907 | J41: -3.56664017
B42: ANTIEPILEPTICS | C42: 155446 | D42: 1591494.18 | E42: 3367515.98 | F42: -2.488496229 | G42: 7.349178403 | H42: 1.579761594 | I42: 2.744378291 | J42: -4.289553195
B43: Total Cost includes cost to the patient and cost to the government
B44: Average Price is "Total Cost" divided by "Volume"

Sheet Table 7(b)
A1: 8 | B1: Table 7(b): Significant drug groups (incl Drs bag) by highest volume, year end: Jun 2013 to year end: Jun 2014 - Section 85 Only
D4: Year ending Jun 2013 | H4: Year ending Jun 2014
B5: ATC Group Level 2 | C5: Volume | D5: Govt Cost $ | E5: Total Cost $ | F5: Ave Price $ | G5: Volume | H5: Govt Cost $ | I5: Total Cost $ | J5: Ave Price $
B6: LIPID MODIFYING AGENTS | C6: 25043985 | D6: 1028654443 | E6: 1329709219 | F6: 53.09495351 | G6: 24978107 | H6: 872648621.4 | I6: 1135168605 | J6: 45.44654266
B7: AGENTS ACTING ON THE RENIN-ANGIOTENSIN SYSTEM | C7: 22421382 | D7: 390591562.7 | E7: 515658175.2 | F7: 22.99850095 | G7: 23528515 | H7: 366990367.2 | I7: 490629813.7 | J7: 20.85256183
B8: ANALGESICS | C8: 15443040 | D8: 343850505.5 | E8: 421246549.2 | F8: 27.2774369 | G8: 18666546 | H8: 433141001.7 | I8: 535893744.4 | J8: 28.70877903
B9: DRUGS FOR ACID RELATED DISORDERS | C9: 15372871 | D9: 357864092 | E9: 459139521.3 | F9: 29.8668688 | G9: 16781964 | H9: 353745219.5 | I9: 466678554.5 | J9: 27.80833963
B10: PSYCHOANALEPTICS | C10: 15065177 | D10: 356957195.1 | E10: 504547914 | F10: 33.49100472 | G10: 16007537 | H10: 325264390.8 | I10: 470299151.6 | J10: 29.37985723
B11: ANTIBACTERIALS FOR SYSTEMIC USE | C11: 12525990 | D11: 105966478.2 | E11: 171478136.1 | F11: 13.68978708 | G11: 12918676 | H11: 102838626.3 | I11: 170546180.8 | J11: 13.20152164
B12: DRUGS FOR OBSTRUCTIVE AIRWAY DISEASES | C12: 10700959 | D12: 444968381.7 | E12: 558666143.3 | F12: 52.20710997 | G12: 11393573 | H12: 475770046.4 | I12: 598175243.9 | J12: 52.50111127
B13: DRUGS USED IN DIABETES | C13: 7851738 | D13: 460626544 | E13: 518464585 | F13: 66.03182442 | G13: 8614293 | H13: 511318110.7 | I13: 578856946.1 | J13: 67.19726692
B14: PSYCHOLEPTICS | C14: 7954544 | D14: 427641048.9 | E14: 478169679.1 | F14: 60.11277065 | G14: 8333070 | H14: 413359608.5 | I14: 466665659.5 | J14: 56.00164879
B15: ANTITHROMBOTIC AGENTS | C15: 7467473 | D15: 231449255 | E15: 286269873.9 | F15: 38.33557535 | G15: 7966328 | H15: 259582620.6 | I15: 315746731.3 | J15: 39.63516582
B16: OPHTHALMOLOGICALS | C16: 7445923 | D16: 481042182.2 | E16: 526908040.2 | F16: 70.76463726 | G16: 7760073 | H16: 440865044.4 | I16: 487710124 | J16: 62.84865155
B17: CALCIUM CHANNEL BLOCKERS | C17: 6734328 | D17: 70424429.08 | E17: 101022715.1 | F17: 15.00115751 | G17: 6921585 | H17: 61823496.99 | I17: 93999733.99 | J17: 13.58066599
B18: BETA BLOCKING AGENTS | C18: 5993260 | D18: 85735890.41 | E18: 120264656.3 | F18: 20.06665092 | G18: 6353192 | H18: 86749001.84 | I18: 123764156.6 | J18: 19.4806259
B19: ANTIINFLAMMATORY AND ANTIRHEUMATIC PRODUCTS | C19: 4053367 | D19: 65430104.9 | E19: 84982622.2 | F19: 20.96593331 | G19: 4170078 | H19: 65457330.65 | I19: 85445509.95 | J19: 20.4901467
B20: CARDIAC THERAPY | C20: 3031004 | D20: 58669588.87 | E20: 75081607.97 | F20: 24.77120056 | G20: 3164996 | H20: 60895947.12 | I20: 78866656.92 | J20: 24.91840651
B21: DRUGS FOR TREATMENT OF BONE DISEASES | C21: 3081903 | D21: 167015982.1 | E21: 191508655.7 | F21: 62.13974148 | G21: 3050279 | H21: 184944996.6 | I21: 210363981.4 | J21: 68.96548852
B22: DIURETICS | C22: 2199924 | D22: 18775297.11 | E22: 27762488.11 | F22: 12.61974873 | G22: 2326068 | H22: 20241193.7 | I22: 30004119.3 | J22: 12.8990723
B24: Change, years ending: | D24: Jun 2013 to Jun 2014 | H24: Jun 2013 to Jun 2014
D25: Change | H25: Percentage Change
B26: LIPID MODIFYING AGENTS | C26: -65878 | D26: -156005821.5 | E26: -194540614.1 | F26: -7.648410856 | G26: -0.2630491913 | H26: -15.16600863 | I26: -14.6303125 | J26: -14.40515595
B27: AGENTS ACTING ON THE RENIN-ANGIOTENSIN SYSTEM | C27: 1107133 | D27: -23601195.48 | E27: -25028361.48 | F27: -2.145939122 | G27: 4.937844599 | H27: -6.042423271 | I27: -4.853672973 | J27: -9.330778242
B28: ANALGESICS | C28: 3223506 | D28: 89290496.17 | E28: 114647195.2 | F28: 1.431342126 | G28: 20.87351972 | H28: 25.9678246 | I28: 27.21617432 | J28: 5.247348317
B29: DRUGS FOR ACID RELATED DISORDERS | C29: 1409093 | D29: -4118872.48 | E29: 7539033.22 | F29: -2.058529177 | G29: 9.166101765 | H29: -1.150959979 | I29: 1.641991785 | J29: -6.892350151
B30: PSYCHOANALEPTICS | C30: 942360 | D30: -31692804.28 | E30: -34248762.38 | F30: -4.111147492 | G30: 6.255220234 | H30: -8.878600772 | I30: -6.788009905 | J30: -12.2753782
B31: ANTIBACTERIALS FOR SYSTEMIC USE | C31: 392686 | D31: -3127851.96 | E31: -931955.36 | F31: -0.4882654454 | G31: 3.134969771 | H31: -2.951737203 | I31: -0.5434834907 | J31: -3.56664017
B32: DRUGS FOR OBSTRUCTIVE AIRWAY DISEASES | C32: 692614 | D32: 30801664.79 | E32: 39509100.59 | F32: 0.2940013047 | G32: 6.472447937 | H32: 6.922214265 | I32: 7.072041338 | J32: 0.5631441865
B33: DRUGS USED IN DIABETES | C33: 762555 | D33: 50691566.7 | E33: 60392361.1 | F33: 1.165442507 | G33: 9.7119262 | H33: 11.00491653 | I33: 11.64830981 | J33: 1.764970933
B34: PSYCHOLEPTICS | C34: 378526 | D34: -14281440.4 | E34: -11504019.6 | F34: -4.111121858 | G34: 4.758613442 | H34: -3.339585954 | I34: -2.405844641 | J34: -6.83901576
B35: ANTITHROMBOTIC AGENTS | C35: 498855 | D35: 28133365.59 | E35: 29476857.39 | F35: 1.29959047 | G35: 6.680372329 | H35: 12.15530618 | I35: 10.29687721 | J35: 3.390037733
B36: OPHTHALMOLOGICALS | C36: 314150 | D36: -40177137.76 | E36: -39197916.16 | F36: -7.915985707 | G36: 4.219087412 | H36: -8.35210284 | I36: -7.439232878 | J36: -11.18635806
B37: CALCIUM CHANNEL BLOCKERS | C37: 187257 | D37: -8600932.09 | E37: -7022981.09 | F37: -1.420491527 | G37: 2.780633792 | H37: -12.21299512 | I37: -6.951883133 | J37: -9.469212794
B38: BETA BLOCKING AGENTS | C38: 359932 | D38: 1013111.43 | E38: 3499500.33 | F38: -0.5860250202 | G38: 6.005612972 | H38: 1.181665491 | I38: 2.909832728 | J38: -2.920392757
B39: ANTIINFLAMMATORY AND ANTIRHEUMATIC PRODUCTS | C39: 116711 | D39: 27225.75 | E39: 462887.75 | F39: -0.4757866142 | G39: 2.879359308 | H39: 0.04161043306 | I39: 0.5446851815 | J39: -2.269331907
B40: CARDIAC THERAPY | C40: 133992 | D40: 2226358.25 | E40: 3785048.95 | F40: 0.1472059507 | G40: 4.420713401 | H40: 3.794739818 | I40: 5.041246521 | J40: 0.5942624797
B41: DRUGS FOR TREATMENT OF BONE DISEASES | C41: -31624 | D41: 17929014.47 | E41: 18855325.67 | F41: 6.82574704 | G41: -1.026119252 | H41: 10.73490947 | I41: 9.845678046 | J41: 10.98451148
B42: DIURETICS | C42: 126144 | D42: 1465896.59 | E42: 2241631.19 | F42: 0.2793235649 | G42: 5.734016266 | H42: 7.80758132 | I42: 8.074316614 | J42: 2.21338452
B43: Total Cost includes cost to the patient and cost to the government
B44: Average Price is "Total Cost" divided by "Volume"

Sheet Table 8(a)
A1: 9 | B1: Table 8(a):Significant drugs (incl Drs bag)-sorted by highest change to Government cost, year end: Jun 2013 to year end: Jun 2014 - Section 85 Only
E4: Year ending Jun 2013 | I4: Year ending Jun 2014 | L4: Change
B5: Rank | C5: Drug | D5: Volume | E5: Govt Cost $ | F5: Total Cost $ | G5: Ave Price $ | H5: Volume | I5: Govt Cost $ | J5: Total Cost $ | K5: Ave Price $ | L5: Govt Cost $ | M5: %
B6: 1 | C6: Aflibercept | D6: 30929 | E6: 60508006.94 | F6: 60851741.84 | G6: 1967.465545 | H6: 97941 | I6: 152683617.4 | J6: 153737594.2 | K6: 1569.695982 | L6: 92175610.51 | M6: 152.3362199
B7: 2 | C7: Pregabalin | D7: 140440 | E7: 5931397.72 | F7: 7698017.62 | G7: 54.81356893 | H7: 1603355 | I7: 71343720.46 | J7: 88883546.66 | K7: 55.43597435 | L7: 65412322.74 | M7: 1102.814646
B8: 3 | C8: Adalimumab | D8: 129313 | E8: 229412115.8 | F8: 232369891.6 | G8: 1796.95693 | H8: 153818 | I8: 272717486.1 | J8: 276360731.3 | K8: 1796.673544 | L8: 43305370.31 | M8: 18.87667099
B9: 4 | C9: Fingolimod | D9: 34880 | E9: 79919784.07 | F9: 80719425.77 | G9: 2314.20372 | H9: 50914 | I9: 116603421.7 | J9: 117808297.5 | K9: 2313.868434 | L9: 36683637.59 | M9: 45.90057145
B10: 5 | C10: Rivaroxaban | D10: 24208 | E10: 2433136.21 | F10: 2874523.01 | G10: 118.7426888 | H10: 406640 | I10: 33170737.52 | J10: 38450655.92 | K10: 94.5569937 | L10: 30737601.31 | M10: 1263.291434
B11: 6 | C11: Abiraterone | D11: 0 | E11: 0 | F11: 0 | G11: 0 | H11: 8383 | I11: 30330422.12 | J11: 30412275.92 | K11: 3627.851118 | L11: 30330422.12 | M11: New
B12: 7 | C12: Denosumab | D12: 86504 | E12: 31674216.1 | F12: 32643609.3 | G12: 377.3653161 | H12: 169093 | I12: 58516718.03 | J12: 60377805.23 | K12: 357.0686263 | L12: 26842501.93 | M12: 84.74559195
B13: 8 | C13: Esomeprazole | D13: 6103349 | E13: 177672121.9 | F13: 231591534.5 | G13: 37.9449929 | H13: 6932449 | I13: 201734847.4 | J13: 265260640 | K13: 38.26362661 | L13: 24062725.57 | M13: 13.54333213
B14: 9 | C14: Insulin Glargine | D14: 285591 | E14: 117507990.9 | F14: 121429439.4 | G14: 425.1865057 | H14: 325853 | I14: 133915261.2 | J14: 138449167.8 | K14: 424.8822867 | L14: 16407270.31 | M14: 13.96268474
B15: 10 | C15: Etanercept | D15: 78790 | E15: 138332029.2 | F15: 139930070.3 | G15: 1775.987693 | H15: 87882 | I15: 154192858.2 | J15: 156044849.7 | K15: 1775.61787 | L15: 15860829 | M15: 11.46576762
B16: 11 | C16: Oxycodone + Naloxone | D16: 331371 | E16: 13573742.96 | F16: 15965648.46 | G16: 48.18058448 | H16: 717141 | I16: 28962831.31 | J16: 34019970.71 | K16: 47.43832902 | L16: 15389088.35 | M16: 113.3739485
B17: 12 | C17: Golimumab | D17: 24099 | E17: 42300533.26 | F17: 42838720.46 | G17: 1777.614028 | H17: 32671 | I17: 57346733.45 | J17: 58104770.65 | K17: 1778.481548 | L17: 15046200.19 | M17: 35.5697648
B18: 13 | C18: Dabigatran | D18: 185 | E18: 17177.53 | F18: 19220.73 | G18: 103.8958378 | H18: 173883 | I18: 14968357.3 | J18: 16676430.5 | K18: 95.90604314 | L18: 14951179.77 | M18: 87039.17135
B19: 14 | C19: Paliperidone | D19: 108900 | E19: 34926455.41 | F19: 36057070.41 | G19: 331.1025749 | H19: 150161 | I19: 48611153.83 | J19: 50151928.63 | K19: 333.9877107 | L19: 13684698.42 | M19: 39.18146935
B20: 15 | C20: Abatacept | D20: 9751 | E20: 16924588.35 | F20: 17088607.95 | G20: 1752.497995 | H20: 17045 | I20: 29598246.7 | J20: 29885125.4 | K20: 1753.307445 | L20: 12673658.35 | M20: 74.88311141
B21: 16 | C21: Ustekinumab | D21: 4509 | E21: 28221014 | F21: 28342804.3 | G21: 6285.829297 | H21: 6496 | I21: 40396845 | J21: 40575336.3 | K21: 6246.203248 | L21: 12175831 | M21: 43.14455533
B22: 17 | C22: Dimethyl Fumarate | D22: 0 | E22: 0 | F22: 0 | G22: 0 | H22: 7483 | I22: 12117194.96 | J22: 12301227.16 | K22: 1643.889771 | L22: 12117194.96 | M22: New
B23: 18 | C23: Dabrafenib | D23: 0 | E23: 0 | F23: 0 | G23: 0 | H23: 1373 | I23: 12007288.99 | J23: 12034241.39 | K23: 8764.924538 | L23: 12007288.99 | M23: New
B24: 19 | C24: Ezetimibe + Simvastatin | D24: 864999 | E24: 85971265.66 | F24: 97643047.86 | G24: 112.8822668 | H24: 985241 | I24: 96990981.75 | J24: 110571042.5 | K24: 112.2274067 | L24: 11019716.09 | M24: 12.81790608
B25: 20 | C25: Dasatinib | D25: 3971 | E25: 20200109.61 | F25: 20278640.61 | G25: 5106.683609 | H25: 5937 | I25: 30126594.89 | J25: 30255968.89 | K25: 5096.17128 | L25: 9926485.28 | M25: 49.14074959
B26: 21 | C26: Paracetamol | D26: 5280896 | E26: 59712294.75 | F26: 81006633.25 | G26: 15.33956231 | H26: 6040540 | I26: 69531309.55 | J26: 94554945.35 | K26: 15.6533928 | L26: 9819014.8 | M26: 16.44387448
B27: 22 | C27: Tiotropium | D27: 1788888 | E27: 119232271.7 | F27: 132748606.6 | G27: 74.2073325 | H27: 1959807 | I27: 129001764.4 | J27: 144207429.5 | K27: 73.58246475 | L27: 9769492.67 | M27: 8.193664793
B28: 23 | C28: Mesalazine | D28: 229844 | E28: 55314801.75 | F28: 60752774.55 | G28: 264.3217772 | H28: 265895 | I28: 65038130.74 | J28: 71490104.44 | K28: 268.8659224 | L28: 9723328.99 | M28: 17.57816838
B29: 24 | C29: Pazopanib | D29: 1069 | E29: 4727762.77 | F29: 4744467.07 | G29: 4438.229252 | H29: 3252 | I29: 14223323.31 | J29: 14272042.31 | K29: 4388.696897 | L29: 9495560.54 | M29: 200.8468064
B30: 25 | C30: Fluticasone + Salmeterol | D30: 3073132 | E30: 172971038 | F30: 218775652.3 | G30: 71.18979995 | H30: 3232265 | I30: 182364895 | J30: 231096088.1 | K30: 71.49664032 | L30: 9393857.01 | M30: 5.430884337
B31: 26 | C31: Sitagliptin + Metformin | D31: 476482 | E31: 38181160.35 | F31: 45590268.05 | G31: 95.680987 | H31: 640994 | I31: 47303750.03 | J31: 57426616.43 | K31: 89.58994379 | L31: 9122589.68 | M31: 23.89290843
B32: 27 | C32: Ticagrelor | D32: 19631 | E32: 2520491.18 | F32: 2891498.88 | G32: 147.2924904 | H32: 85839 | I32: 11091489.69 | J32: 12717289.69 | K32: 148.1528174 | L32: 8570998.51 | M32: 340.0527079
B33: 28 | C33: Desvenlafaxine | D33: 1473521 | E33: 45534522.43 | F33: 75782152.43 | G33: 51.42929923 | H33: 1810218 | I33: 53431087.19 | J33: 90969281.29 | K33: 50.25321883 | L33: 7896564.76 | M33: 17.34192946
B34: 29 | C34: Linagliptin | D34: 87767 | E34: 7404360.13 | F34: 8489067.33 | G34: 96.72276972 | H34: 186818 | I34: 14711183.32 | J34: 16967018.92 | K34: 90.82111424 | L34: 7306823.19 | M34: 98.6827094
B35: 30 | C35: Ezetimibe | D35: 1117100 | E35: 65263922.63 | F35: 79521187.33 | G35: 71.1853794 | H35: 1242037 | I35: 72253440.11 | J35: 88511025.01 | K35: 71.2627925 | L35: 6989517.48 | M35: 10.70961903
B36: 31 | C36: Budesonide + Eformoterol | D36: 1582958 | E36: 80750619.58 | F36: 107049947.7 | G36: 67.62652432 | H36: 1710547 | I36: 87495064.69 | J36: 116429457.2 | K36: 68.06562883 | L36: 6744445.11 | M36: 8.352189921
B37: 32 | C37: Perindopril + Amlodipine | D37: 765130 | E37: 18646424.8 | F37: 26977702.5 | G37: 35.25897887 | H37: 1044909 | I37: 25320207.34 | J37: 36940004.04 | K37: 35.35236469 | L37: 6673782.54 | M37: 35.79121795
B38: 33 | C38: Buprenorphine | D38: 1149205 | E38: 52913146.84 | F38: 59872228.14 | G38: 52.09882322 | H38: 1288119 | I38: 59577004 | J38: 67488346 | K38: 52.39294351 | L38: 6663857.16 | M38: 12.5939536
B39: 34 | C39: Insulin Aspart | D39: 205520 | E39: 48397624.13 | F39: 51833299.03 | G39: 252.20562 | H39: 233285 | I39: 54953855.26 | J39: 58922272.46 | K39: 252.5763442 | L39: 6556231.13 | M39: 13.54659707
B40: 35 | C40: Apixaban | D40: 876 | E40: 148549.71 | F40: 167092.21 | G40: 190.744532 | H40: 66958 | I40: 6682645.39 | J40: 7399921.89 | K40: 110.515874 | L40: 6534095.68 | M40: 4398.592013
B41: Total Cost includes cost to the patient and cost to the government
B42: Average Price is "Total Cost" divided by "Volume"

Sheet Table 8(b)
A1: 10 | B1: Table 8(b):Significant Drugs (incl Drs Bag)-Sorted by highest volume change, year end: Jun 2013 to year end: Jun 2014 - Section 85 Only
E4: Year ending Jun 2013 | I4: Year ending Jun 2014 | L4: Change
B5: Rank | C5: Drug | D5: Volume | E5: Govt Cost $ | F5: Total Cost $ | G5: Ave Price $ | H5: Volume | I5: Govt Cost $ | J5: Total Cost $ | K5: Ave Price $ | L5: Volume | M5: %
B6: 1 | C6: Pregabalin | D6: 140440 | E6: 5931397.72 | F6: 7698017.62 | G6: 54.81356893 | H6: 1603355 | I6: 71343720.46 | J6: 88883546.66 | K6: 55.43597435 | L6: 1462915 | M6: 1041.66548
B7: 2 | C7: Esomeprazole | D7: 6103349 | E7: 177672121.9 | F7: 231591534.5 | G7: 37.9449929 | H7: 6932449 | I7: 201734847.4 | J7: 265260640 | K7: 38.26362661 | L7: 829100 | M7: 13.58434525
B8: 3 | C8: Paracetamol | D8: 5280896 | E8: 59712294.75 | F8: 81006633.25 | G8: 15.33956231 | H8: 6040540 | I8: 69531309.55 | J8: 94554945.35 | K8: 15.6533928 | L8: 759644 | M8: 14.38475592
B9: 4 | C9: Pantoprazole | D9: 3691363 | E9: 60654745.58 | F9: 78900993.28 | G9: 21.37448777 | H9: 4094219 | I9: 45932933.24 | J9: 64965764.54 | K9: 15.86768186 | L9: 402856 | M9: 10.91347559
B10: 5 | C10: Oxycodone + Naloxone | D10: 331371 | E10: 13573742.96 | F10: 15965648.46 | G10: 48.18058448 | H10: 717141 | I10: 28962831.31 | J10: 34019970.71 | K10: 47.43832902 | L10: 385770 | M10: 116.416343
B11: 6 | C11: Rivaroxaban | D11: 24208 | E11: 2433136.21 | F11: 2874523.01 | G11: 118.7426888 | H11: 406640 | I11: 33170737.52 | J11: 38450655.92 | K11: 94.5569937 | L11: 382432 | M11: 1579.775281
B12: 7 | C12: Desvenlafaxine | D12: 1473521 | E12: 45534522.43 | F12: 75782152.43 | G12: 51.42929923 | H12: 1810218 | I12: 53431087.19 | J12: 90969281.29 | K12: 50.25321883 | L12: 336697 | M12: 22.84982705
B13: 8 | C13: Rosuvastatin | D13: 7485726 | E13: 302362304.3 | F13: 418681081.4 | G13: 55.93059128 | H13: 7806237 | I13: 287914893.4 | J13: 392284843.9 | K13: 50.25274584 | L13: 320511 | M13: 4.281628796
B14: 9 | C14: Perindopril + Amlodipine | D14: 765130 | E14: 18646424.8 | F14: 26977702.5 | G14: 35.25897887 | H14: 1044909 | I14: 25320207.34 | J14: 36940004.04 | K14: 35.35236469 | L14: 279779 | M14: 36.56620444
B15: 10 | C15: Metformin | D15: 3368028 | E15: 32770592.23 | F15: 47197155.43 | G15: 14.01329069 | H15: 3591938 | I15: 31498249.13 | J15: 47265706.23 | K15: 13.15883131 | L15: 223910 | M15: 6.648103876
B16: 11 | C16: Perindopril | D16: 3712467 | E16: 43688032.68 | F16: 61495985.98 | G16: 16.56472259 | H16: 3933326 | I16: 39508138.46 | J16: 58830008.16 | K16: 14.95680962 | L16: 220859 | M16: 5.949116854
B17: 12 | C17: Dabigatran | D17: 185 | E17: 17177.53 | F17: 19220.73 | G17: 103.8958378 | H17: 173883 | I17: 14968357.3 | J17: 16676430.5 | K17: 95.90604314 | L17: 173698 | M17: 93890.81081
B18: 13 | C18: Tiotropium | D18: 1788888 | E18: 119232271.7 | F18: 132748606.6 | G18: 74.2073325 | H18: 1959807 | I18: 129001764.4 | J18: 144207429.5 | K18: 73.58246475 | L18: 170919 | M18: 9.554483008
B19: 14 | C19: Telmisartan | D19: 1811321 | E19: 29535341.28 | F19: 38442062.98 | G19: 21.2232194 | H19: 1976841 | I19: 27886390.57 | J19: 37828645.17 | K19: 19.13590682 | L19: 165520 | M19: 9.138082096
B20: 15 | C20: Sitagliptin + Metformin | D20: 476482 | E20: 38181160.35 | F20: 45590268.05 | G20: 95.680987 | H20: 640994 | I20: 47303750.03 | J20: 57426616.43 | K20: 89.58994379 | L20: 164512 | M20: 34.52638295
B21: 16 | C21: Cephalexin | D21: 2585928 | E21: 11627927.37 | F21: 24375451.77 | G21: 9.426191205 | H21: 2745920 | I21: 11516255.92 | J21: 25282282.82 | K21: 9.207217552 | L21: 159992 | M21: 6.187024542
B22: 17 | C22: Fluticasone + Salmeterol | D22: 3073132 | E22: 172971038 | F22: 218775652.3 | G22: 71.18979995 | H22: 3232265 | I22: 182364895 | J22: 231096088.1 | K22: 71.49664032 | L22: 159133 | M22: 5.178202563
B23: 18 | C23: Mirtazapine | D23: 1225584 | E23: 24090526.7 | F23: 30699545.8 | G23: 25.04891203 | H23: 1379320 | I23: 20681149.36 | J23: 27459628.66 | K23: 19.90809142 | L23: 153736 | M23: 12.54389744
B24: 19 | C24: Escitalopram | D24: 1339792 | E24: 16810747.38 | F24: 24009744.78 | G24: 17.92050167 | H24: 1490674 | I24: 16336673.07 | J24: 23928680.87 | K24: 16.05225614 | L24: 150882 | M24: 11.26159882
B25: 20 | C25: Oxycodone | D25: 2583905 | E25: 83617802.23 | F25: 99134138.13 | G25: 38.36601505 | H25: 2733368 | I25: 83857687.11 | J25: 99956916.31 | K25: 36.56913972 | L25: 149463 | M25: 5.784384488
B26: 21 | C26: Tramadol | D26: 1715329 | E26: 18019753.08 | F26: 25392298.58 | G26: 14.80316521 | H26: 1864352 | I26: 16304512.89 | J26: 24472578.29 | K26: 13.12658677 | L26: 149023 | M26: 8.687721131
B27: 22 | C27: Salbutamol | D27: 2774691 | E27: 29584823.14 | F27: 41597832.74 | G27: 14.99187936 | H27: 2921958 | I27: 30397538.13 | J27: 43232320.23 | K27: 14.79566792 | L27: 147267 | M27: 5.307509917
B28: 23 | C28: Macrogol-3350 + Sodium Chloride + Potassium Chloride + Bicarbonate | D28: 909752 | E28: 15577719.84 | F28: 19216870.74 | G28: 21.12319703 | H28: 1050154 | I28: 18120148.06 | J28: 22398548.66 | K28: 21.32882288 | L28: 140402 | M28: 15.43299712
B29: 24 | C29: Buprenorphine | D29: 1149205 | E29: 52913146.84 | F29: 59872228.14 | G29: 52.09882322 | H29: 1288119 | I29: 59577004 | J29: 67488346 | K29: 52.39294351 | L29: 138914 | M29: 12.08783463
B30: 25 | C30: Rabeprazole | D30: 1905573 | E30: 56192470.52 | F30: 66831876.72 | G30: 35.07180083 | H30: 2043377 | I30: 51331593.87 | J30: 62574966.77 | K30: 30.62330973 | L30: 137804 | M30: 7.231630591
B31: 26 | C31: Amoxycillin + Clavulanic Acid | D31: 1933782 | E31: 12994967.04 | F31: 22605370.54 | G31: 11.68972022 | H31: 2068583 | I31: 12005053.74 | J31: 22377191.24 | K31: 10.81764243 | L31: 134801 | M31: 6.9708478
B32: 27 | C32: Sertraline | D32: 1644680 | E32: 20049243.64 | F32: 28074772.74 | G32: 17.07005177 | H32: 1777574 | I32: 15336053.22 | J32: 24139625.52 | K32: 13.58009597 | L32: 132894 | M32: 8.080234453
B33: 28 | C33: Dutasteride + Tamsulosin | D33: 196631 | E33: 6032142.02 | F33: 6937206.42 | G33: 35.28032925 | H33: 329437 | I33: 10131219.28 | J33: 11657798.48 | K33: 35.38703449 | L33: 132806 | M33: 67.54072349
B34: 29 | C34: Amlodipine | D34: 2121969 | E34: 17374706.81 | F34: 27204994.31 | G34: 12.82063702 | H34: 2250517 | I34: 12697953.5 | J34: 23344764.9 | K34: 10.37306757 | L34: 128548 | M34: 6.057958434
B35: 30 | C35: Bisoprolol | D35: 752946 | E35: 31790414.33 | F35: 39329126.83 | G35: 52.23366195 | H35: 880573 | I35: 34060179.88 | J35: 42994850.78 | K35: 48.8259926 | L35: 127627 | M35: 16.95035235
B36: 31 | C36: Budesonide + Eformoterol | D36: 1582958 | E36: 80750619.58 | F36: 107049947.7 | G36: 67.62652432 | H36: 1710547 | I36: 87495064.69 | J36: 116429457.2 | K36: 68.06562883 | L36: 127589 | M36: 8.060163315
B37: 32 | C37: Ezetimibe | D37: 1117100 | E37: 65263922.63 | F37: 79521187.33 | G37: 71.1853794 | H37: 1242037 | I37: 72253440.11 | J37: 88511025.01 | K37: 71.2627925 | L37: 124937 | M37: 11.18404798
B38: 33 | C38: Irbesartan | D38: 2890738 | E38: 51069723.14 | F38: 64861967.04 | G38: 22.43785741 | H38: 3014076 | I38: 46083932.5 | J38: 60780857.5 | K38: 20.16566852 | L38: 123338 | M38: 4.266661316
B39: 34 | C39: Metoprolol Tartrate | D39: 1474112 | E39: 8387753.45 | F39: 14824046.45 | G39: 10.05625519 | H39: 1597391 | I39: 8505876.8 | J39: 15651156.8 | K39: 9.797949782 | L39: 123279 | M39: 8.362933074
B40: 35 | C40: Ezetimibe + Simvastatin | D40: 864999 | E40: 85971265.66 | F40: 97643047.86 | G40: 112.8822668 | H40: 985241 | I40: 96990981.75 | J40: 110571042.5 | K40: 112.2274067 | L40: 120242 | M40: 13.90082532
B41: Total Cost includes cost to the patient and cost to the government
B42: Average Price is "Total Cost" divided by "Volume"

Sheet Table 9(a)
A1: Table 9(a):Highest Govt Cost PBS Drugs (incl Drs Bag) by Generic Name, year end: Jun 2014 - Section 85 Only
A2: (total for all forms and strengths for each drug)
A4: Rank | B4: Drug | C4: Volume | D4: Govt Cost $ | E4: Total Cost $ | F4: Ave Price $
A5: 1 | B5: Rosuvastatin | C5: 7806237 | D5: 287914893.4 | E5: 392284843.9 | F5: 50.25274584
A6: 2 | B6: Atorvastatin | C6: 8912377 | D6: 279187250 | E6: 357186086.4 | F6: 40.07753334
A7: 3 | B7: Adalimumab | C7: 153818 | D7: 272717486.1 | E7: 276360731.3 | F7: 1796.673544
A8: 4 | B8: Esomeprazole | C8: 6932449 | D8: 201734847.4 | E8: 265260640 | F8: 38.26362661
A9: 5 | B9: Fluticasone + Salmeterol | C9: 3232265 | D9: 182364895 | E9: 231096088.1 | F9: 71.49664032
A10: 6 | B10: Etanercept | C10: 87882 | D10: 154192858.2 | E10: 156044849.7 | F10: 1775.61787
A11: 7 | B11: Aflibercept | C11: 97941 | D11: 152683617.4 | E11: 153737594.2 | F11: 1569.695982
A12: 8 | B12: Ranibizumab | C12: 96523 | D12: 148455572.7 | E12: 149405480.3 | F12: 1547.874396
A13: 9 | B13: Insulin Glargine | C13: 325853 | D13: 133915261.2 | E13: 138449167.8 | F13: 424.8822867
A14: 10 | B14: Tiotropium | C14: 1959807 | D14: 129001764.4 | E14: 144207429.5 | F14: 73.58246475
A15: 11 | B15: Olanzapine | C15: 1021861 | D15: 120616544.4 | E15: 130114755.6 | F15: 127.3311689
A16: 12 | B16: Fingolimod | C16: 50914 | D16: 116603421.7 | E16: 117808297.5 | F16: 2313.868434
A17: 13 | B17: Quetiapine | C17: 1008652 | D17: 106099945 | E17: 116800217 | F17: 115.7983298
A18: 14 | B18: Imatinib | C18: 25107 | D18: 97557010.64 | E18: 98036088.04 | F18: 3904.731272
A19: 15 | B19: Ezetimibe + Simvastatin | C19: 985241 | D19: 96990981.75 | E19: 110571042.5 | F19: 112.2274067
A20: 16 | B20: Budesonide + Eformoterol | C20: 1710547 | D20: 87495064.69 | E20: 116429457.2 | F20: 68.06562883
A21: 17 | B21: Oxycodone | C21: 2733368 | D21: 83857687.11 | E21: 99956916.31 | F21: 36.56913972
A22: 18 | B22: Ezetimibe | C22: 1242037 | D22: 72253440.11 | E22: 88511025.01 | F22: 71.2627925
A23: 19 | B23: Pregabalin | C23: 1603355 | D23: 71343720.46 | E23: 88883546.66 | F23: 55.43597435
A24: 20 | B24: Paracetamol | C24: 6040540 | D24: 69531309.55 | E24: 94554945.35 | F24: 15.6533928
A25: 21 | B25: Mesalazine | C25: 265895 | D25: 65038130.74 | E25: 71490104.44 | F25: 268.8659224
A26: 22 | B26: Amlodipine + Atorvastatin | C26: 1196929 | D26: 63661024.53 | E26: 81842997.73 | F26: 68.3774875
A27: 23 | B27: Venlafaxine | C27: 2146836 | D27: 63493474.58 | E27: 89539849.78 | F27: 41.70782015
A28: 24 | B28: Valaciclovir | C28: 494021 | D28: 62039951.68 | E28: 75066694.18 | F28: 151.9504114
A29: 25 | B29: Clopidogrel | C29: 2127743 | D29: 61887722.81 | E29: 73454981.91 | F29: 34.52248787
A30: 26 | B30: Buprenorphine | C30: 1288119 | D30: 59577004 | E30: 67488346 | F30: 52.39294351
A31: 27 | B31: Denosumab | C31: 169093 | D31: 58516718.03 | E31: 60377805.23 | F31: 357.0686263
A32: 28 | B32: Goserelin | C32: 67064 | D32: 57718077.28 | E32: 58652022.08 | F32: 874.5679065
A33: 29 | B33: Golimumab | C33: 32671 | D33: 57346733.45 | E33: 58104770.65 | F33: 1778.481548
A34: 30 | B34: Risperidone | C34: 618825 | D34: 57100831.91 | E34: 61351185.21 | F34: 99.1414135
A35: 31 | B35: Insulin Aspart | C35: 233285 | D35: 54953855.26 | E35: 58922272.46 | F35: 252.5763442
A36: 32 | B36: Desvenlafaxine | C36: 1810218 | D36: 53431087.19 | E36: 90969281.29 | F36: 50.25321883
A37: 33 | B37: Rabeprazole | C37: 2043377 | D37: 51331593.87 | E37: 62574966.77 | F37: 30.62330973
A38: 34 | B38: Paliperidone | C38: 150161 | D38: 48611153.83 | E38: 50151928.63 | F38: 333.9877107
A39: 35 | B39: Insulin Aspart + Insulin Aspart Protamine | C39: 190066 | D39: 47422658.3 | E39: 49523773 | F39: 260.5609262
A40: 36 | B40: Sitagliptin + Metformin | C40: 640994 | D40: 47303750.03 | E40: 57426616.43 | F40: 89.58994379
A41: 37 | B41: Irbesartan + Hydrochlorothiazide | C41: 2208229 | D41: 46925556.1 | E41: 57794176.3 | F41: 26.17218427
A42: 38 | B42: Irbesartan | C42: 3014076 | D42: 46083932.5 | E42: 60780857.5 | F42: 20.16566852
A43: 39 | B43: Pantoprazole | C43: 4094219 | D43: 45932933.24 | E43: 64965764.54 | F43: 15.86768186
A44: 40 | B44: Enoxaparin Sodium | C44: 422230 | D44: 43393997.32 | E44: 50813480.92 | F44: 120.3455011
A45: 41 | B45: Fentanyl | C45: 621019 | D45: 42384314.82 | E45: 46484890.32 | F45: 74.85260567
A46: 42 | B46: Varenicline | C46: 351138 | D46: 42232282.72 | E46: 50556299.62 | F46: 143.9784347
A47: 43 | B47: Leuprorelin | C47: 33283 | D47: 40800701.63 | E47: 41113020.63 | F47: 1235.255855
A48: 44 | B48: Famciclovir | C48: 197597 | D48: 40745195.59 | E48: 45468520.59 | F48: 230.1073427
A49: 45 | B49: Ustekinumab | C49: 6496 | D49: 40396845 | E49: 40575336.3 | F49: 6246.203248
A50: 46 | B50: Perindopril | C50: 3933326 | D50: 39508138.46 | E50: 58830008.16 | F50: 14.95680962
A51: 47 | B51: Duloxetine | C51: 1195390 | D51: 39411258.56 | E51: 58290863.06 | F51: 48.7630506
A52: 48 | B52: Latanoprost | C52: 1303651 | D52: 36821511.68 | E52: 46554150.28 | F52: 35.710593
A53: 49 | B53: Clopidogrel + Aspirin | C53: 619543 | D53: 36724795.39 | E53: 44509120.69 | F53: 71.84185874
A54: 50 | B54: Aripiprazole | C54: 171952 | D54: 36346023.06 | E54: 38326998.86 | F54: 222.8935916
A55: Total Cost includes cost to the patient and cost to the government
A56: Average Price is "Total Cost" divided by "Volume"

Sheet Table 9(b)
A1: Table 9(b): Highest Volume PBS Drugs (incl Drs Bag) by Generic Name, year ending: Jun 2014 - Section 85 Only
A2: (total for all forms and strengths for each drug)
A4: Rank | B4: Drug | C4: Volume | D4: Govt Cost $ | E4: Total Cost $ | F4: Ave Price $
A5: 1 | B5: Atorvastatin | C5: 8912377 | D5: 279187250 | E5: 357186086.4 | F5: 40.07753334
A6: 2 | B6: Rosuvastatin | C6: 7806237 | D6: 287914893.4 | E6: 392284843.9 | F6: 50.25274584
A7: 3 | B7: Esomeprazole | C7: 6932449 | D7: 201734847.4 | E7: 265260640 | F7: 38.26362661
A8: 4 | B8: Paracetamol | C8: 6040540 | D8: 69531309.55 | E8: 94554945.35 | F8: 15.6533928
A9: 5 | B9: Pantoprazole | C9: 4094219 | D9: 45932933.24 | E9: 64965764.54 | F9: 15.86768186
A10: 6 | B10: Perindopril | C10: 3933326 | D10: 39508138.46 | E10: 58830008.16 | F10: 14.95680962
A11: 7 | B11: Metformin | C11: 3591938 | D11: 31498249.13 | E11: 47265706.23 | F11: 13.15883131
A12: 8 | B12: Fluticasone + Salmeterol | C12: 3232265 | D12: 182364895 | E12: 231096088.1 | F12: 71.49664032
A13: 9 | B13: Irbesartan | C13: 3014076 | D13: 46083932.5 | E13: 60780857.5 | F13: 20.16566852
A14: 10 | B14: Simvastatin | C14: 2964929 | D14: 32021737.58 | E14: 45933852.28 | F14: 15.49239536
A15: 11 | B15: Salbutamol | C15: 2921958 | D15: 30397538.13 | E15: 43232320.23 | F15: 14.79566792
A16: 12 | B16: Atenolol | C16: 2816140 | D16: 11218575.8 | E16: 24463572.2 | F16: 8.686916204
A17: 13 | B17: Cephalexin | C17: 2745920 | D17: 11516255.92 | E17: 25282282.82 | F17: 9.207217552
A18: 14 | B18: Oxycodone | C18: 2733368 | D18: 83857687.11 | E18: 99956916.31 | F18: 36.56913972
A19: 15 | B19: Warfarin | C19: 2507422 | D19: 22171039.07 | E19: 32736308.67 | F19: 13.05576352
A20: 16 | B20: Amoxycillin | C20: 2384310 | D20: 9391931.34 | E20: 22202806.84 | F20: 9.312047024
A21: 17 | B21: Ramipril | C21: 2341218 | D21: 18212839.77 | E21: 29428380.67 | F21: 12.56968837
A22: 18 | B22: Paracetamol + Codeine | C22: 2340612 | D22: 11386717.41 | E22: 22474396.91 | F22: 9.601931849
A23: 19 | B23: Amlodipine | C23: 2250517 | D23: 12697953.5 | E23: 23344764.9 | F23: 10.37306757
A24: 20 | B24: Irbesartan + Hydrochlorothiazide | C24: 2208229 | D24: 46925556.1 | E24: 57794176.3 | F24: 26.17218427
A25: 21 | B25: Venlafaxine | C25: 2146836 | D25: 63493474.58 | E25: 89539849.78 | F25: 41.70782015
A26: 22 | B26: Clopidogrel | C26: 2127743 | D26: 61887722.81 | E26: 73454981.91 | F26: 34.52248787
A27: 23 | B27: Omeprazole | C27: 2081140 | D27: 30129915.28 | E27: 39903723.28 | F27: 19.17397353
A28: 24 | B28: Amoxycillin + Clavulanic Acid | C28: 2068583 | D28: 12005053.74 | E28: 22377191.24 | F28: 10.81764243
A29: 25 | B29: Candesartan | C29: 2056243 | D29: 32318761.3 | E29: 42475052.6 | F29: 20.65663086
A30: 26 | B30: Rabeprazole | C30: 2043377 | D30: 51331593.87 | E30: 62574966.77 | F30: 30.62330973
A31: 27 | B31: Telmisartan | C31: 1976841 | D31: 27886390.57 | E31: 37828645.17 | F31: 19.13590682
A32: 28 | B32: Tiotropium | C32: 1959807 | D32: 129001764.4 | E32: 144207429.5 | F32: 73.58246475
A33: 29 | B33: Tramadol | C33: 1864352 | D33: 16304512.89 | E33: 24472578.29 | F33: 13.12658677
A34: 30 | B34: Desvenlafaxine | C34: 1810218 | D34: 53431087.19 | E34: 90969281.29 | F34: 50.25321883
A35: 31 | B35: Sertraline | C35: 1777574 | D35: 15336053.22 | E35: 24139625.52 | F35: 13.58009597
A36: 32 | B36: Diazepam | C36: 1770534 | D36: 5634538.81 | E36: 14226370.21 | F36: 8.035073153
A37: 33 | B37: Lercanidipine | C37: 1753188 | D37: 13538089.06 | E37: 21607101.56 | F37: 12.32446353
A38: 34 | B38: Budesonide + Eformoterol | C38: 1710547 | D38: 87495064.69 | E38: 116429457.2 | F38: 68.06562883
A39: 35 | B39: Temazepam | C39: 1627470 | D39: 5322971.06 | E39: 12483717.46 | F39: 7.670628313
A40: 36 | B40: Pregabalin | C40: 1603355 | D40: 71343720.46 | E40: 88883546.66 | F40: 55.43597435
A41: 37 | B41: Metoprolol Tartrate | C41: 1597391 | D41: 8505876.8 | E41: 15651156.8 | F41: 9.797949782
A42: 38 | B42: Meloxicam | C42: 1537457 | D42: 19393446.78 | E42: 26564770.68 | F42: 17.27838286
A43: 39 | B43: Escitalopram | C43: 1490674 | D43: 16336673.07 | E43: 23928680.87 | F43: 16.05225614
A44: 40 | B44: Gliclazide | C44: 1472386 | D44: 15174144.17 | E44: 21356281.77 | F44: 14.50454009
A45: 41 | B45: Frusemide | C45: 1426879 | D45: 6697348.74 | E45: 12291072.54 | F45: 8.613955731
A46: 42 | B46: Amitriptyline | C46: 1389552 | D46: 7364126.75 | E46: 13587797.05 | F46: 9.778545207
A47: 43 | B47: Mirtazapine | C47: 1379320 | D47: 20681149.36 | E47: 27459628.66 | F47: 19.90809142
A48: 44 | B48: Latanoprost | C48: 1303651 | D48: 36821511.68 | E48: 46554150.28 | F48: 35.710593
A49: 45 | B49: Buprenorphine | C49: 1288119 | D49: 59577004 | E49: 67488346 | F49: 52.39294351
A50: 46 | B50: Ezetimibe | C50: 1242037 | D50: 72253440.11 | E50: 88511025.01 | F50: 71.2627925
A51: 47 | B51: Amlodipine + Atorvastatin | C51: 1196929 | D51: 63661024.53 | E51: 81842997.73 | F51: 68.3774875
A52: 48 | B52: Duloxetine | C52: 1195390 | D52: 39411258.56 | E52: 58290863.06 | F52: 48.7630506
A53: 49 | B53: Prednisolone | C53: 1141619 | D53: 5345923.35 | E53: 10413264.05 | F53: 9.121488036
A54: 50 | B54: Telmisartan + Hydrochlorothiazide | C54: 1108355 | D54: 22368923.85 | E54: 27905021.25 | F54: 25.1769706
A55: Total Cost includes cost to the patient and cost to the government
A56: Average Price is "Total Cost" divided by "Volume"

Sheet Table 10(a)
A1: Table 10(a): Highest Government Cost Drug (incl Drs Bag) by PBS Item, year ending: Jun 2014 - Section 85 Only
A4: Rank | B4: Item | C4: Drug | D4: Form | E4: Volume | F4: Govt Cost $ | G4: Total Cost $ | H4: Ave Price $
A5: 1 | B5: 02168D | C5: Aflibercept | D5: Solution for intravitreal injection 4 mg in 100 microlitres (40 mg per mL) | E5: 97941 | F5: 152683617.4 | G5: 153737594.2 | H5: 1569.695982
A6: 2 | B6: 01382R | C6: Ranibizumab | D6: Solution for intravitreal injection 2.3 mg in 0.23 mL | E6: 96523 | F6: 148455572.7 | G6: 149405480.3 | H6: 1547.874396
A7: 3 | B7: 09039R | C7: Insulin Glargine | D7: Injections (human analogue), cartridges, 100 units per mL, 3 mL, 5 | E7: 325853 | F7: 133915261.2 | G7: 138449167.8 | H7: 424.8822867
A8: 4 | B8: 08626B | C8: Tiotropium | D8: Capsule containing powder for oral inhalation 18 micrograms (as bromide monohydrate) (for use in HandiHaler) | E8: 1959807 | F8: 129001764.4 | G8: 144207429.5 | H8: 73.58246475
A9: 5 | B9: 05262Y | C9: Fingolimod | D9: Capsule 500 micrograms (as hydrochloride) | E9: 50914 | F9: 116603421.7 | G9: 117808297.5 | H9: 2313.868434
A10: 6 | B10: 08215J | C10: Atorvastatin | D10: Tablet 40 mg (as calcium) | E10: 3204250 | F10: 112217239.9 | G10: 140299791.2 | H10: 43.78553209
A11: 7 | B11: 08601Q | C11: Esomeprazole | D11: Tablet (enteric coated) 40 mg (as magnesium trihydrate) | E11: 3420617 | F11: 111014624 | G11: 156696947.2 | H11: 45.80955636
A12: 8 | B12: 08519J | C12: Fluticasone + Salmeterol | D12: Pressurised inhalation containing fluticasone propionate 250 micrograms with salmeterol 25 micrograms (as xinafoate) per dose, 120 doses (CFC-free formulation) | E12: 1486609 | F12: 96483144.52 | G12: 116941079.9 | H12: 78.66297051
A13: 9 | B13: 09043Y | C13: Rosuvastatin | D13: Tablet 10 mg (as calcium) | E13: 2947751 | F13: 86290107.7 | G13: 129200922.5 | H13: 43.83033794
A14: 10 | B14: 08600P | C14: Esomeprazole | D14: Tablet (enteric coated) 20 mg (as magnesium trihydrate) | E14: 3313401 | F14: 84066098.47 | G14: 99907741.17 | H14: 30.15262601
A15: 11 | B15: 08757X | C15: Ezetimibe | D15: Tablet 10 mg | E15: 1242037 | F15: 72253440.11 | G15: 88511025.01 | H15: 71.2627925
A16: 12 | B16: 08214H | C16: Atorvastatin | D16: Tablet 20 mg (as calcium) | E16: 2767835 | F16: 69108380.82 | G16: 93355947.02 | H16: 33.72887004
A17: 13 | B17: 09100Y | C17: Adalimumab | D17: Injection 40 mg in 0.8 mL pre-filled pen | E17: 39388 | F17: 69106608.07 | G17: 69877431.97 | H17: 1774.079211
A18: 14 | B18: 09044B | C18: Rosuvastatin | D18: Tablet 20 mg (as calcium) | E18: 1547703 | F18: 65950267.97 | G18: 89606320.67 | H18: 57.89632809
A19: 15 | B19: 08521L | C19: Atorvastatin | D19: Tablet 80 mg (as calcium) | E19: 1331465 | F19: 61065214.56 | G19: 76811481.86 | H19: 57.68944874
A20: 16 | B20: 08814X | C20: Paracetamol | D20: Tablet 665 mg (modified release) | E20: 4777732 | F20: 59946978.75 | G20: 80034275.95 | H20: 16.75152059
A21: 17 | B21: 08187X | C21: Olanzapine | D21: Tablet 10 mg | E21: 342201 | F21: 58518838.31 | G21: 61625878.01 | H21: 180.0867853
A22: 18 | B22: 09114Q | C22: Imatinib | D22: Tablet 400 mg (as mesylate) | E22: 13354 | F22: 53819292.96 | G22: 54077273.56 | H22: 4049.518763
A23: 19 | B23: 08435Y | C23: Insulin Aspart | D23: Injections (human analogue), cartridges, 100 units per mL, 3 mL, 5 | E23: 219930 | F23: 53088696.36 | G23: 56802639.16 | H23: 258.2759931
A24: 20 | B24: 08093Y | C24: Goserelin | D24: Subcutaneous implant (long acting) 10.8 mg (as acetate) in pre-filled injection syringe | E24: 46847 | F24: 51504102.77 | G24: 51945484.37 | H24: 1108.832676
A25: 21 | B25: 08358X | C25: Clopidogrel | D25: Tablet 75 mg (as hydrogen sulfate) | E25: 1735382 | F25: 50566113.56 | G25: 59977853.26 | H25: 34.56175831
A26: 22 | B26: 09460X | C26: Etanercept | D26: Injection 50 mg in 1 mL single use auto-injector, 4 | E26: 28113 | F26: 49345424.53 | G26: 49893916.43 | H26: 1774.76315
A27: 23 | B27: 09045C | C27: Rosuvastatin | D27: Tablet 40 mg (as calcium) | E27: 763876 | F27: 49208358.06 | G27: 60985032.16 | H27: 79.83629825
A28: 24 | B28: 08625Y | C28: Budesonide + Eformoterol | D28: Powder for oral inhalation in breath actuated device containing budesonide 200 micrograms with eformoterol fumarate dihydrate 6 micrograms per dose, 120 doses | E28: 1164866 | F28: 48086670.3 | G28: 68665344.9 | H28: 58.94699038
A29: 25 | B29: 08609D | C29: Insulin Aspart + Insulin Aspart Protamine | D29: Injections (human analogue), cartridges, 30 units-70 units per mL, 3 mL, 5 | E29: 190066 | F29: 47422658.3 | G29: 49523773 | H29: 260.5609262
A30: 26 | B30: 08508T | C30: Rabeprazole | D30: Tablet containing rabeprazole sodium 20 mg (enteric coated) | E30: 1807990 | F30: 45913672.46 | G30: 56013217.66 | H30: 30.98093333
A31: 27 | B31: 08882L | C31: Ezetimibe + Simvastatin | D31: Tablet 10 mg-80 mg | E31: 392125 | F31: 43299877.4 | G31: 48656426.4 | H31: 124.0839691
A32: 28 | B32: 08881K | C32: Ezetimibe + Simvastatin | D32: Tablet 10 mg-40 mg | E32: 446838 | F32: 42300712.69 | G32: 48247703.59 | H32: 107.9758292
A33: 29 | B33: 08432T | C33: Fluticasone + Salmeterol | D33: Powder for oral inhalation in breath actuated device containing fluticasone propionate 500 micrograms with salmeterol 50 micrograms (as xinafoate) per dose, 60 doses | E33: 600881 | F33: 39717962.04 | G33: 47786684.94 | H33: 79.52770172
A34: 30 | B34: 08302Y | C34: Venlafaxine | D34: Capsule (modified release) 150 mg (as hydrochloride) | E34: 1138394 | F34: 39674147.05 | G34: 53780202.35 | H34: 47.24216954
A35: 31 | B35: 08008L | C35: Pantoprazole | D35: Tablet (enteric coated) 40 mg (as sodium sesquihydrate) | E35: 3212113 | F35: 37942908.1 | G35: 52757730.4 | H35: 16.42461844
A36: 32 | B36: 08750M | C36: Budesonide + Eformoterol | D36: Powder for oral inhalation in breath actuated device containing budesonide 400 micrograms with eformoterol fumarate dihydrate 12 micrograms per dose, 60 doses, 2 | E36: 484458 | F36: 36824410.21 | G36: 43959313.01 | H36: 90.73916214
A37: 33 | B37: 09296G | C37: Clopidogrel + Aspirin | D37: Tablet 75 mg (as hydrogen sulfate)-100 mg | E37: 619543 | F37: 36724795.39 | G37: 44509120.69 | H37: 71.84185874
A38: 34 | B38: 08243W | C38: Latanoprost | D38: Eye drops 50 micrograms per mL, 2.5 mL | E38: 1289039 | F38: 36435873.37 | G38: 46033935.17 | H38: 35.71182499
A39: 35 | B39: 05457F | C39: Denosumab | D39: Injection 60 mg in 1 mL pre-filled syringe | E39: 126288 | F39: 36433097.94 | G39: 37653168.84 | H39: 298.1531803
A40: 36 | B40: 09451K | C40: Sitagliptin + Metformin | D40: Tablet containing 50 mg sitagliptin (as phosphate monohydrate) with 1000 mg metformin hydrochloride | E40: 459425 | F40: 33903815.55 | G40: 41377811.55 | H40: 90.06434467
A41: 37 | B41: 09156X | C41: Duloxetine | D41: Capsule 60 mg (as hydrochloride) | E41: 1015170 | F41: 33420882.28 | G41: 51015871.58 | H41: 50.2535256
A42: 38 | B42: 09090K | C42: Etanercept | D42: Injections 50 mg in 1 mL single use pre-filled syringes, 4 | E42: 18900 | F42: 33214443.41 | G42: 33539423.71 | H42: 1774.572683
A43: 39 | B43: 09191R | C43: Adalimumab | D43: Injection 40 mg in 0.8 mL pre-filled pen | E43: 18902 | F43: 33033193.53 | G43: 33550792.93 | H43: 1774.9864
A44: 40 | B44: 09367B | C44: Desvenlafaxine | D44: Tablet (extended release) 100 mg (as succinate) | E44: 866332 | F44: 32047684.67 | G44: 49408702.97 | H44: 57.03206504
A45: 41 | B45: 02335X | C45: Pregabalin | D45: Capsule 75 mg | E45: 840599 | F45: 31310509.18 | G45: 41380498.98 | H45: 49.22739496
A46: 42 | B46: 02698B | C46: Abiraterone | D46: Tablet containing abiraterone acetate 250 mg | E46: 8383 | F46: 30330422.12 | G46: 30412275.92 | H46: 3627.851118
A47: 43 | B47: 09305R | C47: Ustekinumab | D47: Injection 45 mg in 0.5 mL | E47: 4810 | F47: 30245769.13 | G47: 30377430.43 | H47: 6315.474102
A48: 44 | B48: 08134D | C48: Valaciclovir | D48: Tablet 500 mg (as hydrochloride) | E48: 256471 | F48: 30126471.89 | G48: 37033561.99 | H48: 144.3966842
A49: 45 | B49: 08405J | C49: Irbesartan + Hydrochlorothiazide | D49: Tablet 300 mg-12.5 mg | E49: 1312277 | F49: 29966291.75 | G49: 36408811.05 | H49: 27.74476048
A50: 46 | B50: 08431R | C50: Fluticasone + Salmeterol | D50: Powder for oral inhalation in breath actuated device containing fluticasone propionate 250 micrograms with salmeterol 50 micrograms (as xinafoate) per dose, 60 doses | E50: 678504 | F50: 29199549.41 | G50: 40426842.71 | H50: 59.58232038
A51: 47 | B51: 08248D | C51: Irbesartan | D51: Tablet 300 mg | E51: 1361865 | F51: 28773030.99 | G51: 35349492.49 | H51: 25.95667889
A52: 48 | B52: 08217L | C52: Famciclovir | D52: Tablet 250 mg | E52: 91853 | F52: 27668220.36 | G52: 29966918.26 | H52: 326.248661
A53: 49 | B53: 08633J | C53: Levonorgestrel | D53: Intrauterine drug delivery system 52 mg | E53: 115982 | F53: 27462758.36 | G53: 30798736.86 | H53: 265.5475579
A54: 50 | B54: 09104E | C54: Adalimumab | D54: Injection 40 mg in 0.8 mL pre-filled pen | E54: 15435 | F54: 26967526.07 | G54: 27385189.17 | H54: 1774.226704
A55: Total Cost includes cost to the patient and cost to the government
A56: Average Price is "Total Cost" divided by "Volume"

Sheet Table 10(b)
A1: Table 10(b):Highest Volume Drug (incl Drs Bag) by PBS Item, year ending: Jun 2014 - Section 85 Only
A4: Rank | B4: Item | C4: Drug | D4: Form | E4: Volume | F4: Govt Cost $ | G4: Total Cost $ | H4: Ave Price $
A5: 1 | B5: 08814X | C5: Paracetamol | D5: Tablet 665 mg (modified release) | E5: 4777732 | F5: 59946978.75 | G5: 80034275.95 | H5: 16.75152059
A6: 2 | B6: 08601Q | C6: Esomeprazole | D6: Tablet (enteric coated) 40 mg (as magnesium trihydrate) | E6: 3420617 | F6: 111014624 | G6: 156696947.2 | H6: 45.80955636
A7: 3 | B7: 08600P | C7: Esomeprazole | D7: Tablet (enteric coated) 20 mg (as magnesium trihydrate) | E7: 3313401 | F7: 84066098.47 | G7: 99907741.17 | H7: 30.15262601
A8: 4 | B8: 08008L | C8: Pantoprazole | D8: Tablet (enteric coated) 40 mg (as sodium sesquihydrate) | E8: 3212113 | F8: 37942908.1 | G8: 52757730.4 | H8: 16.42461844
A9: 5 | B9: 08215J | C9: Atorvastatin | D9: Tablet 40 mg (as calcium) | E9: 3204250 | F9: 112217239.9 | G9: 140299791.2 | H9: 43.78553209
A10: 6 | B10: 09043Y | C10: Rosuvastatin | D10: Tablet 10 mg (as calcium) | E10: 2947751 | F10: 86290107.7 | G10: 129200922.5 | H10: 43.83033794
A11: 7 | B11: 01081X | C11: Atenolol | D11: Tablet 50 mg | E11: 2815649 | F11: 11208602.02 | G11: 24450781.52 | H11: 8.68388834
A12: 8 | B12: 08214H | C12: Atorvastatin | D12: Tablet 20 mg (as calcium) | E12: 2767835 | F12: 69108380.82 | G12: 93355947.02 | H12: 33.72887004
A13: 9 | B13: 08288F | C13: Salbutamol | D13: Pressurised inhalation 100 micrograms (as sulfate) per dose, 200 doses (CFC-free formulation) | E13: 2439603 | F13: 23062874.98 | G13: 33955398.38 | H13: 13.91841147
A14: 10 | B14: 03119E | C14: Cephalexin | D14: Capsule 500 mg (anhydrous) | E14: 2268869 | F14: 9266214.27 | G14: 20480578.17 | H14: 9.026778615
A15: 11 | B15: 08626B | C15: Tiotropium | D15: Capsule containing powder for oral inhalation 18 micrograms (as bromide monohydrate) (for use in HandiHaler) | E15: 1959807 | F15: 129001764.4 | G15: 144207429.5 | H15: 73.58246475
A16: 12 | B16: 08508T | C16: Rabeprazole | D16: Tablet containing rabeprazole sodium 20 mg (enteric coated) | E16: 1807990 | F16: 45913672.46 | G16: 56013217.66 | H16: 30.98093333
A17: 13 | B17: 08358X | C17: Clopidogrel | D17: Tablet 75 mg (as hydrogen sulfate) | E17: 1735382 | F17: 50566113.56 | G17: 59977853.26 | H17: 34.56175831
A18: 14 | B18: 08254K | C18: Amoxycillin + Clavulanic Acid | D18: Tablet containing 875 mg amoxycillin (as trihydrate) with 125 mg clavulanic acid (as potassium clavulanate) | E18: 1604074 | F18: 9490268.34 | G18: 17369468.54 | H18: 10.82834616
A19: 15 | B19: 02089Y | C19: Temazepam | D19: Tablet 10 mg | E19: 1595565 | F19: 5166513.64 | G19: 12201311.84 | H19: 7.647016474
A20: 16 | B20: 03162K | C20: Diazepam | D20: Tablet 5 mg | E20: 1552793 | F20: 4837747.51 | G20: 12425734.31 | H20: 8.002183362
A21: 17 | B21: 09044B | C21: Rosuvastatin | D21: Tablet 20 mg (as calcium) | E21: 1547703 | F21: 65950267.97 | G21: 89606320.67 | H21: 57.89632809
A22: 18 | B22: 08519J | C22: Fluticasone + Salmeterol | D22: Pressurised inhalation containing fluticasone propionate 250 micrograms with salmeterol 25 micrograms (as xinafoate) per dose, 120 doses (CFC-free formulation) | E22: 1486609 | F22: 96483144.52 | G22: 116941079.9 | H22: 78.66297051
A23: 19 | B23: 01215Y | C23: Paracetamol + Codeine | D23: Tablet containing codeine phosphate 30 mg with paracetamol 500 mg | E23: 1415836 | F23: 3733232.92 | G23: 10711877.72 | H23: 7.565761656
A24: 20 | B24: 01889K | C24: Amoxycillin | D24: Capsule 500 mg (as trihydrate) | E24: 1372243 | F24: 5063530.03 | G24: 12155977.73 | H24: 8.85847312
A25: 21 | B25: 08248D | C25: Irbesartan | D25: Tablet 300 mg | E25: 1361865 | F25: 28773030.99 | G25: 35349492.49 | H25: 25.95667889
A26: 22 | B26: 02751T | C26: Amlodipine | D26: Tablet 5 mg (as besylate) | E26: 1341230 | F26: 6381686.41 | G26: 12753958.11 | H26: 9.509150638
A27: 23 | B27: 08521L | C27: Atorvastatin | D27: Tablet 80 mg (as calcium) | E27: 1331465 | F27: 61065214.56 | G27: 76811481.86 | H27: 57.68944874
A28: 24 | B28: 08405J | C28: Irbesartan + Hydrochlorothiazide | D28: Tablet 300 mg-12.5 mg | E28: 1312277 | F28: 29966291.75 | G28: 36408811.05 | H28: 27.74476048
A29: 25 | B29: 08243W | C29: Latanoprost | D29: Eye drops 50 micrograms per mL, 2.5 mL | E29: 1289039 | F29: 36435873.37 | G29: 46033935.17 | H29: 35.71182499
A30: 26 | B30: 08173E | C30: Simvastatin | D30: Tablet 40 mg | E30: 1270782 | F30: 15124350.97 | G30: 21060261.47 | H30: 16.57267845
A31: 27 | B31: 01324Q | C31: Metoprolol Tartrate | D31: Tablet containing metoprolol tartrate 50 mg | E31: 1264229 | F31: 6474311.09 | G31: 12139465.29 | H31: 9.602267698
A32: 28 | B32: 02622B | C32: Oxycodone | D32: Tablet containing oxycodone hydrochloride 5 mg | E32: 1243245 | F32: 12184282.73 | G32: 17795077.03 | H32: 14.3134113
A33: 29 | B33: 08757X | C33: Ezetimibe | D33: Tablet 10 mg | E33: 1242037 | F33: 72253440.11 | G33: 88511025.01 | H33: 71.2627925
A34: 30 | B34: 08625Y | C34: Budesonide + Eformoterol | D34: Powder for oral inhalation in breath actuated device containing budesonide 200 micrograms with eformoterol fumarate dihydrate 6 micrograms per dose, 120 doses | E34: 1164866 | F34: 48086670.3 | G34: 68665344.9 | H34: 58.94699038
A35: 31 | B35: 08247C | C35: Irbesartan | D35: Tablet 150 mg | E35: 1148012 | F35: 13027432.36 | G35: 18697563.26 | H35: 16.28690576
A36: 32 | B36: 08302Y | C36: Venlafaxine | D36: Capsule (modified release) 150 mg (as hydrochloride) | E36: 1138394 | F36: 39674147.05 | G36: 53780202.35 | H36: 47.24216954
A37: 33 | B37: 08213G | C37: Atorvastatin | D37: Tablet 10 mg (as calcium) | E37: 1137097 | F37: 22013463.78 | G37: 27620135.18 | H37: 24.29004314
A38: 34 | B38: 09302N | C38: Gliclazide | D38: Tablet 60 mg (modified release) | E38: 1109420 | F38: 11802277.53 | G38: 16498212.63 | H38: 14.87102507
A39: 35 | B39: 02412Y | C39: Frusemide | D39: Tablet 40 mg | E39: 1082947 | F39: 4985251.43 | G39: 9178031.13 | H39: 8.475051069
A40: 36 | B40: 09110L | C40: Omeprazole | D40: Tablet 20 mg (as magnesium) | E40: 1071214 | F40: 16510064.89 | G40: 21529570.59 | H40: 20.0982909
A41: 37 | B41: 08612G | C41: Macrogol-3350 + Sodium Chloride + Potassium Chloride + Bicarbonate | D41: Sachets containing powder for oral solution 13.125 g with electrolytes, 30 | E41: 1042606 | F41: 17879691.93 | G41: 22125836.13 | H41: 21.22166584
A42: 38 | B42: 08355R | C42: Telmisartan | D42: Tablet 40 mg | E42: 1016266 | F42: 8171905.3 | G42: 13326826.9 | H42: 13.11352235
A43: 39 | B43: 09156X | C43: Duloxetine | D43: Capsule 60 mg (as hydrochloride) | E43: 1015170 | F43: 33420882.28 | G43: 51015871.58 | H43: 50.2535256
A44: 40 | B44: 09435N | C44: Metformin | D44: Tablet (extended release) containing metformin hydrochloride 500 mg | E44: 977577 | F44: 9150537.35 | G44: 13487279.25 | H44: 13.79664134
A45: 41 | B45: 09366Y | C45: Desvenlafaxine | D45: Tablet (extended release) 50 mg (as succinate) | E45: 943886 | F45: 21383402.52 | G45: 41560578.32 | H45: 44.0313537
A46: 42 | B46: 08356T | C46: Telmisartan | D46: Tablet 80 mg | E46: 935965 | F46: 19288456.27 | G46: 23954589.07 | H46: 25.59346671
A47: 43 | B47: 02012X | C47: Simvastatin | D47: Tablet 20 mg | E47: 923208 | F47: 8127119.25 | G47: 12506523.65 | H47: 13.54681031
A48: 44 | B48: 02843P | C48: Warfarin | D48: Tablet containing warfarin sodium 1 mg | E48: 920289 | F48: 7773195.63 | G48: 11582744.63 | H48: 12.58598617
A49: 45 | B49: 08534E | C49: Lercanidipine | D49: Tablet containing lercanidipine hydrochloride 10 mg | E49: 913184 | F49: 5801350.59 | G49: 10045919.29 | H49: 11.0009804
A50: 46 | B50: 08301X | C50: Venlafaxine | D50: Capsule (modified release) 75 mg (as hydrochloride) | E50: 913109 | F50: 22251523.13 | G50: 33674077.53 | H50: 36.87848606
A51: 47 | B51: 09042X | C51: Rosuvastatin | D51: Tablet 5 mg (as calcium) | E51: 910871 | F51: 24765636.49 | G51: 29365200.79 | H51: 32.23859448
A52: 48 | B52: 02752W | C52: Amlodipine | D52: Tablet 10 mg (as besylate) | E52: 908385 | F52: 6309375.42 | G52: 10578999.72 | H52: 11.64594277
A53: 49 | B53: 09007C | C53: Perindopril | D53: Tablet containing perindopril arginine 5 mg | E53: 906483 | F53: 8363322.74 | G53: 12900230.54 | H53: 14.23107829
A54: 50 | B54: 08202Q | C54: Aspirin | D54: Tablet 100 mg | E54: 906280 | F54: 3693487.37 | G54: 7196807.37 | H54: 7.941041808
A55: Total Cost includes cost to the patient and cost to the government
A56: Average Price is "Total Cost" divided by "Volume"

Sheet Table 11
A1: Table 11:Highest volume PBS Drugs (incl Drs Bag) by ATC Group Level 2, year end: Jun 2014 - Section 85 Only
A2: (Includes subsidised and under co-payment scripts)
C3: Subsidised | D3: Under co-payment | E3: Total
A4: Rank | B4: ATC Group Level 2 | C4: Scripts | D4: Scripts | E4: Scripts
A5: 1 | B5: Agents Acting On The Renin-Angiotensin System | C5: 23528515 | D5: 11762386 | E5: 35290901
A6: 2 | B6: Antibacterials For Systemic Use | C6: 12918676 | D6: 15071908 | E6: 27990584
A7: 3 | B7: Lipid Modifying Agents | C7: 24978107 | D7: 2887307 | E7: 27865414
A8: 4 | B8: Psychoanaleptics | C8: 16007537 | D8: 7489307 | E8: 23496844
A9: 5 | B9: Analgesics | C9: 18666546 | D9: 4435728 | E9: 23102274
A10: 6 | B10: Drugs For Acid Related Disorders | C10: 16781964 | D10: 5004468 | E10: 21786432
A11: 7 | B11: Drugs For Obstructive Airway Diseases | C11: 11393573 | D11: 1129040 | E11: 12522613
A12: 8 | B12: Drugs Used In Diabetes | C12: 8614293 | D12: 2121438 | E12: 10735731
A13: 9 | B13: Psycholeptics | C13: 8333070 | D13: 1578975 | E13: 9912045
A14: 10 | B14: Ophthalmologicals | C14: 7760073 | D14: 1424776 | E14: 9184849
A15: 11 | B15: Calcium Channel Blockers | C15: 6921585 | D15: 2220066 | E15: 9141651
A16: 12 | B16: Antithrombotic Agents | C16: 7966328 | D16: 1004372 | E16: 8970700
A17: 13 | B17: Beta Blocking Agents | C17: 6353192 | D17: 1787983 | E17: 8141175
A18: 14 | B18: Antiinflammatory And Antirheumatic Products | C18: 4170078 | D18: 2908849 | E18: 7078927
A19: 15 | B19: Sex Hormones And Modulators Of The Genital System | C19: 2259182 | D19: 3200403 | E19: 5459585
A20: 16 | B20: Corticosteroids For Systemic Use | C20: 2142537 | D20: 1614841 | E20: 3757378
A21: 17 | B21: Corticosteroids, Dermatological Preparations | C21: 2259514 | D21: 1382334 | E21: 3641848
A22: 18 | B22: Cardiac Therapy | C22: 3164996 | D22: 382139 | E22: 3547135
A23: 19 | B23: Drugs For Treatment Of Bone Diseases | C23: 3050279 | D23: 29803 | E23: 3080082
A24: 20 | B24: Diuretics | C24: 2326068 | D24: 461946 | E24: 2788014
A25: 21 | B25: Antiepileptics | C25: 2270594 | D25: 282175 | E25: 2552769
A26: 22 | B26: Antihypertensives | C26: 1455281 | D26: 390780 | E26: 1846061
A27: 23 | B27: Antigout Preparations | C27: 1118580 | D27: 643512 | E27: 1762092
A28: 24 | B28: Thyroid Therapy | C28: 1005895 | D28: 733018 | E28: 1738913
A29: 25 | B29: Drugs For Constipation | C29: 1607158 | D29: 99055 | E29: 1706213
A30: 26 | B30: Drugs For Functional Gastrointestinal Disorders | C30: 925304 | D30: 494263 | E30: 1419567
A31: 27 | B31: Antiemetics And Antinauseants | C31: 943822 | D31: 339382 | E31: 1283204
A32: 28 | B32: Anti-Parkinson Drugs | C32: 1002823 | D32: 58102 | E32: 1060925
A33: 29 | B33: Antidiarrheals, Intestinal Antiinflammatory/Antiinfective Agents | C33: 935887 | D33: 111023 | E33: 1046910
A34: 30 | B34: Otologicals | C34: 584257 | D34: 443811 | E34: 1028068
A35: 31 | B35: Antianemic Preparations | C35: 850573 | D35: 115206 | E35: 965779
A36: 32 | B36: Urologicals | C36: 758987 | D36: 150569 | E36: 909556
A37: 33 | B37: Immunosuppressants | C37: 820097 | D37: 9808 | E37: 829905
A38: 34 | B38: Endocrine Therapy | C38: 757427 | D38: 14258 | E38: 771685
A39: 35 | B39: Antivirals For Systemic Use | C39: 733126 | D39: 521 | E39: 733647
A40: 36 | B40: Other Nervous System Drugs | C40: 609929 | D40: 1568 | E40: 611497
A41: 37 | B41: Antineoplastic Agents | C41: 420398 | D41: 59319 | E41: 479717
A42: 38 | B42: Diagnostic Agents | C42: 399573 | D42: 245 | E42: 399818
A43: 39 | B43: Mineral Supplements | C43: 285823 | D43: 52421 | E43: 338244
A44: 40 | B44: Anti-Acne Preparations | C44: 336992 | D44: 515 | E44: 337507
A45: 41 | B45: Stomatological Preparations | C45: 220518 | D45: 76836 | E45: 297354
A46: 42 | B46: Antipsoriatics | C46: 250650 | D46: 12294 | E46: 262944
A47: 43 | B47: Cough And Cold Preparations | C47: 161808 | D47: 66978 | E47: 228786
A48: 44 | B48: Missing Item Code | C48: 159456 | D48: 50245 | E48: 209701
A49: 45 | B49: Muscle Relaxants | C49: 169812 | D49: 26976 | E49: 196788
A50: 46 | B50: Other Gynecologicals | C50: 162057 | D50: 11138 | E50: 173195
A51: 47 | B51: Antifungals For Dermatological Use | C51: 126208 | D51: 29101 | E51: 155309
A52: 48 | B52: Vitamins | C52: 123072 | D52: 20725 | E52: 143797
A53: 49 | B53: Ectoparasiticides, Incl. Scabicides, Insecticides And Repellents | C53: 94448 | D53: 17269 | E53: 111717
A54: 50 | B54: Digestives, Incl. Enzymes | C54: 109828 | D54: 74 | E54: 109902

Sheet Table 12
A1: Table 12:Highest volume PBS Drugs (incl Drs Bag) by Generic name, year end: Jun 2014 - Section 85 Only
A2: (Includes subsidised and under co-payment scripts)
C3: Subsidised | D3: Under co-payment | E3: Total
A4: Rank | B4: Drug | C4: Scripts | D4: Scripts | E4: Scripts
A5: 1 | B5: Atorvastatin | C5: 8912377 | D5: 1362258 | E5: 10274635
A6: 2 | B6: Esomeprazole | C6: 6932449 | D6: 1548981 | E6: 8481430
A7: 3 | B7: Rosuvastatin | C7: 7806237 | D7: 550748 | E7: 8356985
A8: 4 | B8: Paracetamol | C8: 6040540 | D8: 398524 | E8: 6439064
A9: 5 | B9: Perindopril | C9: 3933326 | D9: 2054663 | E9: 5987989
A10: 6 | B10: Amoxycillin | C10: 2384310 | D10: 3517966 | E10: 5902276
A11: 7 | B11: Pantoprazole | C11: 4094219 | D11: 1481090 | E11: 5575309
A12: 8 | B12: Cephalexin | C12: 2745920 | D12: 2751548 | E12: 5497468
A13: 9 | B13: Metformin | C13: 3591938 | D13: 1544882 | E13: 5136820
A14: 10 | B14: Amoxycillin + Clavulanic Acid | C14: 2068583 | D14: 2638891 | E14: 4707474
A15: 11 | B15: Irbesartan | C15: 3014076 | D15: 1349880 | E15: 4363956
A16: 12 | B16: Paracetamol + Codeine | C16: 2340612 | D16: 1532309 | E16: 3872921
A17: 13 | B17: Atenolol | C17: 2816140 | D17: 1029292 | E17: 3845432
A18: 14 | B18: Oxycodone | C18: 2733368 | D18: 968638 | E18: 3702006
A19: 15 | B19: Simvastatin | C19: 2964929 | D19: 730874 | E19: 3695803
A20: 16 | B20: Salbutamol | C20: 2921958 | D20: 751330 | E20: 3673288
A21: 17 | B21: Ramipril | C21: 2341218 | D21: 1079326 | E21: 3420544
A22: 18 | B22: Sertraline | C22: 1777574 | D22: 1626058 | E22: 3403632
A23: 19 | B23: Fluticasone + Salmeterol | C23: 3232265 | D23: 1 | E23: 3232266
A24: 20 | B24: Irbesartan + Hydrochlorothiazide | C24: 2208229 | D24: 1005696 | E24: 3213925
A25: 21 | B25: Telmisartan | C25: 1976841 | D25: 1206612 | E25: 3183453
A26: 22 | B26: Warfarin | C26: 2507422 | D26: 614350 | E26: 3121772
A27: 23 | B27: Escitalopram | C27: 1490674 | D27: 1623427 | E27: 3114101
A28: 24 | B28: Amlodipine | C28: 2250517 | D28: 851779 | E28: 3102296
A29: 25 | B29: Candesartan | C29: 2056243 | D29: 1025527 | E29: 3081770
A30: 26 | B30: Rabeprazole | C30: 2043377 | D30: 827792 | E30: 2871169
A31: 27 | B31: Omeprazole | C31: 2081140 | D31: 716731 | E31: 2797871
A32: 28 | B32: Venlafaxine | C32: 2146836 | D32: 509897 | E32: 2656733
A33: 29 | B33: Tramadol | C33: 1864352 | D33: 715490 | E33: 2579842
A34: 30 | B34: Meloxicam | C34: 1537457 | D34: 875066 | E34: 2412523
A35: 31 | B35: Diazepam | C35: 1770534 | D35: 632735 | E35: 2403269
A36: 32 | B36: Clopidogrel | C36: 2127743 | D36: 272891 | E36: 2400634
A37: 33 | B37: Lercanidipine | C37: 1753188 | D37: 550234 | E37: 2303422
A38: 34 | B38: Temazepam | C38: 1627470 | D38: 565393 | E38: 2192863
A39: 35 | B39: Ethinyloestradiol + Levonorgestrel | C39: 505314 | D39: 1674014 | E39: 2179328
A40: 36 | B40: Metoprolol Tartrate | C40: 1597391 | D40: 471605 | E40: 2068996
A41: 37 | B41: Amitriptyline | C41: 1389552 | D41: 586812 | E41: 1976364
A42: 38 | B42: Tiotropium | C42: 1959807 | D42: 57 | E42: 1959864
A43: 39 | B43: Prednisolone | C43: 1141619 | D43: 783111 | E43: 1924730
A44: 40 | B44: Gliclazide | C44: 1472386 | D44: 450688 | E44: 1923074
A45: 41 | B45: Doxycycline | C45: 852878 | D45: 1005792 | E45: 1858670
A46: 42 | B46: Roxithromycin | C46: 887272 | D46: 961036 | E46: 1848308
A47: 43 | B47: Desvenlafaxine | C47: 1810218 | D47: 1873 | E47: 1812091
A48: 44 | B48: Mirtazapine | C48: 1379320 | D48: 431556 | E48: 1810876
A49: 45 | B49: Citalopram | C49: 1000426 | D49: 730302 | E49: 1730728
A50: 46 | B50: Telmisartan + Hydrochlorothiazide | C50: 1108355 | D50: 610537 | E50: 1718892
A51: 47 | B51: Budesonide + Eformoterol | C51: 1710547 | D51: 248 | E51: 1710795
A52: 48 | B52: Pregabalin | C52: 1603355 | D52: 56500 | E52: 1659855
A53: 49 | B53: Celecoxib | C53: 1090768 | D53: 535416 | E53: 1626184
A54: 50 | B54: Thyroxine | C54: 908417 | D54: 691765 | E54: 1600182

Sheet Table 13
A1: Table 13:Highest volume PBS Drugs (incl Drs Bag) by PBS Item, year end: Jun 2014 - Section 85 Only
A2: (Includes subsidised and under co-payment scripts)
F3: Under
E4: Subsidised | F4: co-payment | G4: Total
A5: Rank | B5: Item | C5: Drug | D5: Form | E5: Scripts | F5: Scripts | G5: Scripts
A6: 1 | B6: 08814X | C6: Paracetamol | D6: Tablet 665 mg (modified release) | E6: 4777732 | F6: 274835 | G6: 5052567
A7: 2 | B7: 08600P | C7: Esomeprazole | D7: Tablet (enteric coated) 20 mg (as magnesium trihydrate) | E7: 3313401 | F7: 1490434 | G7: 4803835
A8: 3 | B8: 03119E | C8: Cephalexin | D8: Capsule 500 mg (anhydrous) | E8: 2268869 | F8: 2179071 | G8: 4447940
A9: 4 | B9: 08008L | C9: Pantoprazole | D9: Tablet (enteric coated) 40 mg (as sodium sesquihydrate) | E9: 3212113 | F9: 1094309 | G9: 4306422
A10: 5 | B10: 01081X | C10: Atenolol | D10: Tablet 50 mg | E10: 2815649 | F10: 1029037 | G10: 3844686
A11: 6 | B11: 08215J | C11: Atorvastatin | D11: Tablet 40 mg (as calcium) | E11: 3204250 | F11: 467878 | G11: 3672128
A12: 7 | B12: 08254K | C12: Amoxycillin + Clavulanic Acid | D12: Tablet containing 875 mg amoxycillin (as trihydrate) with 125 mg clavulanic acid (as potassium clavulanate) | E12: 1604074 | F12: 1942632 | G12: 3546706
A13: 8 | B13: 08601Q | C13: Esomeprazole | D13: Tablet (enteric coated) 40 mg (as magnesium trihydrate) | E13: 3420617 | F13: 4663 | G13: 3425280
A14: 9 | B14: 08214H | C14: Atorvastatin | D14: Tablet 20 mg (as calcium) | E14: 2767835 | F14: 418333 | G14: 3186168
A15: 10 | B15: 01889K | C15: Amoxycillin | D15: Capsule 500 mg (as trihydrate) | E15: 1372243 | F15: 1772868 | G15: 3145111
A16: 11 | B16: 08288F | C16: Salbutamol | D16: Pressurised inhalation 100 micrograms (as sulfate) per dose, 200 doses (CFC-free formulation) | E16: 2439603 | F16: 686433 | G16: 3126036
A17: 12 | B17: 09043Y | C17: Rosuvastatin | D17: Tablet 10 mg (as calcium) | E17: 2947751 | F17: 711 | G17: 2948462
A18: 13 | B18: 01215Y | C18: Paracetamol + Codeine | D18: Tablet containing codeine phosphate 30 mg with paracetamol 500 mg | E18: 1415836 | F18: 1229851 | G18: 2645687
A19: 14 | B19: 08508T | C19: Rabeprazole | D19: Tablet containing rabeprazole sodium 20 mg (enteric coated) | E19: 1807990 | F19: 715793 | G19: 2523783
A20: 15 | B20: 02089Y | C20: Temazepam | D20: Tablet 10 mg | E20: 1595565 | F20: 561987 | G20: 2157552
A21: 16 | B21: 03162K | C21: Diazepam | D21: Tablet 5 mg | E21: 1552793 | F21: 510439 | G21: 2063232
A22: 17 | B22: 02622B | C22: Oxycodone | D22: Tablet containing oxycodone hydrochloride 5 mg | E22: 1243245 | F22: 752434 | G22: 1995679
A23: 18 | B23: 08358X | C23: Clopidogrel | D23: Tablet 75 mg (as hydrogen sulfate) | E23: 1735382 | F23: 224557 | G23: 1959939
A24: 19 | B24: 08626B | C24: Tiotropium | D24: Capsule containing powder for oral inhalation 18 micrograms (as bromide monohydrate) (for use in HandiHaler) | E24: 1959807 | F24: 57 | G24: 1959864
A25: 20 | B25: 08248D | C25: Irbesartan | D25: Tablet 300 mg | E25: 1361865 | F25: 570889 | G25: 1932754
A26: 21 | B26: 08405J | C26: Irbesartan + Hydrochlorothiazide | D26: Tablet 300 mg-12.5 mg | E26: 1312277 | F26: 585119 | G26: 1897396
A27: 22 | B27: 02751T | C27: Amlodipine | D27: Tablet 5 mg (as besylate) | E27: 1341230 | F27: 476383 | G27: 1817613
A28: 23 | B28: 01394J | C28: Ethinyloestradiol + Levonorgestrel | D28: Pack containing 21 tablets 150 micrograms-30 micrograms and 7 inert tablets | E28: 407161 | F28: 1354578 | G28: 1761739
A29: 24 | B29: 08247C | C29: Irbesartan | D29: Tablet 150 mg | E29: 1148012 | F29: 581647 | G29: 1729659
A30: 25 | B30: 08355R | C30: Telmisartan | D30: Tablet 40 mg | E30: 1016266 | F30: 674013 | G30: 1690279
A31: 26 | B31: 02237R | C31: Sertraline | D31: Tablet 100 mg (as hydrochloride) | E31: 887831 | F31: 797178 | G31: 1685009
A32: 27 | B32: 01324Q | C32: Metoprolol Tartrate | D32: Tablet containing metoprolol tartrate 50 mg | E32: 1264229 | F32: 379577 | G32: 1643806
A33: 28 | B33: 02236Q | C33: Sertraline | D33: Tablet 50 mg (as hydrochloride) | E33: 833158 | F33: 773381 | G33: 1606539
A34: 29 | B34: 08700X | C34: Escitalopram | D34: Tablet 10 mg (as oxalate) | E34: 749518 | F34: 841805 | G34: 1591323
A35: 30 | B35: 08173E | C35: Simvastatin | D35: Tablet 40 mg | E35: 1270782 | F35: 319632 | G35: 1590414
A36: 31 | B36: 09044B | C36: Rosuvastatin | D36: Tablet 20 mg (as calcium) | E36: 1547703 | F36: 79 | G36: 1547782
A37: 32 | B37: 08213G | C37: Atorvastatin | D37: Tablet 10 mg (as calcium) | E37: 1137097 | F37: 393987 | G37: 1531084
A38: 33 | B38: 08519J | C38: Fluticasone + Salmeterol | D38: Pressurised inhalation containing fluticasone propionate 250 micrograms with salmeterol 25 micrograms (as xinafoate) per dose, 120 doses (CFC-free formulation) | E38: 1486609 | F38: 1 | G38: 1486610
A39: 34 | B39: 08701Y | C39: Escitalopram | D39: Tablet 20 mg (as oxalate) | E39: 722886 | F39: 762679 | G39: 1485565
A40: 35 | B40: 09302N | C40: Gliclazide | D40: Tablet 60 mg (modified release) | E40: 1109420 | F40: 367511 | G40: 1476931
A41: 36 | B41: 08356T | C41: Telmisartan | D41: Tablet 80 mg | E41: 935965 | F41: 529129 | G41: 1465094
A42: 37 | B42: 09110L | C42: Omeprazole | D42: Tablet 20 mg (as magnesium) | E42: 1071214 | F42: 390518 | G42: 1461732
A43: 38 | B43: 09435N | C43: Metformin | D43: Tablet (extended release) containing metformin hydrochloride 500 mg | E43: 977577 | F43: 445898 | G43: 1423475
A44: 39 | B44: 08220P | C44: Citalopram | D44: Tablet 20 mg (as hydrobromide) | E44: 793345 | F44: 601448 | G44: 1394793
A45: 40 | B45: 08243W | C45: Latanoprost | D45: Eye drops 50 micrograms per mL, 2.5 mL | E45: 1289039 | F45: 88321 | G45: 1377360
A46: 41 | B46: 09042X | C46: Rosuvastatin | D46: Tablet 5 mg (as calcium) | E46: 910871 | F46: 452422 | G46: 1363293
A47: 42 | B47: 08302Y | C47: Venlafaxine | D47: Capsule (modified release) 150 mg (as hydrochloride) | E47: 1138394 | F47: 200561 | G47: 1338955
A48: 43 | B48: 08521L | C48: Atorvastatin | D48: Tablet 80 mg (as calcium) | E48: 1331465 | F48: 3326 | G48: 1334791
A49: 44 | B49: 08440F | C49: Celecoxib | D49: Capsule 200 mg | E49: 898270 | F49: 433867 | G49: 1332137
A50: 45 | B50: 09007C | C50: Perindopril | D50: Tablet containing perindopril arginine 5 mg | E50: 906483 | F50: 405987 | G50: 1312470
A51: 46 | B51: 08470T | C51: Ramipril | D51: Capsule 10 mg | E51: 888954 | F51: 398024 | G51: 1286978
A52: 47 | B52: 02752W | C52: Amlodipine | D52: Tablet 10 mg (as besylate) | E52: 908385 | F52: 375186 | G52: 1283571
A53: 48 | B53: 03051N | C53: Perindopril | D53: Tablet containing perindopril erbumine 4 mg | E53: 720906 | F53: 539410 | G53: 1260316
A54: 49 | B54: 08757X | C54: Ezetimibe | D54: Tablet 10 mg | E54: 1242037 | F54: 17 | G54: 1242054
A55: 50 | B55: 02430X | C55: Metformin | D55: Tablet containing metformin hydrochloride 500 mg | E55: 889799 | F55: 322987 | G55: 1212786

Sheet Table 14(a)
A1: 18 | B1: Table14(a): Top 20 Responsible Persons by Total Cost, year ending: Jun 2014 - Section 85 only
B3: Rank | C3: Manufacturer | D3: Script Volume | E3: Govt Cost ($) | F3: Total Cost ($) | G3: Derived Ex-Manufacturer Sales ($)
B4: 1 | C4: Pfizer | D4: 16434424 | E4: 738679703.6 | F4: 917738471.2 | G4: 689846760.1
B5: 2 | C5: AstraZeneca | D5: 17618547 | E5: 679523748.6 | F5: 864486573.1 | G5: 626953460.3
B6: 3 | C6: Apotex | D6: 25164655 | E6: 453398182.4 | F6: 611226582.7 | G6: 356765177.7
B7: 4 | C7: Novartis Pharmaceuticals | D7: 3134106 | E7: 551132269.4 | F7: 579272411 | G7: 507289972.3
B8: 5 | C8: Alphapharm | D8: 28231376 | E8: 390098815.2 | F8: 546457279.5 | G8: 293783189.7
B9: 6 | C9: sanofi-aventis | D9: 12654740 | E9: 438104638.4 | F9: 518669175.2 | G9: 371033510.3
B10: 7 | C10: Merck Sharp & Dohme | D10: 8599944 | E10: 400170811.9 | F10: 482920213 | G10: 358741648.1
B11: 8 | C11: AbbVie * | D11: 3646092 | E11: 391900933.8 | F11: 422127696 | G11: 359098443.7
B12: 9 | C12: GlaxoSmithKline | D12: 9879505 | E12: 308593441.6 | F12: 389101411.7 | G12: 274664423.6
B13: 10 | C13: Aspen Pharmacare | D13: 19296122 | E13: 278760581.6 | F13: 385790645.6 | G13: 210146905
B14: 11 | C14: Janssen-Cilag | D14: 2940663 | E14: 323189950.6 | F14: 346932845.9 | G14: 289967242.8
B15: 12 | C15: Boehringer Ingelheim | D15: 7177678 | E15: 252796974.3 | F15: 298045574.2 | G15: 209308704.5
B16: 13 | C16: Bayer | D16: 1727655 | E16: 276699999 | F16: 295094812.6 | G16: 252723639.3
B17: 14 | C17: Sandoz | D17: 10136468 | E17: 189462966.8 | F17: 254662174.5 | G17: 152201149.6
B18: 15 | C18: Mundipharma | D18: 3830531 | E18: 176212937 | F18: 201674320.3 | G18: 137073711.4
B19: 16 | C19: Novo Nordisk Pharmaceuticals | D19: 1044665 | E19: 153486148.5 | F19: 164127526.5 | G19: 135741344.8
B20: 17 | C20: Eli Lilly | D20: 1769755 | E20: 134630306.2 | F20: 158786627.2 | G20: 124317157.5
B21: 18 | C21: Bristol-Myers Squibb | D21: 943409 | E21: 143743027.3 | F21: 153486232.3 | G21: 130643653.7
B22: 19 | C22: Ascent Pharma | D22: 4677692 | E22: 93717544.61 | F22: 124324188.6 | G22: 76539666.33
B23: 20 | C23: Servier Laboratories | D23: 5527226 | E23: 88408622.23 | F23: 122755440.4 | G23: 70415762.8
C25: Others | D25: =D27-SUM(D4:D23) -> 25380750 | E25: =E27-SUM(E4:E23) -> 845848766 | F25: =F27-SUM(F4:F23) -> 1015934907 | G25: =G27-SUM(G4:G23) -> 718259574
C27: Total | D27: 209816003 | E27: 7308560369 | F27: 8853615109 | G27: 6345515097
B29: Note: Includes branded and unbranded scripts and Doctor's bag scripts. 'Others' contains scripts written for Extemporaneously-prepared items and where the
B30: manufacturer is unknown.
B31: Total Cost includes cost to the patient and cost to the government
B32: * Includes Abbott Australasia.

Sheet Table 14(b)
A1: 19 | B1: Table14(b): Top 20 Responsible Persons by Market Share (Scripts), year ending: Jun 14 - Section 85 only
B3: Rank | C3: Manufacturer | D3: Script Volume | E3: Govt Cost ($) | F3: Total Cost ($) | G3: % of Total Scripts | H3: Derived Ex-Manufacturer Sales ($)
B4: 1 | C4: Alphapharm | D4: 28231376 | E4: 390098815.2 | F4: 546457279.5 | G4: =D4/$D$29 -> 0.134553016 | H4: 293783189.7
B5: 2 | C5: Apotex | D5: 25164655 | E5: 453398182.4 | F5: 611226582.7 | G5: =D5/$D$29 -> 0.1199367762 | H5: 356765177.7
B6: 3 | C6: Aspen Pharmacare | D6: 19296122 | E6: 278760581.6 | F6: 385790645.6 | G6: 0.09196687442 | H6: 210146905
B7: 4 | C7: AstraZeneca | D7: 17618547 | E7: 679523748.6 | F7: 864486573.1 | G7: 0.08397141661 | H7: 626953460.3
B8: 5 | C8: Pfizer | D8: 16434424 | E8: 738679703.6 | F8: 917738471.2 | G8: 0.07832779085 | H8: 689846760.1
B9: 6 | C9: sanofi-aventis | D9: 12654740 | E9: 438104638.4 | F9: 518669175.2 | G9: 0.06031351193 | H9: 371033510.3
B10: 7 | C10: Sandoz | D10: 10136468 | E10: 189462966.8 | F10: 254662174.5 | G10: 0.04831122438 | H10: 152201149.6
B11: 8 | C11: GlaxoSmithKline | D11: 9879505 | E11: 308593441.6 | F11: 389101411.7 | G11: 0.04708651799 | H11: 274664423.6
B12: 9 | C12: Merck Sharp & Dohme | D12: 8599944 | E12: 400170811.9 | F12: 482920213 | G12: 0.04098802702 | H12: 358741648.1
B13: 10 | C13: Boehringer Ingelheim | D13: 7177678 | E13: 252796974.3 | F13: 298045574.2 | G13: 0.0342093925 | H13: 209308704.5
B14: 11 | C14: Servier Laboratories | D14: 5527226 | E14: 88408622.23 | F14: 122755440.4 | G14: 0.0263432051 | H14: 70415762.8
B15: 12 | C15: Ascent Pharma | D15: 4677692 | E15: 93717544.61 | F15: 124324188.6 | G15: 0.02229425751 | H15: 76539666.33
B16: 13 | C16: Fawns and McAllan | D16: 4425149 | E16: 41679988.71 | F16: 61973453.11 | G16: 0.02109061719 | H16: 26428089.19
B17: 14 | C17: Mundipharma | D17: 3830531 | E17: 176212937 | F17: 201674320.3 | G17: 0.01825661983 | H17: 137073711.4
B18: 15 | C18: AbbVie * | D18: 3646092 | E18: 391900933.8 | F18: 422127696 | G18: 0.01737756867 | H18: 359098443.7
B19: 16 | C19: Novartis Pharmaceuticals | D19: 3134106 | E19: 551132269.4 | F19: 579272411 | G19: 0.01493740208 | H19: 507289972.3
B20: 17 | C20: Janssen-Cilag | D20: 2940663 | E20: 323189950.6 | F20: 346932845.9 | G20: 0.01401543714 | H20: 289967242.8
B21: 18 | C21: Alcon Laboratories | D21: 2365778 | E21: 36275063.61 | F21: 48530800.61 | G21: 0.01127548884 | H21: 26869150.9
B22: 19 | C22: Allergan | D22: 1950688 | E22: 36175161.83 | F22: 46917290.33 | G22: 0.009297136406 | H22: 27870875.03
B23: 20 | C23: Eli Lilly | D23: 1769755 | E23: 134630306.2 | F23: 158786627.2 | G23: 0.008434795129 | H23: 124317157.5
C25: Total Top 20 | D25: =SUM(D4:D23) -> 189461139 | E25: =SUM(E4:E23) -> 6002912642 | F25: =SUM(F4:F23) -> 7382393174 | G25: =SUM(D4:D23)/D29 -> 0.9029870758 | H25: =SUM(H4:H23) -> 5189315001
C27: Others | D27: =D29-D25 -> 20354864 | E27: =E29-E25 -> 1305647727 | F27: =F29-F25 -> 1471221935 | G27: =D27/D29 -> 0.09701292422 | H27: =H29-H25 -> 1156200097
C29: Total | D29: 209816003 | E29: 7308560369 | F29: 8853615109 | G29: =G25+G27 -> 1 | H29: 6345515097
B31: Note: Includes branded and unbranded scripts and Doctor's bag scripts. 'Others' contains scripts written for Extemporaneously-prepared items and where the
B32: manufacturer is unknown.
B33: Total Cost includes cost to the patient and cost to the government
B34: * Includes Abbott Australasia.

Sheet Table 15
A1: Table 15: PBS Other - Summary of direct payments and advances
A3: Expenditure Year ending June 2011, 2012, 2013 and 2014 - $ millions
B4: 2010/11 $ m | C4: 2011/12 $ m | D4: 2012/13 $ m | E4: 2013/14 $ m
A5: Highly specialised drugs | B5: 946.6769771 | C5: 939.5650428 | D5: 1013.334675 | E5: 1099.529036
A6: Safety net card issue fees | B6: 8.8954767 | C6: 9.05310594 | D6: 9.58124198 | E6: 9.98784058
A7: Drs Bag items | B7: 15.61714112 | C7: 13.436973 | D7: 15.33269619 | E7: 19.12395499
A8: Opiate Dependence Treatment Program | B8: 36.87769785 | C8: 39.71889973 | D8: 42.61372326 | E8: 47.20179097
A9: Special Authority Program | B9: 77.32352964 | C9: 78.15728025 | D9: 83.13204659 | E9: 96.57552561
A10: Chemotherapy | B10: 94.76456059 | C10: 222.5458536 | D10: 478.8709715 | E10: 585.8896297
A11: Aboriginal health services (GST exclusive) | B11: 42.9589393 | C11: 48.62569884 | D11: 41.27962119 | E11: 43.08894161
A12: Botulinum Toxin Program (incl. Dysport) | B12: 13.55309875 | C12: 14.79207001 | D12: 16.31307874 | E12: 19.28861184
A13: Paraplegic and Quadriplegic Program | B13: 0.59100835 | C13: 0.5611557 | D13: 0.46756112 | E13: 0.47850576
A14: In vitro fertilisation | B14: 70.73831036 | C14: 79.15527753 | D14: 82.9035364 | E14: 85.50628089
A15: Human growth hormones | B15: 27.39563623 | C15: 27.9292365 | D15: 28.6026147 | E15: 26.9405037
A16: Continuing Medication Program | B16: 0.1248636 | C16: 0.13304825 | D16: 0.1722572 | E16: 0.2457816
A17: Total | B17: 1335.51724 | C17: 1473.673642 | D17: 1812.604024 | E17: 2033.856404
A19: HSD and Chemotherapy data for 2012-13 may not be comparable to previously published data due to changes in data collection procedures and drug allocation processes. Where there have been changes, data for previous years has also been revised to present a consistent time series. The revised data reflects current definitions of Section 100 programs as published on pbs.gov.au.
A21: Note: Expenditure figures refer to payments made through Department of Human Services and directly from the Department of Health.

Sheet Table 16(a)
A2: 21 | B2: Table 16(a): Safety Net Card Issues - Persons Covered, 2008 to 2013
B4: MONTHLY COMPARISON 2008, 2009, 2010, 2011, 2012 and 2013
B6: No of people (cumulative each Month)
D7: JAN | E7: FEB | F7: MAR | G7: APR | H7: MAY | I7: JUN | J7: JUL | K7: AUG | L7: SEP | M7: OCT | N7: NOV | O7: DEC
B9: General Safety Net | C9: 2008 | D9: 2 | E9: 40 | F9: 353 | G9: 2753 | H9: 12584 | I9: 32832 | J9: 68770 | K9: 111646 | L9: 166002 | M9: 225827 | N9: 281876 | O9: 364576
C10: 2009 | D10: 2 | E10: 33 | F10: 299 | G10: 1770 | H10: 7873 | I10: 22948 | J10: 50061 | K10: 86523 | L10: 132673 | M10: 184346 | N10: 238039 | O10: 313156
C11: 2010 | D11: 0 | E11: 23 | F11: 281 | G11: 1784 | H11: 8399 | I11: 24062 | J11: 51538 | K11: 89020 | L11: 134981 | M11: 183904 | N11: 237868 | O11: 312736
C12: 2011 | D12: 2 | E12: 28 | F12: 232 | G12: 1370 | H12: 7645 | I12: 22218 | J12: 47299 | K12: 83989 | L12: 127952 | M12: 174862 | N12: 226258 | O12: 298519
C13: 2012 | D13: 3 | E13: 30 | F13: 223 | G13: 1257 | H13: 6561 | I13: 18432 | J13: 40424 | K13: 72995 | L13: 108154 | M13: 152704 | N13: 199512 | O13: 264807
C14: 2013 | D14: 11 | E14: 45 | F14: 208 | G14: 1107 | H14: 5823 | I14: 15600 | J14: 35749 | K14: 63034 | L14: 95012 | M14: 135150 | N14: 175282 | O14: 236942
B16: Concessional Safety Net | C16: 2008 | D16: 21 | E16: 452 | F16: 3668 | G16: 27888 | H16: 108942 | I16: 240281 | J16: 427418 | K16: 611768 | L16: 812728 | M16: 1006833 | N16: 1170234 | O16: 1390018
C17: 2009 | D17: 20 | E17: 331 | F17: 3618 | G17: 23612 | H17: 91645 | I17: 222193 | J17: 399197 | K17: 586348 | L17: 785818 | M17: 975537 | N17: 1150231 | O17: 1366825
C18: 2010 | D18: 14 | E18: 271 | F18: 3647 | G18: 22595 | H18: 93650 | I18: 225213 | J18: 406808 | K18: 606628 | L18: 807300 | M18: 994906 | N18: 1177148 | O18: 1400218
C19: 2011 | D19: 13 | E19: 307 | F19: 3463 | G19: 19445 | H19: 95885 | I19: 231227 | J19: 410453 | K19: 621889 | L19: 825698 | M19: 1018881 | N19: 1203783 | O19: 1430779
C20: 2012 | D20: 21 | E20: 342 | F20: 3501 | G20: 22207 | H20: 103733 | I20: 241158 | J20: 432266 | K20: 648030 | L20: 841310 | M20: 1050790 | N20: 1238208 | O20: 1457538
C21: 2013 | D21: 19 | E21: 332 | F21: 3072 | G21: 23438 | H21: 109989 | I21: 242719 | J21: 447258 | K21: 660734 | L21: 862593 | M21: 1074825 | N21: 1254453 | O21: 1490953
B23: #Supplementary | C23: 2008 | D23: 2 | E23: 49 | F23: 334 | G23: 2301 | H23: 8571 | I23: 18217 | J23: 31115 | K23: 43665 | L23: 56899 | M23: 69406 | N23: 79265 | O23: 90979
C24: 2009 | D24: 0 | E24: 31 | F24: 288 | G24: 2127 | H24: 8032 | I24: 19104 | J24: 33661 | K24: 49108 | L24: 64118 | M24: 78069 | N24: 90558 | O24: 103445
C25: 2010 | D25: 0 | E25: 20 | F25: 272 | G25: 2239 | H25: 9399 | I25: 22408 | J25: 39240 | K25: 57376 | L25: 76072 | M25: 92323 | N25: 106952 | O25: 123252
C26: 2011 | D26: 0 | E26: 18 | F26: 313 | G26: 2274 | H26: 11144 | I26: 26289 | J26: 46110 | K26: 68475 | L26: 89754 | M26: 109243 | N26: 126896 | O26: 145031
C27: 2012 | D27: 0 | E27: 42 | F27: 438 | G27: 2962 | H27: 13825 | I27: 31405 | J27: 55151 | K27: 81655 | L27: 103734 | M27: 127464 | N27: 147349 | O27: 168577
C28: 2013 | D28: 6 | E28: 62 | F28: 466 | G28: 3647 | H28: 16094 | I28: 35223 | J28: 64878 | K28: 94319 | L28: 121281 | M28: 147220 | N28: 168753 | O28: 193444
B30: TOTAL | C30: 2008 | D30: 25 | E30: 541 | F30: 4355 | G30: 32942 | H30: 130097 | I30: 291330 | J30: 527303 | K30: 767079 | L30: 1035629 | M30: 1302066 | N30: 1531375 | O30: 1845573
C31: 2009 | D31: 22 | E31: 395 | F31: 4205 | G31: 27509 | H31: 107550 | I31: 264245 | J31: 482919 | K31: 721979 | L31: 982609 | M31: 1237952 | N31: 1478828 | O31: 1783426
C32: 2010 | D32: 14 | E32: 314 | F32: 4200 | G32: 26618 | H32: 111448 | I32: 271683 | J32: 497586 | K32: 753024 | L32: 1018353 | M32: 1271133 | N32: 1521968 | O32: 1836206
C33: 2011 | D33: 15 | E33: 353 | F33: 4008 | G33: 23089 | H33: 114674 | I33: 279734 | J33: 503862 | K33: 774353 | L33: 1043404 | M33: 1302986 | N33: 1556937 | O33: 1874329
C34: 2012 | D34: 24 | E34: 414 | F34: 4162 | G34: 26426 | H34: 124119 | I34: 290995 | J34: 527841 | K34: 802680 | L34: 1053198 | M34: 1330958 | N34: 1585069 | O34: 1890922
C35: 2013 | D35: 36 | E35: 439 | F35: 3746 | G35: 28192 | H35: 131906 | I35: 293542 | J35: 547885 | K35: 818087 | L35: 1078886 | M35: 1357195 | N35: 1598488 | O35: 1921339
B36: # SAFETY NET CARDS ISSUED DUE TO REMOTE FAMILY MEMBERS OR ON LOSS OF THE ORIGINAL CARD
B37: Source: Department of Human Services (RSN003)

Sheet Table 16(b)
A4: 22 | B4: Table 16(b): Safety Net Card Issues - Number of Cards, 2008 to 2013
B6: MONTHLY COMPARISON 2008, 2009, 2010, 2011, 2012 and 2013
B8: No of cards (cumulative per month)
D9: JAN | E9: FEB | F9: MAR | G9: APR | H9: MAY | I9: JUN | J9: JUL | K9: AUG | L9: SEP | M9: OCT | N9: NOV | O9: DEC
B10: General Safety Net | C10: 2008 | D10: 1 | E10: 21 | F10: 176 | G10: 1364 | H10: 6200 | I10: 16113 | J10: 33738 | K10: 54737 | L10: 81391 | M10: 111187 | N10: 139204 | O10: 181409
C11: 2009 | D11: 1 | E11: 14 | F11: 146 | G11: 876 | H11: 3884 | I11: 11267 | J11: 24514 | K11: 42415 | L11: 65119 | M11: 90688 | N11: 117526 | O11: 155816
C12: 2010 | D12: 0 | E12: 13 | F12: 144 | G12: 887 | H12: 4154 | I12: 11876 | J12: 25377 | K12: 43882 | L12: 66649 | M12: 91044 | N12: 118099 | O12: 156605
C13: 2011 | D13: 1 | E13: 12 | F13: 116 | G13: 680 | H13: 3777 | I13: 10916 | J13: 23321 | K13: 41487 | L13: 63211 | M13: 86645 | N13: 112576 | O13: 149941
C14: 2012 | D14: 2 | E14: 16 | F14: 105 | G14: 618 | H14: 3234 | I14: 9013 | J14: 19910 | K14: 36015 | L14: 53420 | M14: 75765 | N14: 99404 | O14: 133130
C15: 2013 | D15: 6 | E15: 27 | F15: 102 | G15: 528 | H15: 2879 | I15: 7700 | J15: 17655 | K15: 31201 | L15: 47045 | M15: 67257 | N15: 87675 | O15: 119463
B17: Concessional Safety Net | C17: 2008 | D17: 11 | E17: 221 | F17: 1846 | G17: 14526 | H17: 57960 | I17: 130475 | J17: 237303 | K17: 346452 | L17: 469151 | M17: 591751 | N17: 697104 | O17: 843374
C18: 2009 | D18: 10 | E18: 164 | F18: 1833 | G18: 12241 | H18: 48556 | I18: 120409 | J18: 221033 | K18: 331015 | L18: 452113 | M18: 570791 | N18: 683085 | O18: 826944
C19: 2010 | D19: 8 | E19: 130 | F19: 1822 | G19: 11585 | H19: 49597 | I19: 122207 | J19: 226023 | K19: 343811 | L19: 465869 | M19: 583431 | N19: 700455 | O19: 848872
C20: 2011 | D20: 7 | E20: 140 | F20: 1672 | G20: 9933 | H20: 50992 | I20: 125877 | J20: 228019 | K20: 353145 | L20: 477637 | M20: 599093 | N20: 718589 | O20: 870086
C21: 2012 | D21: 12 | E21: 161 | F21: 1713 | G21: 11430 | H21: 55451 | I21: 131837 | J21: 241713 | K21: 370015 | L21: 488708 | M21: 621585 | N21: 743616 | O21: 890881
C22: 2013 | D22: 11 | E22: 165 | F22: 1519 | G22: 12163 | H22: 59199 | I22: 133042 | J22: 251167 | K22: 378590 | L22: 503012 | M22: 638285 | N22: 755847 | O22: 915189
B24: #Supplementary | C24: 2008 | D24: 1 | E24: 21 | F24: 150 | G24: 1087 | H24: 4108 | I24: 8748 | J24: 14949 | K24: 20915 | L24: 27177 | M24: 33052 | N24: 37641 | O24: 43030
C25: 2009 | D25: 0 | E25: 14 | F25: 136 | G25: 1010 | H25: 3868 | I25: 9195 | J25: 16187 | K25: 23590 | L25: 30719 | M25: 37277 | N25: 43099 | O25: 49128
C26: 2010 | D26: 0 | E26: 8 | F26: 129 | G26: 1052 | H26: 4500 | I26: 10786 | J26: 18905 | K26: 27563 | L26: 36418 | M26: 44096 | N26: 50990 | O26: 58627
C27: 2011 | D27: 0 | E27: 9 | F27: 141 | G27: 1080 | H27: 5363 | I27: 12674 | J27: 22248 | K27: 32951 | L27: 43113 | M27: 52412 | N27: 60718 | O27: 69181
C28: 2012 | D28: 0 | E28: 21 | F28: 199 | G28: 1396 | H28: 6663 | I28: 15140 | J28: 26609 | K28: 39344 | L28: 49899 | M28: 61244 | N28: 70629 | O28: 80601
C29: 2013 | D29: 3 | E29: 28 | F29: 207 | G29: 1728 | H29: 7717 | I29: 16963 | J29: 31287 | K29: 45456 | L29: 58414 | M29: 70807 | N29: 81019 | O29: 92643
B31: TOTAL | C31: 2008 | D31: 13 | E31: 263 | F31: 2172 | G31: 16977 | H31: 68268 | I31: 155336 | J31: 285990 | K31: 422104 | L31: 577719 | M31: 735990 | N31: 873949 | O31: 1067813
C32: 2009 | D32: 11 | E32: 192 | F32: 2115 | G32: 14127 | H32: 56308 | I32: 140871 | J32: 261734 | K32: 397020 | L32: 547951 | M32: 698756 | N32: 843710 | O32: 1031888
C33: 2010 | D33: 8 | E33: 151 | F33: 2095 | G33: 13524 | H33: 58251 | I33: 144869 | J33: 270305 | K33: 415256 | L33: 568936 | M33: 718571 | N33: 869544 | O33: 1064104
C34: 2011 | D34: 8 | E34: 161 | F34: 1929 | G34: 11693 | H34: 60132 | I34: 149467 | J34: 273588 | K34: 427583 | L34: 583961 | M34: 738150 | N34: 891883 | O34: 1089208
C35: 2012 | D35: 14 | E35: 198 | F35: 2017 | G35: 13444 | H35: 65348 | I35: 155990 | J35: 288232 | K35: 445374 | L35: 592027 | M35: 758594 | N35: 913649 | O35: 1104612
C36: 2013 | D36: 20 | E36: 220 | F36: 1828 | G36: 14419 | H36: 69795 | I36: 157705 | J36: 300109 | K36: 455247 | L36: 608471 | M36: 776349 | N36: 924541 | O36: 1127295
B37: # SAFETY NET CARDS ISSUED DUE TO REMOTE FAMILY MEMBERS OR ON LOSS OF THE ORIGINAL CARD
B38: Source: Department of Human Services (RSN002)

Sheet Table 17
A3: Table 17: Pharmacies and Friendly Societies, 30 June 2008 to 2013
A5: APPROVED PHARMACIES AND FRIENDLY SOCIETIES | H5: Approved Doctors
A6: - as at 30 June 2008 - 2013
B7: 2008 | C7: 2009 | D7: 2010 | E7: 2011 | F7: 2012 | G7: 2013 | H7: 2013
A8: NSW | B8: 1725 | C8: 1733 | D8: 1739 | E8: 1741 | F8: 1772 | G8: 1802 | H8: 10
A9: VIC | B9: 1174 | C9: 1181 | D9: 1194 | E9: 1222 | F9: 1243 | G9: 1261 | H9: 1
A10: QLD | B10: 997 | C10: 1012 | D10: 1028 | E10: 1062 | F10: 1066 | G10: 1076 | H10: 5
A11: SA | B11: 407 | C11: 413 | D11: =386+32 -> 418 | E11: 423 | F11: 426 | G11: 436 | H11: 1
A12: WA | B12: 509 | C12: 517 | D12: 525 | E12: 534 | F12: 550 | G12: 564 | H12: 11
A13: TAS | B13: 135 | C13: 137 | D13: 139 | E13: 140 | F13: 144 | G13: 148 | H13: 5
A14: NT | B14: 28 | C14: 29 | D14: 30 | E14: 31 | F14: 32 | G14: 33 | H14: 0
A15: ACT | B15: 62 | C15: 62 | D15: 64 | E15: 65 | F15: 69 | G15: 73 | H15: 0
A16: AUST | B16: =SUM(B8:B15) -> 5037 | C16: 5084 | D16: 5137 | E16: 5218 | F16: 5302 | G16: 5393 | H16: 33
A18: Source: Department of Human Services (RPC015)

Sheet Table 18
A3: Table 18: Special Patient Contributions, 2011-12 to 2013-14
B6: 2011-12 | C6: 2012-13 | D6: 2013-14
A7: Number of brands listed on the PBS(a) | B7: >4,200 | C7: >4,500 | D7: >4,700
A8: Number of brands with a premium(a) | B8: 283 | C8: 287 | D8: 284
A9: Average brand premium | B9: 2.84 | C9: 2.86 | D9: 2.97
A10: Weighted average brand premium(b) | B10: 2.48 | C10: 2.41 | D10: 2.49
A11: Brand premium range | B11: $0.44 to $13.59 | C11: $0.44 to $13.59 | D11: $0.48 to $11.41
A12: Prescriptions dispensed with a brand premium(c) | B12: 14.7m | C12: 13.2m | D12: 13.0m
A13: Prescriptions dispensed at the benchmark level(c) | B13: 53.4m | C13: 53.9m | D13: 56.7m
B14: 0.78 | C14: 0.8 | D14: 0.81
A16: (a) A brand is defined as a unique combination of ‘brand name’ and ‘form and strength’.
A17: (b) Weighted average brand premium is calculated by:
A18: scripts x premium = total premium value
A19: total premium value / total scripts = weighted average brand premium
A20: (c) Figures only include those scripts which are subsidised by government. General scripts that fall
A21: under the co-payment are not included.

Sheet Table 19(a) - part 1
A1: 25 | B1: Table 19(a): PHARMACEUTICAL BENEFITS SCHEME - HISTORY, 1948-49 to 2013-14
B3: PRESCRIPTIONS
C4: GENERAL | F4: PENSIONER | G4: CONC | H4: S/NET | I4: TOTAL | J4: Drs Bag | K4: TOTAL -
K5: ALL SCRIPTS
B6: 1948/49 | C6: 280719 | I6: =(C6+F6+G6) -> 280719 | K6: 280719
B7: 1949/50 | C7: 484210 | I7: 484210 | K7: 484210
B8: 1950/51 | C8: 3758622 | I8: 3758622 | K8: 3758622
B9: 1951/52 | C9: 6515668 | F9: 1655570 | I9: 8171238 | K9: 8171238
B10: 1952/53 | C10: 6853937 | F10: 2766947 | I10: 9620884 | K10: 9620884
B11: 1953/54 | C11: 7004421 | F11: 3453551 | I11: 10457972 | K11: 10457972
B12: 1954/55 | C12: 9201387 | F12: 4418633 | I12: 13620020 | K12: 13620020
B13: 1955/56 | C13: 8970890 | F13: 5235013 | I13: 14205903 | K13: 14205903
B14: 1956/57 | C14: 9045439 | F14: 5580946 | I14: 14626385 | K14: 14626385
B15: 1957/58 | C15: 10309446 | F15: 6313214 | I15: 16622660 | K15: 16622660
B16: 1958/59 | C16: 13253168 | F16: 6821578 | I16: 20074746 | K16: 20074746
B17: 1959/60 | C17: 16624342 | F17: 8028968 | I17: 24653310 | K17: 24653310
B18: 1960/61 | C18: 20489065 | F18: 10727570 | I18: 31216635 | K18: 31216635
B19: 1961/62 | C19: 26050370 | F19: 11664036 | I19: 37714406 | K19: 37714406
B20: 1962/63 | C20: 29517810 | F20: 12674230 | I20: 42192040 | K20: 42192040
B21: 1963/64 | C21: 31039624 | F21: 13317273 | I21: 44356897 | K21: 44356897
B22: 1964/65 | C22: 33714429 | F22: 13841372 | I22: 47555801 | K22: 47555801
B23: 1965/66 | C23: 35084551 | F23: 14908393 | I23: 49992944 | K23: 49992944
B24: 1966/67 | C24: 36750907 | F24: 16936435 | I24: 53687342 | K24: 53687342
B25: 1967/68 | C25: 37053212 | F25: 18369634 | I25: 55422846 | K25: 55422846
B26: 1968/69 | C26: 40453366 | F26: 19954471 | I26: 60407837 | K26: 60407837
B27: 1969/70 | C27: 44071198 | F27: 21504166 | I27: 65575364 | K27: 65575364
B28: 1970/71 | C28: 48971406 | F28: 22515117 | I28: 71486523 | K28: 71486523
B29: 1971/72 | C29: 48491692 | F29: 23950503 | I29: 72442195 | K29: 72442195
B30: 1972/73 | C30: 49115497 | F30: 25560576 | I30: 74676073 | K30: 74676073
B31: 1973/74 | C31: 59499823 | F31: 27788036 | I31: 87287859 | K31: 87287859
B32: 1974/75 | C32: 67350637 | F32: 30323662 | I32: 97674299 | K32: 97674299
B33: 1975/76 | C33: 67722534 | F33: 33394757 | I33: 101117291 | K33: 101117291
B34: 1976/77 | C34: 56099277 | F34: 33606128 | I34: 89705405 | K34: 89705405
B35: 1977/78 | C35: 57751904 | F35: 35414619 | I35: 93166523 | K35: 93166523
J37: Continued …

Sheet Table 19(a) - part 2
A1: 26 | B1: Table 18(a): PHARMACEUTICAL BENEFITS SCHEME - HISTORY, 1948-49 to 2013-14
B3: PRESCRIPTIONS
C4: GENERAL | F4: PENSIONER | G4: CONC | H4: S/NET | I4: TOTAL | J4: Drs Bag | K4: TOTAL -
K5: ALL SCRIPTS
B6: 1978/79 | C6: 53553036 | F6: 39409489 | I6: =(C6+F6+G6) -> 92962525 | K6: 92962525
B7: 1979/80 | C7: 46624224 | F7: 42450386 | I7: 89074610 | K7: 89074610
B8: 1980/81 | C8: 47619120 | F8: 46778057 | I8: 94397177 | K8: 94397177
B9: 1981/82 | C9: 53834648 | F9: 49739756 | I9: 103574404 | K9: 103574404
B10: 1982/83 | C10: 50078929 | F10: 52529929 | G10: 2931462 | I10: 105540320 | K10: 105540320
B11: 1983/84 | C11: 41938964 | F11: 56491285 | G11: 9954995 | I11: 108385244 | K11: 108385244
B12: 1984/85 | C12: 50690275 | F12: 60069806 | G12: 10068817 | I12: 120828898 | K12: 120828898
B13: 1985/86 | C13: 46334279 | F13: 63191858 | G13: 10315799 | I13: 119841936 | K13: 119841936
B14: 1986/87 | C14: 28762909 | F14: 64243148 | G14: 9755680 | H14: 2.4 | I14: 102761737 | K14: 102761737
B15: 1987/88 | C15: 12339360 | F15: 81041242 | G15: 7520752 | H15: 15059811 | I15: 100901354 | K15: 100901354
B16: 1988/89 | C16: 14078934 | F16: 78283599 | G16: 8223231 | H16: 11925271 | I16: 100585764 | K16: 100585764
B17: 1989/90 | C17: 15361517 | F17: 80761310 | G17: 8856241 | H17: 11725474 | I17: 104979068 | K17: 104979068
B18: 1990/91 | C18: 10608974 | F18: 36868817 | G18: 36588405 | H18: 11675164 | I18: =(C18+F18+G18+H18) -> 95741360 | J18: 558899 | K18: =(I18+J18) -> 96300259
B20: Notes | C20: -Dr's Bag prior to 90/91 included in General, from | I20: Safety Net
C21: 90/91 included in miscellaneous expenditure | I21: Prior to 90/91 S/net for Gen & Concess is
C22: -For 90/91 Concessional includes 'old' (prior to 1/11/90) | I22: included in pensioner. In 90/91 free s/net
C23: prescriptions and 'new' (post 1/11/90) concessional category | I23: is in both pensioner and s/net categories
B25: PRESCRIPTIONS
C26: GENERAL | G26: CONCESSIONAL | J26: TOTAL | K26: Drs Bag | L26: TOTAL-
C27: NSN | D27: S/NET 1 | E27: S/NET 2 | F27: TOTAL | G27: NSN | H27: S/NET | I27: TOTAL | J27: SCRIPTS | L27: ALL SCRIPTS
B28: 1991/92 | C28: 8266835 | D28: 2340145 | E28: 1092314 | F28: =SUM(C28:E28) -> 11699294 | G28: 67331793 | H28: 14428608 | I28: =(G28+H28) -> 81760401 | J28: =(I28+F28) -> 93459695 | K28: 660459 | L28: =(J28+K28) -> 94120154
B29: 1992/93 | C29: 10260426 | D29: 3917022 | E29: 2800496 | F29: 16977944 | G29: 71756325 | H29: 16757840 | I29: 88514165 | J29: 105492109 | K29: 689508 | L29: 106181617
B30: 1993/94 | C30: 11451148 | D30: 4259245 | E30: 3087943 | F30: 18798336 | G30: 77536126 | H30: 18003354 | I30: 95539480 | J30: 114337816 | K30: 704227 | L30: 115042043
B31: 1994/95 | C31: 13491364 | D31: 4695314 | E31: 2072 | F31: 18188750 | G31: 82400588 | H31: 17457008 | I31: 99857596 | J31: 118046346 | K31: 674331 | L31: 118720677
B32: 1995/96 | C32: 14212731 | D32: 5488957 | E32: 52 | F32: 19701740 | G32: 85604215 | H32: 18898907 | I32: 104503122 | J32: 124204862 | K32: 683420 | L32: 124888282
B33: 1996/97 | C33: 14709601 | D33: 3082843 | E33: 14 | F33: 17792458 | G33: 85965797 | H33: 19676007 | I33: 105641804 | J33: 123434262 | K33: 665301 | L33: 124099563
B34: 1997/98 | C34: 14087393 | D34: 3945591 | E34: 17 | F34: 18033001 | G34: 86389807 | H34: 20060505 | I34: 106450312 | J34: 124483313 | K34: 628496 | L34: 125111809
B35: 1998/99 | C35: 15153975 | D35: 4111091 | F35: 19265066 | G35: 88475327 | H35: 20608073 | I35: 109083400 | J35: 128348466 | K35: 572753 | L35: 128921219
B36: 1999/00 | C36: 16296703 | D36: 3928760 | F36: 20225463 | G36: 94281872 | H36: 23078282 | I36: 117360154 | J36: 137585617 | K36: 496306 | L36: 138081923
B37: 2000/01 | C37: 18526141 | D37: 4340364 | F37: 22866505 | G37: 99285160 | H37: 25420114 | I37: 124705274 | J37: 147571779 | K37: 478999 | L37: 148050778
B38: 2001/02 | C38: 19292104 | D38: 4813038 | F38: 24105142 | G38: 102018211 | H38: 28406603 | I38: 130424814 | J38: 154529956 | K38: 448283 | L38: 154978239
J40: Continued …

Sheet Table 19(a) - part 3
A1: 27 | B1: Table 19(a): PHARMACEUTICAL BENEFITS SCHEME - HISTORY, 1948-49 to 2013-14
B3: PRESCRIPTIONS
C4: GENERAL | G4: CONCESSIONAL | J4: TOTAL | K4: Drs Bag | L4: TOTAL-
C5: NSN | D5: S/NET 1 | E5: S/NET 2 | F5: TOTAL | G5: NSN | H5: S/NET | I5: TOTAL | J5: SCRIPTS | L5: ALL SCRIPTS
B6: 2002/03 | C6: 20694131 | D6: 5188492 | F6: =SUM(C6:E6) -> 25882623 | G6: 101459056 | H6: 31177491 | I6: =(G6+H6) -> 132636547 | J6: =(I6+F6) -> 158519170 | K6: 437516 | L6: =(J6+K6) -> 158956686
B7: 2003/04 | C7: 22443338 | D7: 5544618 | F7: 27987956 | G7: 104619866 | H7: 32827303 | I7: 137447169 | J7: 165435125 | K7: 426976 | L7: 165862101
B8: 2004/05 | C8: 22194451 | D8: 6209302 | F8: 28403753 | G8: 105377946 | H8: 36095311 | I8: 141473257 | J8: 169877010 | K8: 402492 | L8: 170279502
B9: 2005/06 | C9: 20917523 | D9: 5910828 | F9: 26828351 | G9: 105152486 | H9: 35945690 | I9: 141098176 | J9: 167926527 | K9: 396088 | L9: 168322615
B10: 2006/07 | C10: 19871669 | D10: 4710422 | F10: 24582091 | G10: 110917202 | H10: 32675864 | I10: 143593066 | J10: 168175157 | K10: 360362 | L10: 168535519
B11: 2007/08 | C11: 19607454 | D11: 4553340 | F11: 24160794 | G11: 113118234 | H11: 33680813 | I11: 146799047 | J11: 170959841 | K11: 336182 | L11: 171296023
B12: 2008-09 | C12: 20746777 | D12: 5580636 | F12: 26327413 | G12: 119906347 | H12: 35234371 | I12: 155140718 | J12: 181468131 | K12: 367996 | L12: 181836127
B13: 2009-10 | C13: 21226750 | D13: 4763435 | F13: 25990185 | G13: 122832364 | H13: 34756644 | I13: 157589008 | J13: 183579193 | K13: 332344 | L13: 183911537
B14: 2010-11 | C14: 21032398 | D14: 4943233 | F14: 25975631 | G14: 125446923 | H14: 36381986 | I14: 161828909 | J14: 187804540 | K14: 337715 | L14: 188142255
B15: 2011-12 | C15: 21239413 | D15: 4820643 | F15: 26060056 | G15: 130441952 | H15: 38046697 | I15: 168488649 | J15: 194548705 | K15: 324424 | L15: 194873129
B16: 2012-13 | C16: 19323589 | D16: 4371046 | F16: 23694635 | G16: 133646630 | H16: 39611994 | I16: 173258624 | J16: 196953259 | K16: 352123 | L16: 197305382
B17: 2013-14 | C17: 18050307 | D17: 4052529 | F17: 22102836 | G17: 145340393 | H17: 42009011 | I17: 187349404 | J17: 209452240 | K17: 363763 | L17: 209816003
B19: CONC: Concessional
B20: S/NET: Safety Net
B21: PENSIONER: Before 1 November 1990 pensioners received PBS drugs free of charge.
B22: NSN: Non Safety Net
B23: S/NET 1, S/NET 2: Between 1991 and 1993 there were 2 tiers in the general safety net. Some prescriptions supplied during this period were processed in 1994 or after and the two tier structure applied to these.

Sheet Table 19(b) - part 1
A1: 28 | B1: Table 19(b): PHARMACEUTICAL BENEFITS SCHEME - HISTORY, 1948-49 to 2013-14
B3: GOVERNMENT EXPENDITURE -$- | H3: HOSP & | I3: TOTAL GOVT | J3: PATIENT CONTRIBUTION | M3: TOTAL COST | N3: TOTAL with
B4: YEAR | C4: GEN | D4: CONC | E4: PENS | F4: SAFETY NET | G4: SUB TOTAL | H4: MISC | I4: COST | J4: GEN | K4: CON | L4: TOTAL | M4: SCRIPTS | N4: S.100 & Misc
B5: 1948/49 | C5: 132536 | G5: =(C5+D5+E5) -> 132536 | H5: 165538 | I5: =(G5+H5) -> 298074 | L5: =(J5+K5) -> 0 | M5: =(G5+L5) -> 132536 | N5: =(I5+L5) -> 298074
B6: 1949/50 | C6: 346682 | G6: 346682 | H6: 262696 | I6: 609378 | L6: 0 | M6: 346682 | N6: 609378
B7: 1950/51 | C7: 5453558 | G7: 5453558 | H7: 406768 | I7: 5860326 | L7: 0 | M7: 5453558 | N7: 5860326
B8: 1951/52 | C8: 13424294 | E8: 715264 | G8: 14139558 | H8: 1230536 | I8: 15370094 | L8: 0 | M8: 14139558 | N8: 15370094
B9: 1952/53 | C9: 12399568 | E9: 1457316 | G9: 13856884 | H9: 573734 | I9: 14430618 | L9: 0 | M9: 13856884 | N9: 14430618
B10: 1953/54 | C10: 14320372 | E10: 2021560 | G10: 16341932 | H10: 2116894 | I10: 18458826 | L10: 0 | M10: 16341932 | N10: 18458826
B11: 1954/55 | C11: 16303940 | E11: 2589672 | G11: 18893612 | H11: 2585322 | I11: 21478934 | L11: 0 | M11: 18893612 | N11: 21478934
B12: 1955/56 | C12: 18061092 | E12: 3015920 | G12: 21077012 | H12: 2697858 | I12: 23774870 | L12: 0 | M12: 21077012 | N12: 23774870
B13: 1956/57 | C13: 17171670 | E13: 3586200 | G13: 20757870 | H13: 2675776 | I13: 23433646 | L13: 0 | M13: 20757870 | N13: 23433646
B14: 1957/58 | C14: 22826484 | E14: 4246490 | G14: 27072974 | H14: 2995004 | I14: 30067978 | L14: 0 | M14: 27072974 | N14: 30067978
B15: 1958/59 | C15: 33112570 | E15: 5034746 | G15: 38147316 | H15: 3798278 | I15: 41945594 | L15: 0 | M15: 38147316 | N15: 41945594
B16: 1959/60 | C16: 36714806 | E16: 7148446 | G16: 43863252 | H16: 4808090 | I16: 48671342 | J16: 1890756 | L16: 1890756 | M16: 45754008 | N16: 50562098
B17: 1960/61 | C17: 34282496 | E17: 14676698 | G17: 48959194 | H17: 6803248 | I17: 55762442 | J17: 10324740 | L17: 10324740 | M17: 59283934 | N17: 66087182
B18: 1961/62 | C18: 44632488 | E18: 18194996 | G18: 62827484 | H18: 7552282 | I18: 70379766 | J18: 13007776 | L18: 13007776 | M18: 75835260 | N18: 83387542
B19: 1962/63 | C19: 47093026 | E19: 19830750 | G19: 66923776 | H19: 9986382 | I19: 76910158 | J19: 14742448 | L19: 14742448 | M19: 81666224 | N19: 91652606
B20: 1963/64 | C20: 46460998 | E20: 20601714 | G20: 67062712 | H20: 11775958 | I20: 78838670 | J20: 15573804 | L20: 15573804 | M20: 82636516 | N20: 94412474
B21: 1964/65 | C21: 48929748 | E21: 21564420 | G21: 70494168 | H21: 11708442 | I21: 82202610 | J21: 16841354 | L21: 16841354 | M21: 87335522 | N21: 99043964
B22: 1965/66 | C22: 53078046 | E22: 24071127 | G22: 77149173 | H22: 14634501 | I22: 91783674 | J22: 17481228 | L22: 17481228 | M22: 94630401 | N22: 109264902
B23: 1966/67 | C23: 56655939 | E23: 29280268 | G23: 85936207 | H23: 15344592 | I23: 101280799 | J23: 18347036 | L23: 18347036 | M23: 104283243 | N23: 119627835
B24: 1967/68 | C24: 56800249 | E24: 32115335 | G24: 88915584 | H24: 16218859 | I24: 105134443 | J24: 18504345 | L24: 18504345 | M24: 107419929 | N24: 123638788
B25: 1968/69 | C25: 64024983 | E25: 36609257 | G25: 100634240 | H25: 17739118 | I25: 118373358 | J25: 20129402 | L25: 20129402 | M25: 120763642 | N25: 138502760
B26: 1969/70 | C26: 73227887 | E26: 41068702 | G26: 114296589 | H26: 22421727 | I26: 136718316 | J26: 21941691 | L26: 21941691 | M26: 136238280 | N26: 158660007
B27: 1970/71 | C27: 88176385 | E27: 45180856 | G27: 133357241 | H27: 26917666 | I27: 160274907 | J27: 24384028 | L27: 24384028 | M27: 157741269 | N27: 184658935
B28: 1971/72 | C28: 90061869 | E28: 52005350 | G28: 142067219 | H28: 31201229 | I28: 173268448 | J28: 35466642 | L28: 35466642 | M28: 177533861 | N28: 208735090
B29: 1972/73 | C29: 87431438 | E29: 58139459 | G29: 145570897 | H29: 32061691 | I29: 177632588 | J29: 48640243 | L29: 48640243 | M29: 194211140 | N29: 226272831
B30: 1973/74 | C30: 108066351 | E30: 66802821 | G30: 174869172 | H30: 43426672 | I30: 218295844 | J30: 59015335 | L30: 59015335 | M30: 233884507 | N30: 277311179
B31: 1974/75 | C31: 131341320 | E31: 80586986 | G31: 211928306 | H31: 50368781 | I31: 262297087 | J31: 66827982 | L31: 66827982 | M31: 278756288 | N31: 329125069
M33: Continued ..

Sheet Table 19(b) - part 2
A1: 29 | B1: Table 19(b): PHARMACEUTICAL BENEFITS SCHEME - HISTORY, 1948-49 to 2013-14
B3: GOVERNMENT EXPENDITURE -$- | H3: HOSP & | I3: TOTAL GOVT | J3: PATIENT CONTRIBUTION | M3: TOTAL COST | N3: TOTAL with
B4: YEAR | C4: GEN | D4: CONC | E4: PENS | F4: SAFETY NET | G4: SUB TOTAL | H4: MISC | I4: COST | J4: GEN | K4: CON | L4: TOTAL | M4: SCRIPTS | N4: S.100 & Misc
B5: 1975/76 | C5: 149033245 | E5: 107317318 | G5: =(C5+D5+E5) -> 256350563 | H5: 27490706 | I5: =(G5+H5) -> 283841269 | J5: 95244660 | L5: =(J5+K5) -> 95244660 | M5: =(G5+L5) -> 351595223 | N5: =(I5+L5) -> 379085929
B6: 1976/77 | C6: 111077507 | E6: 115201775 | G6: 226279282 | H6: 8623582 | I6: 234902864 | J6: 111676421 | L6: 111676421 | M6: 337955703 | N6: 346579285
B7: 1977/78 | C7: 118303375 | E7: 127911837 | G7: 246215212 | H7: 9832410 | I7: 256047622 | J7: 115025169 | L7: 115025169 | M7: 361240381 | N7: 371072791
B8: 1978/79 | C8: 110425438 | E8: 151125681 | G8: 261551119 | H8: 9767502 | I8: 271318621 | J8: 129540759 | L8: 129540759 | M8: 391091878 | N8: 400859380
B9: 1979/80 | C9: 101185503 | E9: 166361113 | G9: 267546616 | H9: 7088452 | I9: 274635068 | J9: 123418168 | L9: 123418168 | M9: 390964784 | N9: 398053236
B10: 1980/81 | C10: 107903558 | E10: 191043798 | G10: 298947356 | H10: 10267063 | I10: 309214419 | J10: 129923272 | L10: 129923272 | M10: 428870628 | N10: 439137691
B11: 1981/82 | C11: 139547856 | E11: 239894493 | G11: 379442349 | H11: 11377241 | I11: 390819590 | J11: 157957635 | L11: 157957635 | M11: 537399984 | N11: 548777225
B12: 1982/83 | C12: 131773044 | D12: 11100973 | E12: 272707495 | G12: 415581512 | H12: 14685428 | I12: 430266940 | J12: 170617530 | K12: 5882844 | L12: 176500374 | M12: 592081886 | N12: 606767314
B13: 1983/84 | C13: 114638367 | D13: 39276732 | E13: 317819660 | G13: 471734759 | H13: 17490165 | I13: 489224924 | J13: 166043447 | K13: 19975026 | L13: 186018473 | M13: 657753232 | N13: 675243397
B14: 1984/85 | C14: 142439672 | D14: 43266712 | E14: 356213948 | G14: 541920332 | H14: 17877162 | I14: 559797494 | J14: 201142242 | K14: 20208116 | L14: 221350358 | M14: 763270690 | N14: 781147852
B15: 1985/86 | C15: 138365148 | D15: 50172930 | E15: 408026507 | G15: 596564585 | H15: 19258116 | I15: 615822701 | J15: 222286396 | K15: 20715057 | L15: 243001453 | M15: 839566038 | N15: 858824154
B16: 1986/87 | C16: 140571611 | D16: 59738152 | E16: 514236037 | F16: 11.6 | G16: 714545800 | H16: 23457302 | I16: 738003102 | J16: 167130307 | K16: 22048299 | L16: 189178606 | M16: 903724406 | N16: 927181708
B17: 1987/88 | C17: 111740361 | D17: 51574897 | E17: 747536316 | F17: 159418168 | G17: 910851574 | H17: 35612019 | I17: 946463593 | J17: 117938301 | K17: 18839286 | L17: 136777587 | M17: 1047629161 | N17: 1083241180
B18: 1988/89 | C18: 132040607 | D18: 63272252 | E18: 795027196 | F18: 138531290 | G18: 990340055 | H18: 33194842 | I18: 1023534897 | J18: 147704171 | K18: 20603194 | L18: 168307365 | M18: 1158647420 | N18: 1191842262
B19: 1989/90 | C19: 170039203 | D19: 74757555 | E19: 890753297 | F19: 150064548 | G19: 1135550055 | H19: 43852385 | I19: 1179402440 | J19: 162587554 | K19: 22174539 | L19: 184762093 | M19: 1320312148 | N19: 1364164533
B20: 1990/91 | C20: 157783001 | D20: 342720328 | E20: 428743821 | F20: 165216293 | G20: =(C20+D20+E20+F20) -> 1094463443 | H20: 64798247 | I20: 1159261690 | J20: 132120868 | K20: 91672986 | L20: 223793854 | M20: 1318257297 | N20: 1383055544
B22: Note | C22: -Free Pensioner category removed from 1 Nov 90, $2.50 copayment | H22: Safety Net | I22: -For Gen & Conc prior to 90/91 is included in Pensioner
C23: and free safety net introduced for all Concessionals | I23: -For 90/91 S/net includes both pre & post 1/11/90 free Snet
C24: -Dr's Bag prior to 90/91 included in General | I24: -Gen S/net 1 included in Concess in 90/91
C25: from 90/91 ($12,255,895) included in Misc | I25: -Gen S/net 2 (free) 1 Jan 91 to 31 Dec 93
L27: Continued ..

Sheet Table 19(b) - part 3
A1: 30 | B1: Table 19(b): PHARMACEUTICAL BENEFITS SCHEME - HISTORY, 1948-49 to 2013-14
B3: GOVERNMENT EXPENDITURE -$-
C4: GENERAL-NSN | D4: GEN S/Net 1 | E4: GEN S/Net 2 | F4: TOTAL GEN | G4: CONC - NSN | H4: CONC S/Net | I4: TOTAL CONC | J4: TOTAL | K4: MISC and | L4: TOTAL
J5: FOR PBS | K5: SECT 100 | L5: GOVT EXP
B6: 1991/92 | C6: 160765548 | D6: 36400482 | E6: 18911584 | F6: =SUM(C6:E6) -> 216077614 | G6: 708413833 | H6: 195000082 | I6: =(G6+H6) -> 903413915 | J6: =(I6+F6) -> 1119491529 | K6: =100877801+25 -> 100877826 | L6: =(K6+I6+F6) -> 1220369355
B7: 1992/93 | C7: 188270159.8 | D7: 65845465.63 | E7: 53077874.64 | F7: 307193500.1 | G7: 844972301 | H7: 251249539 | I7: 1096221840 | J7: 1403415340 | K7: 101552426 | L7: 1504967766
B8: 1993/94 | C8: 224675364 | D8: 78832510 | E8: 63861452 | F8: 367369326 | G8: 1019651580 | H8: 297597894 | I8: 1317249474 | J8: 1684618800 | K8: 116696888 | L8: 1801315688
B9: 1994/95 | C9: 290765883 | D9: 93406667.59 | E9: 38565.2 | F9: 384211115.8 | G9: 1194999580 | H9: 302502892 | I9: 1497502472 | J9: 1881713588 | K9: 109621215 | L9: 1991334803
B10: 1995/96 | C10: 343025066 | D10: 118655085 | E10: 785 | F10: 461680936 | G10: 1369432585 | H10: 360130508 | I10: 1729563093 | J10: 2191244029 | K10: 135473133 | L10: 2326717162
B11: 1996/97 | C11: 392246135 | D11: 72831781 | E11: 210 | F11: 465078126 | G11: 1465657637 | H11: 401814359 | I11: 1867471996 | J11: 2332550122 | K11: 205545012 | L11: =(K11+I11+F11) -> 2538095134
B12: 1997/98 | C12: 411856192 | D12: 98613376 | E12: 465 | F12: 510470033 | G12: 1576058096 | H12: 439989321 | I12: =(G12+H12) -> 2016047417 | J12: =(I12+F12) -> 2526517450 | K12: 258950240 | L12: =(K12+I12+F12) -> 2785467690
B13: 1998/99 | C13: 469042094 | D13: 106618491 | E13: 0 | F13: 575660585 | G13: 1739535268 | H13: 467079112 | I13: =(G13+H13) -> 2206614380 | J13: =(I13+F13) -> 2782274965 | K13: 287469135 | L13: =(K13+I13+F13) -> 3069744100
B14: 1999/00 | C14: 521018128 | D14: 107012848 | E14: 0 | F14: 628030976 | G14: 2000636597 | H14: 547829734 | I14: =(G14+H14) -> 2548466331 | J14: =(I14+F14) -> 3176497307 | K14: 311727262 | L14: 3488224569
B15: 2000/01 | C15: 662099200 | D15: 128173886 | F15: 790273086 | G15: 2359650038 | H15: 660303947 | I15: =(G15+H15) -> 3019953985 | J15: =(I15+F15) -> 3810227071 | K15: 347901802 | L15: 4158128873
B16: 2001/02 | C16: 691204687 | D16: 148498520 | F16: 839703207 | G16: 2569555585 | H16: 778411796 | I16: =(G16+H16) -> 3347967381 | J16: =(I16+F16) -> 4187670588 | K16: =396384347+2335 -> 396386682 | L16: 4584057270
B18: PATIENT CONTRIBUTION -$- | K18: TOTAL COST
C19: GENERAL-NSN | D19: GEN S/Net 1 | E19: GEN S/Net 2 | F19: TOTAL GEN | G19: CONC - NSN | H19: CONC S/Net | I19: TOTAL CONC | J19: TOTAL | K19: TOTAL | L19: MISC and | M19: TOTAL
J20: FOR PBS | K20: FOR SCRIPTS | L20: SECT 100
B21: 1991/92 | C21: 128988053 | D21: 6043066 | F21: =(C21+D21) -> 135031119 | G21: 173201117 | I21: =G21 -> 173201117 | J21: =F21+I21 -> 308232236 | K21: =J21+J6 -> 1427723765 | L21: =100877801+25 -> 100877826 | M21: =K21+L21 -> 1528601591
B22: 1992/93 | C22: 162967769 | D22: 10202578 | F22: 173170347 | G22: 186726902 | I22: =G22 -> 186726902 | J22: 359897249 | K22: 1763312589 | L22: 101552426 | M22: 1864865015
B23: 1993/94 | C23: 183012475 | D23: 11074025 | F23: 194086500 | G23: 201596301 | I23: =G23 -> 201596301 | J23: 395682801 | K23: 2080301601 | L23: 116696888 | M23: 2196998489
B24: 1994/95 | C24: 218094751 | D24: 12207816 | F24: 230302567 | G24: 214241512 | I24: =G24 -> 214241512 | J24: 444544079 | K24: 2326257667 | L24: 109621215 | M24: 2435878882
B25: 1995/96 | C25: 237239817 | D25: 14278699 | F25: 251518516 | G25: 226583554 | I25: =G25 -> 226583554 | J25: 478102070 | K25: 2669346099 | L25: 135473133 | M25: 2804819232
B26: 1996/97 | C26: 269715066 | D26: 8375980 | F26: 278091046 | G26: 252104590 | I26: 252104590 | J26: 530195636 | K26: 2862745758 | L26: 205545012 | M26: 3068290770
B27: 1997/98 | C27: 281739252 | D27: 12625016 | F27: 294364268 | G27: 276440026 | I27: 276440026 | J27: 570804294 | K27: 3097321744 | L27: 258950240 | M27: 3356271984
B28: 1998/99 | C28: 305064052 | D28: 13155417 | F28: 318219469 | G28: 283117963 | I28: 283117963 | J28: 601337432 | K28: 3383612397 | L28: 287469135 | M28: 3671081532
B29: 1999/00 | C29: 333003549 | D29: 12584337 | F29: 345587886 | G29: 306183001 | I29: 306183001 | J29: 651770887 | K29: 3828268194 | L29: 311727262 | M29: 4139995456
B30: 2000/01 | C30: 392432536 | D30: 14353837 | F30: 406786373 | G30: 337379028 | I30: 337379028 | J30: =F30+I30 -> 744165401 | K30: 4554392472 | L30: 347901802 | M30: 4902294274
B31: 2001/02 | C31: 426974621 | D31: 16864336 | F31: 443838957 | G31: 362237529 | I31: 362237529 | J31: =F31+I31 -> 806076486 | K31: 4993747074 | L31: =K16 -> 396386682 | M31: 5390133756
B33: DOCTOR'S BAG - $ - (included in miscellaneous from 90/91)
B34: 1990/91 | C34: 12255895
B35: 1991/92 | C35: 14514725
B36: 1992/93 | C36: 16082654.84
B37: 1993/94 | C37: 16679933 | G37: note- from 91/92 all figures are sourced from Department of Human Services (DHS) processing where available
B38: 1994/95 | C38: 15674642.98 | G38: -miscellaneous and section 100 expenditure sourced from Department of Health and DHS payments
B39: 1995/96 | C39: 16202097.72
B40: 1996/97 | C40: 15769173
B41: 1997/98 | C41: 14953823
B42: 1998/99 | C42: 13370491
B43: 1999/00 | C43: 10754395.32
B44: 2000/01 | C44: 10343534
B45: 2001/02 | C45: 9803682
L47: Continued ..

Sheet Table 19(b) - part 4
A1: 31 | B1: Table 19(b): PHARMACEUTICAL BENEFITS SCHEME - HISTORY, 1948-49 to 2013-14
B3: GOVERNMENT EXPENDITURE -$-
C4: GENERAL-NSN | D4: GEN S/Net 1 | E4: GEN S/Net 2 | F4: TOTAL GEN | G4: CONC - NSN | H4: CONC S/Net | I4: TOTAL CONC | J4: TOTAL | K4: MISC and | L4: TOTAL
J5: FOR PBS | K5: SECT 100 | L5: GOVT EXP
B6: 2002/03 | C6: 747049026 | D6: 169693390 | F6: =C6+D6+E6 -> 916742416 | G6: 2741874040 | H6: 907119434 | I6: =G6+H6 -> 3648993474 | J6: =(I6+F6) -> 4565735890 | K6: 477352298 | L6: =(K6+I6+F6) -> 5043088188
B7: 2003/04 | C7: 824130608 | D7: 190682979 | F7: 1014813587 | G7: 2972331634 | H7: 1004522779 | I7: 3976854413 | J7: =(I7+F7) -> 4991668000 | K7: 570500000 | L7: 5562168000
B8: 2004/05 | C8: 850690906 | D8: 222668220 | F8: 1073359125 | G8: 3077033801 | H8: 1145497231 | I8: =G8+H8 -> 4222531032 | J8: 5295890157 | K8: 668500000 | L8: 5964390157
B9: 2005/06 | C9: 850095680 | D9: 216246563 | F9: 1066342242 | G9: 3145480431 | H9: 1172502111 | I9: 4317982542 | J9: =F9+I9 -> 5384324784 | K9: 764000000 | L9: 6148324784
B10: 2006/07 | C10: 890275535.8 | D10: 174127771.2 | F10: 1064403307 | G10: 3333875949 | H10: 1067478074 | I10: 4401354023 | J10: 5465757330 | K10: 886500000 | L10: 6352257330
B11: 2007/08 | C11: 1039451749 | D11: 173499549.9 | F11: 1212951299 | G11: 3561294283 | H11: 1137925393 | I11: 4699219676 | J11: 5912170974 | K11: 975500000 | L11: 6887670974
B12: 2008/09 | C12: 1220279806 | D12: 217487483.4 | F12: =C12+D12+E12 -> 1437767290 | G12: 3909584010 | H12: 1216050241 | I12: =G12+H12 -> 5125634250 | J12: 6563401540 | K12: 1081400000 | L12: 7644801540
B13: 2009/10 | C13: 1339182210 | D13: 199599002.4 | F13: =C13+D13+E13 -> 1538781212 | G13: 4220391341 | H13: 1259719602 | I13: =G13+H13 -> 5480110943 | J13: 7018892155 | K13: 1232400000 | L13: 8251292155
B14: 2010-11 | C14: 1412781352 | D14: 211944918.3 | F14: =C14+D14+E14 -> 1624726270 | G14: 4367739898 | H14: 1330682636 | I14: =G14+H14 -> 5698422533 | J14: 7323148803 | K14: 1335500000 | L14: 8658648803
B15: 2011-12 | C15: 1453773280 | D15: 208167008.5 | F15: =C15+D15+E15 -> 1661940288 | G15: 4476104435 | H15: 1390159396 | I15: =G15+H15 -> 5866263831 | J15: 7528204119 | K15: 1473700000 | L15: 9001904119
B16: 2012-13 | C16: 1339654102 | D16: 169213843.6 | F16: =C16+D16+E16 -> 1508867945 | G16: 4209086581 | H16: 1351536398 | I16: =G16+H16 -> 5560622979 | J16: 7069490924 | K16: 1812600000 | L16: 8882090924
B18: PATIENT CONTRIBUTION -$- | K18: TOTAL COST | M18: TOTAL
C19: GENERAL-NSN | D19: GEN S/Net 1 | E19: GEN S/Net 2 | F19: TOTAL GEN | G19: CONC - NSN | H19: CONC S/Net | I19: TOTAL CONC | J19: TOTAL | K19: TOTAL | L19: MISC and
J20: FOR PBS | K20: FOR SCRIPTS | L20: SECT 100
B21: 2002/03 | C21: 470306937.3 | D21: 18698098.9 | F21: =C21+D21+E21 -> 489005036.2 | G21: 370426183.1 | H21: 0 | I21: =G21+H21 -> 370426183.1 | J21: =F21+I21 -> 859431219.3 | K21: =J21+J6 -> 5425167109 | L21: =K6 -> 477352298 | M21: =K21+L21 -> 5902519407
B22: 2003/04 | C22: 524763848 | D22: 20538514 | F22: 545302362 | G22: 392513143 | H22: 0 | I22: =G22+H22 -> 392513143 | J22: 937815505 | K22: =J22+J7 -> 5929483505 | L22: 570500000 | M22: =K22+L22 -> 6499983505
B23: 2004/05 | C23: 572963103 | D23: 23742733 | F23: 596705836 | G23: 443930641 | H23: 0 | I23: 443930641 | J23: 1040636477 | K23: =J23+J8 -> 6336526634 | L23: 668500000 | M23: =K23+L23 -> 7005026634
B24: 2005/06 | C24: 606897345 | D24: 27199070 | F24: =C24+D24+E24 -> 634096415 | G24: 489173277 | H24: 0 | I24: =G24 -> 489173277 | J24: 1123269692 | K24: =J9+J24 -> 6507594476 | L24: 764000000 | M24: =K24+L24 -> 7271594476
B25: 2006/07 | C25: 596483265.6 | D25: 22154622 | F25: =C25+D25+E25 -> 618637887.6 | G25: 532682971.5 | H25: 0 | I25: =G25 -> 532682971.5 | J25: 1151320859 | K25: 6617078189 | L25: 886500000 | M25: =K25+L25 -> 7503578189
B26: 2007/08 | C26: 607183393.2 | D26: 22323023.7 | F26: 629506416.9 | G26: 559962882.9 | H26: 0 | I26: 559962882.9 | J26: 1189469300 | K26: 7101640274 | L26: 975500000 | M26: =SUM(K26:L26) -> 8077140274
B27: 2008/09 | C27: 663449571.5 | D27: 27928828.6 | F27: =C27+D27+E27 -> 691378400.1 | G27: 617378323 | H27: 0 | I27: =G27+H27 -> 617378323 | J27: =F27+I27 -> 1308756723 | K27: 7872158263 | L27: 1081400000 | M27: 8953558263
B28: 2009/10 | C28: 701961714.4 | D28: 25253391.4 | F28: =C28+D28+E28 -> 727215105.8 | G28: 656949637.5 | H28: 0 | I28: =G28+H28 -> 656949637.5 | J28: =F28+I28 -> 1384164743 | K28: 8403056898 | L28: 1232400000 | M28: 9635456898
B29: 2010-11 | C29: 707968005.6 | D29: 26706261.8 | F29: =C29+D29+E29 -> 734674267.4 | G29: 689108592.3 | H29: 0 | I29: =G29+H29 -> 689108592.3 | J29: =F29+I29 -> 1423782860 | K29: 8746931663 | L29: 1335500000 | M29: 1.008243166e+10
B30: 2011-12 | C30: 735994338.6 | D30: 27003502 | F30: =C30+D30+E30 -> 762997840.6 | G30: 742139779.2 | H30: 0 | I30: =G30+H30 -> 742139779.2 | J30: =F30+I30 -> 1505137620 | K30: 9033341739 | L30: 1473700000 | M30: 1.050704174e+10
B31: 2012-13 | C31: 689036554 | D31: 25352649 | F31: =C31+D31+E31 -> 714389203 | G31: 781002893.3 | H31: 0 | I31: =G31+H31 -> 781002893.3 | J31: =F31+I31 -> 1495392096 | K31: 8564883021 | L31: 1812600000 | M31: 1.037748302e+10
B33: Doctor's Bag - $ - (included in miscellaneous from 90/91)
B34: 2002/03 | C34: 9510606
B35: 2003/04 | C35: 9408669
B36: 2004/05 | C36: 9365803
B37: 2005/06 | C37: 10063803 | G37: note- from 91/92 all figures are sourced from Department of Human Services (DHS) processing where available
B38: 2006/07 | C38: 10698205.41 | G38: -miscellaneous and section 100 expenditure sourced from Department of Health and DHS payments
B39: 2007/08 | C39: 13468779.4
B40: 2008/09 | C40: 14533301.92
B41: 2009/10 | C41: 13571776.11
B42: 2010-11 | C42: 14228520
B43: 2011-12 | C43: 12974505.91
B44: 2012-13 | C44: 14755084.67
B46: S/NET 1, S/NET 2: Between 1991 and 1993 there were 2 tiers in the general safety net. Some prescriptions supplied during this period were processed in 1994 or after and the two tier structure applied to these.
B47: CONC: Concessional
B48: S/Net: Safety Net | G48: MISC and SECT 100: Drugs provided through special programs and hospitals; Section 100 drugs.
B49: GEN: General | G49: HOSP & MISC: Drugs provided through special programs and hospitals; Section 100 drugs.
B50: NSN: Non Safety Net | G50: PENS: Before 1 November 1990 pensioners received PBS drugs free of charge.

Sheet Table 19(b) - part 5
A1: 32 | B1: Table 19(b): PHARMACEUTICAL BENEFITS SCHEME - HISTORY, 1948-49 to 2013-14
B3: GOVERNMENT EXPENDITURE -$-
C4: GENERAL-NSN | D4: GEN S/Net 1 | E4: GEN S/Net 2 | F4: TOTAL GEN | G4: CONC - NSN | H4: CONC S/Net | I4: TOTAL CONC | J4: TOTAL | K4: MISC and | L4: TOTAL
J5: FOR PBS | K5: SECT 100 | L5: GOVT EXP
B6: 2013-14 | C6: 1429860300 | D6: 154692449 | F6: =C6+D6+E6 -> 1584552749 | G6: 4319414670 | H6: 1388583542 | I6: =G6+H6 -> 5707998212 | J6: =(I6+F6) -> 7292550961 | K6: 2033900000 | L6: =(K6+I6+F6) -> 9326450961
B18: PATIENT CONTRIBUTION -$- | K18: TOTAL COST | M18: TOTAL
C19: GENERAL-NSN | D19: GEN S/Net 1 | E19: GEN S/Net 2 | F19: TOTAL GEN | G19: CONC - NSN | H19: CONC S/Net | I19: TOTAL CONC | J19: TOTAL | K19: TOTAL | L19: MISC and
J20: FOR PBS | K20: FOR SCRIPTS | L20: SECT 100
B21: 2013-14 | C21: 656913329 | D21: 23915012.2 | F21: =C21+D21+E21 -> 680828341.2 | G21: 864226398.5 | H21: 0 | I21: =G21+H21 -> 864226398.5 | J21: =F21+I21 -> 1545054740 | K21: =J21+J6 -> 8837605701 | L21: =K6 -> 2033900000 | M21: =K21+L21 -> 1.08715057e+10
B33: Doctor's Bag - $ - (included in miscellaneous from 90/91)
B34: 2013-14 | C34: 16009407.9
G37: note- from 91/92 all figures are sourced from Department of Human Services (DHS) processing where available
G38: -miscellaneous and section 100 expenditure sourced from Department of Health and DHS payments
B46: S/NET 1, S/NET 2: Between 1991 and 1993 there were 2 tiers in the general safety net. Some prescriptions supplied during this period were processed in 1994 or after and the two tier structure applied to these.
B47: CONC: Concessional
B48: S/Net: Safety Net | G48: MISC and SECT 100: Drugs provided through special programs and hospitals; Section 100 drugs.
B49: GEN: General | G49: HOSP & MISC: Drugs provided through special programs and hospitals; Section 100 drugs.
B50: NSN: Non Safety Net | G50: PENS: Before 1 November 1990 pensioners received PBS drugs free of charge.
